{"text_format":"1","workbook":"xlsx","n_sheets":2,"sheets":["Instruções","Req. Análises"],"not_rendered":{"charts":0,"images":6,"macros":1,"external_links":0,"defined_names":5,"comments":2,"pivot_tables":0},"unopened":[],"bounds":{"document_bytes":16777216,"sheet_cells":100000,"rows_first":2000,"rows_last":500,"rows_between":2000,"halvings":0,"cell_chars":16384,"cell_head_chars":4096},"cells_cut":0,"cells_raw":0,"read":"whole","date_system":"1900"}

{"sheet":"Instruções","index":0,"n_rows":80,"n_cols":18,"rows_kept":80,"cut":false,"hidden":false,"merged":[[52,2,52,6],[40,16,40,17],[41,16,43,16],[44,16,48,16],[10,8,13,8],[28,2,29,5],[40,2,41,5]]}
[null,"Entidade Requisitante:","Obrigatório. Indicar o nome da entidade que está a solicitar as análises"]
[null,"Orçamento/Req. N.º: ","Facultativo"]
[]
[null,"HORA","Facultativo"]
[null,null,"Importante para o caso de certas análises, ex. Radão"]
[null,null,"Digitar números seguidos. Não há necessidade de utilizar qualquer tipo de separador"]
[]
[]
[null,"Data Colheita","Data da colheita realizada ou da proposta de data",null,null,null,null,"Hora Colheita (24:00)","Data Colheita                       (dd-mm-aaaa)","Tipo de amostra","Área/Zona"]
[null,null,"Não há necessidade de preencher o campo por cada parâmetro.",null,null,null,null,null,"2023-01-16","Águas_de_Consumo_Humano","ACH     TESTE    1"]
[null,null,"Automáticamente será considerada a data anterior",null,null,null,null,null,"Será considerada a data de 16-01-2023"]
[]
[null,null,null,null,null,null,null,null,null,"Águas_Residuais","Campanha 1"]
[]
[null,null,null,null,null,null,null,null,"2023-01-17","Águas_Residuais","Campanha 1"]
[]
[null,"Tipo de amostra","Só podem ser escolhidos \"Tipos da amostra\" da lista apresentada"]
[]
[]
[null,"Área/Zona","Caso exista uma lista  podem ser escolhidas \"Área/Zona\" da lista apresentada"]
[null,null,"Não é obrigatório escolher \"Área/Zona\" da lista apresentada se necessário criar uma nova designação."]
[]
[null,"Nome Ponto/Designação amostra","Caso exista uma lista  podem ser escolhidos os \"Pontos de Amostragem\"_ (P.A.) da lista apresentada"]
[null,null,"Caso necessário, é possível inserir o nome de um novo P.A"]
[null,null,"Relembra-se que, em especial, para as águas residuais os Valores Limites (VLE) são impostos por ponto de amostragem"]
[null,null,"A criação de um novo P.A. não considerará valores limites já impostos"]
[]
[]
[null,"Controlo        (facultativo)","Caso se deseje incluir o controlo este deverá ser indicado  para todos os parâmetros agrupados no referido controlo",null,null,null,null,"Hora Colheita (24:00)","Data Colheita                       (dd-mm-aaaa)","Tipo de amostra","Área/Zona","Nome Ponto/Designação amostra","Controlo        (facultativo)","Parâmetros","Observações (Nota/Parâmetros campo)"]
[null,null,null,null,null,null,null,null,"2023-01-16","Águas_de_Consumo_Humano","ACH     TESTE    1","PA_1","Analise verificação","Ferro"]
[null,null,"Será emitido um boletim por controlo",null,null,null,null,null,null,"Águas_de_Consumo_Humano",null,null,"Analise verificação","Desinfectante residual"]
[null,null,null,null,null,null,null,null,null,"Águas_de_Consumo_Humano",null,null,"EXTRA","Turvação"]
[null,null,null,null,null,null,null,null,"17-01-20023","Águas_Residuais","Campanha 1","ETAR de Cima-Saída",null,"CBO","Amostra muito carregada"]
[null,null,null,null,null,null,null,null,null,null,null,null,null,"CQO"]
[null,null,null,null,null,null,null,null,null,null,null,null,null,"SST"]
[null,null,null,null,null,null,null,null,null,null,null,null,null,"Temperatura",16.8]
[null,null,null,null,null,null,null,null,null,null,null,null,null,"Colheita residual simples_ Cliente"]
[]
[]
[]
[null,"Parâmetros","Utilizar lista disponibilizada na célula \"i1\"",null,null,null,null,null,null,null,null,null,null,null,null,null,"Águas de Consumo Humano                                                       (D.L. N.º 306 de 2007 e 152 de 2017)"]
[null,null,null,null,null,null,null,null,null,"Nome Ponto/Designação amostra","Controlo        (facultativo)","Parâmetros",null,"Células desprotegida para criação de grupos que podem ",null,null,"CR1","E. Coli"]
[null,null,null,null,null,null,null,null,null,"PA-1",null,"Desinfetante residual",null,"Grupo CO1","RR",null,null,"Bactérias Coliformes"]
[null,null,null,null,null,null,null,null,null,null,null,"Cheiro",null,"Alumínio","CBO",null,null,"Desinfetante residual"]
[null,null,null,null,null,null,null,null,null,null,null,"Sabor",null,"Ferro","CQO",null,"                                                  CR2_ incluir os parâmetros do grupo CR1   ","Cheiro"]
[null,null,null,null,null,null,null,null,null,null,null,"pH",null,null,null,null,null,"Sabor"]
[null,null,null,null,null,null,null,null,null,"Reservatório",null,"Alumínio",null,null,null,null,null,"pH"]
[null,null,null,null,null,null,null,null,null,null,null,"Ferro",null,null,null,null,null,"Condutividade"]
[null,null,null,null,null,null,null,null,null,null,null,null,null,null,null,null,null,"Cor"]
[null,null,null,null,null,null,null,null,null,null,null,null,null,null,null,null,null,"Turvação"]
[null,null,null,null,null,null,null,null,null,null,null,null,null,null,null,null,null,"Enterococos"]
[null,null,"Caso a lista não seja apresentada significa que as \"macros\" não foram ativadas."]
[null,null,"Suguere-se a ativação das macros pois para além da lista de parâmetros existem outros alertas e indicações que são apresentados ao utilizador para tem"]
[null,null,"Uma macro potencialmente perigosa foi bloqueada (microsoft.com)"]
[]
[null,null,"DESBLOQUEAR UM ÚNICO FICHEIRO"]
[null,null,"Guardar o ficheiro da requsição de análises no computador."]
[null,null,"Com o botão do lado direito do rato sem abiri o ficheiro selecionar \"propriedades\""]
[]
[]
[]
[]
[]
[]
[]
[]
[]
[]
[]
[]
[null,"Observações (Nota/Parâmetros campo)","Caso necessário indicar parâmetros medidos em campo ou outras informações "]
[null,null,"Parâmetros","Observações (Nota/Parâmetros campo)"]
[null,null,"Ferro"]
[null,null,"Desinfectante residual"]
[null,null,"Turvação"]
[null,null,"CBO","Amostra muito carregada"]
[null,null,"CQO"]
[null,null,"SST"]
[null,null,"Temperatura",16.8]
[null,null,"Colheita residual simples_ Cliente"]

{"sheet":"Req. Análises","index":1,"n_rows":298,"n_cols":102,"rows_kept":298,"cut":false,"hidden":false,"merged":[[0,51,0,53],[0,67,0,70],[11,70,14,70],[16,68,18,68],[26,67,26,70],[0,14,0,19],[5,24,13,24],[14,24,67,24],[0,30,1,30],[14,30,19,30],[2,24,4,24],[1,24,1,25],[1,26,1,27],[2,26,16,26],[17,26,24,26],[25,26,46,26]]}
["FI-GAT-01.V05",null,null,"Entidade Requisitante:",null,"Orçamento/Req. N.º: ",null,null,null,null,null,null,null,null,"Células desprotegida para criação de grupos que podem ser usados para preecher a listagem de parâmetros",null,null,null,null,null,null,null,null,null," Grupos base modelos",null,null,null,null,null,null,"TIPOS","Águas_Residuais","Águas_Residuais_Industriais","Águas_Superficiais","Plano Monitorização Águas Residuais ","Cartaria - Albergaria dos Doze","Parque Industrial Manuel Da Mota","ZONA INDUSTRIAL DA FORMIGA - POMBAL","Zona Industrial dos Meires - Pelariga",null,null,"INDEX(tblVal[Regions],1,1):INDEX(tblVal[Regions],COUNTA(tblVal[Regions]))",null,null,null,null,null,null,null,null,"Fórmula p/ a requisição Dedicada",null,null,null,null,"",null,"",null,null,null,null,null,null,null,null,"MESSAGENS A CONSTAR NOS ALERTAS",null,null,null,null,null,null,null,null,null,"IF(RIGHT(E3;6)=\"Humano\";$CA$3:$CA$11;IF(RIGHT(E3;3)=\"ACH\";$CB$3:$CB$7;IF(LEFT(E3;15)=\"Águas_Residuais\";$CC$3:$CC$8;IF(E3=\"Lixiviado\";$CD$3:$CD$6;IF(RIGHT(E3;7)=\"Piscina\";$CE$3:$CE$4;\"EXTRA\")))))",null,null,null,null,null,null,null,null,null,null,null,null,null,null,null,null,null,null,null,null,null,null,null,"Fim células escondidas"]
[null,null,"Hora Colheita (24:00)","Data Colheita                       (dd-mm-aaaa)","Tipo de amostra","Área/Zona","Nome Ponto/Designação amostra","Controlo        (facultativo)","Parâmetros","Observações (Notas_Parâmetros campo)","Preço",null,null,null,"Grupo CO1","RR","CO_Rede",null,null,null,null,null,null,null,"Águas de Consumo Humano                                                       (D.L. N.º 306 de 2007 e 152 de 2017)",null,"Águas Brutas (D.L. N.º 236/98)",null,"Piscinas","Residuais",null,"Águas_de_Consumo_Humano",null,null,null,null,null,null,null,null,null,null,"INDEX(tblVal[TIPOS];1;1):INDEX(tblVal[TIPOS];COUNTA(tblVal[TIPOS]))",null,null,null,null,null,null,null,null,"INDIRECT(SUBSTITUTE(SUBSTITUTE(f3;\" \";\"_\"); \"-\"; \"_\"  ))",null,null,null,null,null,null,null,"search",null,null,null,null,null,null,null,"Caixa de selecção","Mensagens de alerta","Escritos diretamente na requsição","Mensagens de alerta",null,null,null,null,null,null,"CONTROLO","Humano_Controlo","Sub_SuprACH_controlo","Res_ResInd_Controlo","Lixiviado_controlo","Ag_Pisc_controlo"]
[null,null,null,null,null,null,null,null,null,null,null,null,null,null,"Alumínio","CBO","cloro livre",null,null,null,null,null,null,null,"CR1","E. Coli","G1","Coliformes Fecais__Ág. Bruta/Residual","pH","Aplicação de Amostrador Automático",null,"Águas_Subterrâneas_ACH",null,null,null,null,null,null,null,null,null,null,"_MainList",null,null,null,null,null,null,null,null,null,null,null,null,null,null,{"$f":"IF(IFERROR(SEARCH($BG$1,BG3,1),0)>0,MAX(BF$2:BF2)+1,0)","v":1},"1,2-Dicloroetano",{"$f":"IFERROR(VLOOKUP(ROWS(BH$3:BH3),$BF$3:$BG$298,2,0),\"\")","v":"1,2-Dicloroetano"},null,null,null,null,null,null,null,"Pesticidas Totais","ver célula BS3","Pesticidas Totais","É necessário inserir os pesticidas individuais da zona geográfica correspondente.",null,null,null,null,null,null,null,"Analise verificação","EXTRA","AMOSTRADOR","EXTRA","Apenas microbiologia"]
[null,null,null,null,null,null,null,null,null,null,null,null,null,null,"Ferro","CQO","pH",null,null,null,null,null,null,null,null,"Bactérias Coliformes",null,"Coliformes Totais_Ág. Bruta/Residual","Condutividade","Colheita residual composta_CESAB","--> Para uma colheita residual composta_CESAB deve ser considerado o parâmetro \"Aplicação de Amostrador Automático\" no dia anterior.","Águas_Superficiais_ACH",null,null,null,null,null,null,null,null,null,null,"INDEX(tblVal;0;MATCH(INDEX(tblData[@];COLUMN()-COLUMN(tblData));tblVal[#Headers];0))",null,null,null,null,null,null,null,null,null,null,null,null,null,null,{"$f":"IF(IFERROR(SEARCH($BG$1,BG4,1),0)>0,MAX(BF$2:BF3)+1,0)","v":2},"Absorvância a 254nm",{"$f":"IFERROR(VLOOKUP(ROWS(BH$3:BH4),$BF$3:$BG$298,2,0),\"\")","v":"Absorvância a 254nm"},null,null,null,null,null,null,null,null,null,"Pesticidas",null,null,null,null,null,null,null,null,"EXTRA","Controlo operacional","EXTRA","Lixiviado_Mensal","Legionella"]
[null,null,null,null,null,null,null,null,null,null,null,null,null,null,null,null,null,null,null,null,null,null,null,null,null,"Desinfetante residual",null,"pH","Cloro Residual Livre","Colheita residual simples_ CESAB",null,"Águas_Residuais",null,null,null,null,null,null,null,null,null,null,"_useList",null,null,null,null,null,null,null,null,null,null,null,null,null,null,{"$f":"IF(IFERROR(SEARCH($BG$1,BG5,1),0)>0,MAX(BF$2:BF4)+1,0)","v":3},"Acenafteno",{"$f":"IFERROR(VLOOKUP(ROWS(BH$3:BH5),$BF$3:$BG$298,2,0),\"\")","v":"Acenafteno"},null,null,null,null,null,null,null,"Trihalometanos","ATENÇÃO: Compostos individuais; Clorofórmio; Bromofórmio; Dibromoclorometano; Bromodiclorometano; automaticamente inseridos","THM","É necessário inserir os parâmetros individuais: Clorofórmio; Bromofórmio; Dibromoclorometano; Bromodiclorometano.",null,null,null,null,null,null,null,"Legionella","G1","Controlo operacional","Lixiviado_ Semestral"]
[null,null,null,null,null,null,null,null,null,null,null,null,null,null,null,null,null,null,null,null,null,null,null,null,"                                                  CR2_ incluir os parâmetros do grupo CR1   ","Cheiro",null,"Oxigénio dissolvido (%)","Cloro Residual Total","CBO",null,"Águas_Residuais_Industriais",null,null,null,null,null,null,null,null,null,null,"INDEX(_MainList;1;1):INDEX(_MainList;COUNTA(_MainList))",null,null,null,null,null,null,null,null,null,null,null,null,null,null,{"$f":"IF(IFERROR(SEARCH($BG$1,BG6,1),0)>0,MAX(BF$2:BF5)+1,0)","v":4},"Acenaftileno",{"$f":"IFERROR(VLOOKUP(ROWS(BH$3:BH6),$BF$3:$BG$298,2,0),\"\")","v":"Acenaftileno"},null,null,null,null,null,null,null,null,null,"Trihalometanos",null,null,null,null,null,null,null,null,"Radionuclídeos","G1+G2","Boletim 1","Lixiviado_ Anual"]
[null,null,null,null,null,null,null,null,null,null,null,null,null,null,null,null,null,null,null,null,null,null,null,null,null,"Sabor",null,"Carência Bioquímica de Oxigénio","Coliformes Totais ","CQO",null,"Lixiviado",null,null,null,null,null,null,null,null,null,null,null,null,null,null,null,null,null,null,null,null,null,null,null,null,null,{"$f":"IF(IFERROR(SEARCH($BG$1,BG7,1),0)>0,MAX(BF$2:BF6)+1,0)","v":5},"Ácido Isocianúrico",{"$f":"IFERROR(VLOOKUP(ROWS(BH$3:BH7),$BF$3:$BG$298,2,0),\"\")","v":"Ácido Isocianúrico"},null,null,null,null,null,null,null,"Hidrocarbonetos Aromáticos Policíclicos (HAP)","ATENÇÃO:Compostos individuais Benzo[b]fluoranteno;Benzo[k]fluoranteno;Benzo[ghi]perileno;Indeno[1,2,3-cd]pireno; automaticamente inseridos.","Hidrocarbonteos Aromáticos","É necessário inserir os parâmetros individuais: Benzo[b]fluoranteno; Benzo[k]fluoranteno; Benzo[ghi]perileno e Indeno[1,2,3-cd]pireno.\n","Se for água bruta deverá inserir também o parâmetro Fluoranteno e o Benzo(a)pireno.",null,null,null,null,null,null,"Desinfeção","G1+G2+G3","Boletim 2"]
[null,null,null,null,null,null,null,null,null,null,null,null,null,null,null,null,null,null,null,null,null,null,null,null,null,"pH",null,"Carência Quimica de Oxigénio","Escherichia Coli ","SST",null,"Águas_Subterrâneas",null,null,null,null,null,null,null,null,null,null,null,null,null,null,null,null,null,null,null,null,null,null,null,null,null,{"$f":"IF(IFERROR(SEARCH($BG$1,BG8,1),0)>0,MAX(BF$2:BF7)+1,0)","v":6},"Ácidos Gordos Voláteis",{"$f":"IFERROR(VLOOKUP(ROWS(BH$3:BH8),$BF$3:$BG$298,2,0),\"\")","v":"Ácidos Gordos Voláteis"},null,null,null,null,null,null,null,null,null,"HAP",null,null,null,null,null,null,null,null,"Controlo operacional",null,"Boletim 3"]
[null,null,null,null,null,null,null,null,null,null,null,null,null,null,null,null,null,null,null,null,null,null,null,null,null,"Condutividade",null,"Sólidos Suspensos Totais","Pseudomonas Aeruginosa ","pH",null,"Águas_Superficiais",null,null,null,null,null,null,null,null,null,null,null,null,null,null,null,null,null,null,null,null,null,null,null,null,null,{"$f":"IF(IFERROR(SEARCH($BG$1,BG9,1),0)>0,MAX(BF$2:BF8)+1,0)","v":7},"Ácidos Húmicos",{"$f":"IFERROR(VLOOKUP(ROWS(BH$3:BH9),$BF$3:$BG$298,2,0),\"\")","v":"Ácidos Húmicos"},null,null,null,null,null,null,null,"Legionella spp.","Ver célula BS9","Legionella","É necessário inserir o parâmetro Legionella pneumophila.",null,null,null,null,null,null,null,"CR1"]
[null,null,null,null,null,null,null,null,null,null,null,null,null,null,null,null,null,null,null,null,null,null,null,null,null,"Cor",null,"Cor","Estafilococos Produtores de Coagulase ","Azoto Total",null,"Águas_de_Piscina",null,null,null,null,null,null,null,null,null,null,null,null,null,null,null,null,null,null,null,null,null,null,null,null,null,{"$f":"IF(IFERROR(SEARCH($BG$1,BG10,1),0)>0,MAX(BF$2:BF9)+1,0)","v":8},"Acrilamida",{"$f":"IFERROR(VLOOKUP(ROWS(BH$3:BH10),$BF$3:$BG$298,2,0),\"\")","v":"Acrilamida"},null,null,null,null,null,null,null,null,null,"Legionela",null,null,null,null,null,null,null,null,"CR2"]
[null,null,null,null,null,null,null,null,null,null,null,null,null,null,null,null,null,null,null,null,null,null,null,null,null,"Turvação",null,"Temperatura","Estafilococos Totais ","Fósforo Total",null,"Águas_Balneares_Marítimas",null,null,null,null,null,null,null,null,null,null,null,null,null,null,null,null,null,null,null,null,null,null,null,null,null,{"$f":"IF(IFERROR(SEARCH($BG$1,BG11,1),0)>0,MAX(BF$2:BF10)+1,0)","v":9},"Alacloro",{"$f":"IFERROR(VLOOKUP(ROWS(BH$3:BH11),$BF$3:$BG$298,2,0),\"\")","v":"Alacloro"},null,null,null,null,null,null,null,null,null,"legionela",null,null,null,null,null,null,null,null,"CI"]
[null,null,null,null,null,null,null,null,null,null,null,null,null,null,null,null,null,null,null,null,null,null,null,null,null,"Enterococos",null,"Condutividade","Enterococos Fecais","Óleos e gorduras",null,"Águas_Balneares_Fluviais",null,null,null,null,null,null,null,null,null,null,null,null,null,null,null,null,null,null,null,null,null,null,null,null,null,{"$f":"IF(IFERROR(SEARCH($BG$1,BG12,1),0)>0,MAX(BF$2:BF11)+1,0)","v":10},"Alcalinidade à Fenolftaleína",{"$f":"IFERROR(VLOOKUP(ROWS(BH$3:BH12),$BF$3:$BG$298,2,0),\"\")","v":"Alcalinidade à Fenolftaleína"},null,null,null,null,null,null,null,"Legionella spp.","ATENÇÃO: O parâmetro Legionella pneumophila foi automaticamente inserido","egionella pneumofila","É necessário inserir o parâmetro Legionella spp.","Não pode existir a designação \"Legionella pneumophila\""]
[null,null,null,null,null,null,null,null,null,null,null,null,null,null,null,null,null,null,null,null,null,null,null,null,null,"Número de colónias a 22 ºC",null,"Cheiro, a 25 ºC","Número de Colónias a 36 ºC ","Colheita residual composta_Cliente",null,"Águas de Processo",null,null,null,null,null,null,null,null,null,null,null,null,null,null,null,null,null,null,null,null,null,null,null,null,null,{"$f":"IF(IFERROR(SEARCH($BG$1,BG13,1),0)>0,MAX(BF$2:BF12)+1,0)","v":11},"Alcalinidade Total",{"$f":"IFERROR(VLOOKUP(ROWS(BH$3:BH13),$BF$3:$BG$298,2,0),\"\")","v":"Alcalinidade Total"},null,null,null,null,null,null,null,null,null,"egionela pneumophila"]
[null,null,null,null,null,null,null,null,null,null,null,null,null,null,null,null,null,null,null,null,null,null,null,null,null,"Número de colónias a 36 ºC",null,"Nitrato",null,"Colheita residual simples_ Cliente",null,"Águas_Doces_Piscícolas",null,null,null,null,null,null,null,null,null,null,null,null,null,null,null,null,null,null,null,null,null,null,null,null,null,{"$f":"IF(IFERROR(SEARCH($BG$1,BG14,1),0)>0,MAX(BF$2:BF13)+1,0)","v":12},"Aldeídos",{"$f":"IFERROR(VLOOKUP(ROWS(BH$3:BH14),$BF$3:$BG$298,2,0),\"\")","v":"Aldeídos"},null,null,null,null,null,null,null,null,null,"egionella Pneumofila"]
[null,null,null,null,null,null,null,null,null,null,null,null,null,null,null,null,null,null,null,null,null,null,null,null,"CI_incluir os parâmetros do CR1+CR2","Clostridium perfringens",null,"Azoto Amoniacal",null,"Azoto Total_[Amostragem Pontual]","--> Amostragem do tipo pontual só se aplicam a tipos de amostras águas residual/industrial e Lixiviados.","Águas_de_Rega",null,null,null,null,null,null,null,null,null,null,null,null,null,null,null,null,null,null,null,null,null,null,null,null,null,{"$f":"IF(IFERROR(SEARCH($BG$1,BG15,1),0)>0,MAX(BF$2:BF14)+1,0)","v":13},"Alfa-total",{"$f":"IFERROR(VLOOKUP(ROWS(BH$3:BH15),$BF$3:$BG$298,2,0),\"\")","v":"Alfa-total"},null,null,null,null,null,null,null,null,null,"egionela Pneumophila"]
[null,null,null,null,null,null,null,null,null,null,null,null,null,null,null,null,null,null,null,null,null,null,null,null,null,"Alumínio",null,"Cloreto",null,"Detergentes_[Amostragem Pontual]",null,"Águas_Pluviais",null,null,null,null,null,null,null,null,null,null,null,null,null,null,null,null,null,null,null,null,null,null,null,null,null,{"$f":"IF(IFERROR(SEARCH($BG$1,BG16,1),0)>0,MAX(BF$2:BF15)+1,0)","v":14},"Alumínio",{"$f":"IFERROR(VLOOKUP(ROWS(BH$3:BH16),$BF$3:$BG$298,2,0),\"\")","v":"Alumínio"},null,null,null,null,null,null,null,"Colheita residual composta_CESAB","ATENÇÃO: Foi adicionado o parâmetro \"Aplicação de Amostrador Automático\". A data, desta linha, deve ser alterada para o dia anterior ao levantamento da colheita composta das 24h.","Colheita composta; composta","Sempre que se pretenda uma colheita composta deve ser incluido o parâmetro \"Aplicação de Amostrador Automático\" no dia anterior."]
[null,null,null,null,null,null,null,null,null,null,null,null,null,null,null,null,null,null,null,null,null,null,null,null,null,"Amónia",null,"Fosfato (ortofosfato)",null,"Fósforo Total_[Amostragem Pontual]",null,"Lamas",null,null,null,null,null,null,null,null,null,null,null,null,null,null,null,null,null,null,null,null,null,null,null,null,null,{"$f":"IF(IFERROR(SEARCH($BG$1,BG17,1),0)>0,MAX(BF$2:BF16)+1,0)","v":15},"Amónio",{"$f":"IFERROR(VLOOKUP(ROWS(BH$3:BH17),$BF$3:$BG$298,2,0),\"\")","v":"Amónio"},null,null,null,null,null,null,null,null,null,"Salmonela","Indicar qual dos seguintes parâmetros deve ser considerado: Salmonela (5000 mL) ou Salmonela (1000 mL)"]
[null,null,null,null,null,null,null,null,null,null,null,null,null,null,null,null,null,null,null,null,null,null,null,null,null,"Antimónio","                                                                                                                              G2_Incluir os parâmetros do grupo G1","Ferro dissolvido",null,"Óleos e Gorduras [Amostragem Pontual]",null,"Solos",null,null,null,null,null,null,null,null,null,null,null,null,null,null,null,null,null,null,null,null,null,null,null,null,null,{"$f":"IF(IFERROR(SEARCH($BG$1,BG18,1),0)>0,MAX(BF$2:BF17)+1,0)","v":16},"Antimónio",{"$f":"IFERROR(VLOOKUP(ROWS(BH$3:BH18),$BF$3:$BG$298,2,0),\"\")","v":"Antimónio"},null,null,null,null,null,null,null,null,null,"salmonela"]
[null,null,null,null,null,null,null,null,null,null,null,null,null,null,null,null,null,null,null,null,null,null,null,null,null,"Arsénio",null,"Manganês",null,"pH [Amostragem Pontual]",null,"Eluato (Decreto Lei 102-D/2020)_Inertes, tabela nº2",null,null,null,null,null,null,null,null,null,null,null,null,null,null,null,null,null,null,null,null,null,null,null,null,null,{"$f":"IF(IFERROR(SEARCH($BG$1,BG19,1),0)>0,MAX(BF$2:BF18)+1,0)","v":17},"Antraceno",{"$f":"IFERROR(VLOOKUP(ROWS(BH$3:BH19),$BF$3:$BG$298,2,0),\"\")","v":"Antraceno"},null,null,null,null,null,null,null,null,null,"Salmonella"]
[null,null,null,null,null,null,null,null,null,null,null,null,null,null,null,null,null,null,null,null,null,null,null,null,null,"Benzeno",null,"Cobre",null,"Temperatura [Amostra pontual]",null,"Resíduo Sólido (Dec. Lei 102-D/2020)_Inertes, tabela nº3",null,null,null,null,null,null,null,null,null,null,null,null,null,null,null,null,null,null,null,null,null,null,null,null,null,{"$f":"IF(IFERROR(SEARCH($BG$1,BG20,1),0)>0,MAX(BF$2:BF19)+1,0)","v":18},"AOX",{"$f":"IFERROR(VLOOKUP(ROWS(BH$3:BH20),$BF$3:$BG$298,2,0),\"\")","v":"AOX"}]
[null,null,null,null,null,null,null,null,null,null,null,null,null,null,null,null,null,null,null,null,null,null,null,null,null,"Benzo(a)pireno",null,"Zinco",null,null,null,"Eluato (Decreto Lei 102-D/2020)_N.Perig., tabela nº4",null,null,null,null,null,null,null,null,null,null,null,null,null,null,null,null,null,null,null,null,null,null,null,null,null,{"$f":"IF(IFERROR(SEARCH($BG$1,BG21,1),0)>0,MAX(BF$2:BF20)+1,0)","v":19},"Arsénio",{"$f":"IFERROR(VLOOKUP(ROWS(BH$3:BH21),$BF$3:$BG$298,2,0),\"\")","v":"Arsénio"},null,null,null,null,null,null,null,"Dose Indicativa_Cálculo_Radionuclídeos","ATENÇÃO: Foram adicionados os radionuclídeos emissores de radição alfa; Polónio 210; Rádio226; Urânio 234 e Urânio 238"]
[null,null,null,null,null,null,null,null,null,null,null,null,null,null,null,null,null,null,null,null,null,null,null,null,null,"Boro",null,"Sulfatos",null,null,null,"Residuo Sólido (Decreto Lei 102-D/2020)_N.Perig., tabela nº5",null,null,null,null,null,null,null,null,null,null,null,null,null,null,null,null,null,null,null,null,null,null,null,null,null,{"$f":"IF(IFERROR(SEARCH($BG$1,BG22,1),0)>0,MAX(BF$2:BF21)+1,0)","v":20},"Atrazina",{"$f":"IFERROR(VLOOKUP(ROWS(BH$3:BH22),$BF$3:$BG$298,2,0),\"\")","v":"Atrazina"},null,null,null,null,null,null,null,null,null,"Paratião"," Indicar se pretende o Paratião-etil e/ou Paratião-metil."]
[null,null,null,null,null,null,null,null,null,null,null,null,null,null,null,null,null,null,null,null,null,null,null,null,null,"Bromatos",null,"Substâncias Tensioactivas",null,null,null,null,null,null,null,null,null,null,null,null,null,null,null,null,null,null,null,null,null,null,null,null,null,null,null,null,null,{"$f":"IF(IFERROR(SEARCH($BG$1,BG23,1),0)>0,MAX(BF$2:BF22)+1,0)","v":21},"Azoto Amoniacal",{"$f":"IFERROR(VLOOKUP(ROWS(BH$3:BH23),$BF$3:$BG$298,2,0),\"\")","v":"Azoto Amoniacal"},null,null,null,null,null,null,null,null,null,"paratião"]
[null,null,null,null,null,null,null,null,null,null,null,null,null,null,null,null,null,null,null,null,null,null,null,null,null,"Cádmio",null,"Azoto Kjeldahl",null,null,null,null,null,null,null,null,null,null,null,null,null,null,null,null,null,null,null,null,null,null,null,null,null,null,null,null,null,{"$f":"IF(IFERROR(SEARCH($BG$1,BG24,1),0)>0,MAX(BF$2:BF23)+1,0)","v":22},"Azoto Kjeldahl",{"$f":"IFERROR(VLOOKUP(ROWS(BH$3:BH24),$BF$3:$BG$298,2,0),\"\")","v":"Azoto Kjeldahl"},null,null,null,null,null,null,null,"<> Água Limpa","Amostragem do tipo pontual só se aplicam a tipos de amostras Água residual/industrial e Lixiviados."]
[null,null,null,null,null,null,null,null,null,null,null,null,null,null,null,null,null,null,null,null,null,null,null,null,null,"Cálcio",null,"Estreptococos fecais (Enterocos)",null,null,null,null,null,null,null,null,null,null,null,null,null,null,null,null,null,null,null,null,null,null,null,null,null,null,null,null,null,{"$f":"IF(IFERROR(SEARCH($BG$1,BG25,1),0)>0,MAX(BF$2:BF24)+1,0)","v":23},"Azoto Nitrico",{"$f":"IFERROR(VLOOKUP(ROWS(BH$3:BH25),$BF$3:$BG$298,2,0),\"\")","v":"Azoto Nitrico"}]
[null,null,null,null,null,null,null,null,null,null,null,null,null,null,null,null,null,null,null,null,null,null,null,null,null,"Carbono orgânico total","                                                                                   G3_ incluir os parâmetros do G1+ G2","Fluoretos",null,null,null,null,null,null,null,null,null,null,null,null,null,null,null,null,null,null,null,null,null,null,null,null,null,null,null,null,null,{"$f":"IF(IFERROR(SEARCH($BG$1,BG26,1),0)>0,MAX(BF$2:BF25)+1,0)","v":24},"Azoto Orgânico",{"$f":"IFERROR(VLOOKUP(ROWS(BH$3:BH26),$BF$3:$BG$298,2,0),\"\")","v":"Azoto Orgânico"}]
[null,null,null,null,null,null,null,null,null,null,null,null,null,null,null,null,null,null,null,null,null,null,null,null,null,"Cianetos",null,"Boro",null,null,null,null,null,null,null,null,null,null,null,null,null,null,null,null,null,null,null,null,null,null,null,null,null,null,null,null,null,{"$f":"IF(IFERROR(SEARCH($BG$1,BG27,1),0)>0,MAX(BF$2:BF26)+1,0)","v":25},"Azoto Total",{"$f":"IFERROR(VLOOKUP(ROWS(BH$3:BH27),$BF$3:$BG$298,2,0),\"\")","v":"Azoto Total"},null,null,null,null,null,null,null,"Menssagem qd abre o livro"]
[null,null,null,null,null,null,null,null,null,null,null,null,null,null,null,null,null,null,null,null,null,null,null,null,null,"Cloretos",null,"Arsénio",null,null,null,null,null,null,null,null,null,null,null,null,null,null,null,null,null,null,null,null,null,null,null,null,null,null,null,null,null,{"$f":"IF(IFERROR(SEARCH($BG$1,BG28,1),0)>0,MAX(BF$2:BF27)+1,0)","v":26},"Azoto Total_[Amostragem Pontual]",{"$f":"IFERROR(VLOOKUP(ROWS(BH$3:BH28),$BF$3:$BG$298,2,0),\"\")","v":"Azoto Total_[Amostragem Pontual]"},null,null,null,null,null,null,null,"Águas_Residuais","É necessário escolher o parâmetro de colheita residual(simples/composta) a considerar."]
[null,null,null,null,null,null,null,null,null,null,null,null,null,null,null,null,null,null,null,null,null,null,null,null,null,"Cloritos",null,"Cádmio",null,null,null,null,null,null,null,null,null,null,null,null,null,null,null,null,null,null,null,null,null,null,null,null,null,null,null,null,null,{"$f":"IF(IFERROR(SEARCH($BG$1,BG29,1),0)>0,MAX(BF$2:BF28)+1,0)","v":27},"Bactérias Coliformes",{"$f":"IFERROR(VLOOKUP(ROWS(BH$3:BH29),$BF$3:$BG$298,2,0),\"\")","v":"Bactérias Coliformes"},null,null,null,null,null,null,null,"Águas_Residuais_Industriais"]
[null,null,null,null,null,null,null,null,null,null,null,null,null,null,null,null,null,null,null,null,null,null,null,null,null,"Cloratos",null,"Crómio Total",null,null,null,null,null,null,null,null,null,null,null,null,null,null,null,null,null,null,null,null,null,null,null,null,null,null,null,null,null,{"$f":"IF(IFERROR(SEARCH($BG$1,BG30,1),0)>0,MAX(BF$2:BF29)+1,0)","v":28},"Bário",{"$f":"IFERROR(VLOOKUP(ROWS(BH$3:BH30),$BF$3:$BG$298,2,0),\"\")","v":"Bário"},null,null,null,null,null,null,null,"Lixiviado"]
[null,null,null,null,null,null,null,null,null,null,null,null,null,null,null,null,null,null,null,null,null,null,null,null,null,"Chumbo sem purga",null,"Chumbo",null,null,null,null,null,null,null,null,null,null,null,null,null,null,null,null,null,null,null,null,null,null,null,null,null,null,null,null,null,{"$f":"IF(IFERROR(SEARCH($BG$1,BG31,1),0)>0,MAX(BF$2:BF30)+1,0)","v":29},"Bentazona",{"$f":"IFERROR(VLOOKUP(ROWS(BH$3:BH31),$BF$3:$BG$298,2,0),\"\")","v":"Bentazona"},null,null,null,null,null,null,null,"Águas_de_Consumo_Humano","Se requisitados parâmetros microbiológicos no âmbito do PCQA/Análises de verificação incluir o parâmetro \"Desinfetante residual\" ou \"Desinfetante Residual_Cliente\""]
[null,null,null,null,null,null,null,null,null,null,null,null,null,null,null,null,null,null,null,null,null,null,null,null,null,"Níquel sem purga",null,"Selénio",null,null,null,null,null,null,null,null,null,null,null,null,null,null,null,null,null,null,null,null,null,null,null,null,null,null,null,null,null,{"$f":"IF(IFERROR(SEARCH($BG$1,BG32,1),0)>0,MAX(BF$2:BF31)+1,0)","v":30},"Benzeno",{"$f":"IFERROR(VLOOKUP(ROWS(BH$3:BH32),$BF$3:$BG$298,2,0),\"\")","v":"Benzeno"}]
[null,null,null,null,null,null,null,null,null,null,null,null,null,null,null,null,null,null,null,null,null,null,null,null,null,"Cobre sem purga",null,"Mercúrio",null,null,null,null,null,null,null,null,null,null,null,null,null,null,null,null,null,null,null,null,null,null,null,null,null,null,null,null,null,{"$f":"IF(IFERROR(SEARCH($BG$1,BG33,1),0)>0,MAX(BF$2:BF32)+1,0)","v":31},"Benzo(a)pireno",{"$f":"IFERROR(VLOOKUP(ROWS(BH$3:BH33),$BF$3:$BG$298,2,0),\"\")","v":"Benzo(a)pireno"},null,null,null,null,null,null,null,null,"O conjunto de parâmetros da tabela N.º2 serão considerados na amostra"]
[null,null,null,null,null,null,null,null,null,null,null,null,null,null,null,null,null,null,null,null,null,null,null,null,null,"Crómio",null,"Bário",null,null,null,null,null,null,null,null,null,null,null,null,null,null,null,null,null,null,null,null,null,null,null,null,null,null,null,null,null,{"$f":"IF(IFERROR(SEARCH($BG$1,BG34,1),0)>0,MAX(BF$2:BF33)+1,0)","v":32},"Benzo(b)fluoranteno",{"$f":"IFERROR(VLOOKUP(ROWS(BH$3:BH34),$BF$3:$BG$298,2,0),\"\")","v":"Benzo(b)fluoranteno"},null,null,null,null,null,null,null,null,"O conjunto de parâmetros da tabela N.º3 serão considerados na amostra"]
[null,null,null,null,null,null,null,null,null,null,null,null,null,null,null,null,null,null,null,null,null,null,null,null,null,"1,2 – dicloroetano",null,"Cianetos",null,null,null,null,null,null,null,null,null,null,null,null,null,null,null,null,null,null,null,null,null,null,null,null,null,null,null,null,null,{"$f":"IF(IFERROR(SEARCH($BG$1,BG35,1),0)>0,MAX(BF$2:BF34)+1,0)","v":33},"Benzo(ghi)perileno",{"$f":"IFERROR(VLOOKUP(ROWS(BH$3:BH35),$BF$3:$BG$298,2,0),\"\")","v":"Benzo(ghi)perileno"},null,null,null,null,null,null,null,null,"O conjunto de parâmetros da tabela N.º4 serão considerados na amostra"]
[null,null,null,null,null,null,null,null,null,null,null,null,null,null,null,null,null,null,null,null,null,null,null,null,null,"Dureza total",null,"Hidrocarbonetos Dissolvidos e Emulsionados",null,null,null,null,null,null,null,null,null,null,null,null,null,null,null,null,null,null,null,null,null,null,null,null,null,null,null,null,null,{"$f":"IF(IFERROR(SEARCH($BG$1,BG36,1),0)>0,MAX(BF$2:BF35)+1,0)","v":34},"Benzo(k)fluoranteno",{"$f":"IFERROR(VLOOKUP(ROWS(BH$3:BH36),$BF$3:$BG$298,2,0),\"\")","v":"Benzo(k)fluoranteno"},null,null,null,null,null,null,null,null,"O conjunto de parâmetros da tabela N.º5 serão considerados na amostra"]
[null,null,null,null,null,null,null,null,null,null,null,null,null,null,null,null,null,null,null,null,null,null,null,null,null,"Ferro",null,"Hidrocarbonteos Aromáticos Polinucleares",null,null,null,null,null,null,null,null,null,null,null,null,null,null,null,null,null,null,null,null,null,null,null,null,null,null,null,null,null,{"$f":"IF(IFERROR(SEARCH($BG$1,BG37,1),0)>0,MAX(BF$2:BF36)+1,0)","v":35},"Berílio",{"$f":"IFERROR(VLOOKUP(ROWS(BH$3:BH37),$BF$3:$BG$298,2,0),\"\")","v":"Berílio"}]
[null,null,null,null,null,null,null,null,null,null,null,null,null,null,null,null,null,null,null,null,null,null,null,null,null,"Fluoretos",null," Benzo[b]fluoranteno",null,null,null,null,null,null,null,null,null,null,null,null,null,null,null,null,null,null,null,null,null,null,null,null,null,null,null,null,null,{"$f":"IF(IFERROR(SEARCH($BG$1,BG38,1),0)>0,MAX(BF$2:BF37)+1,0)","v":36},"Beta Total",{"$f":"IFERROR(VLOOKUP(ROWS(BH$3:BH38),$BF$3:$BG$298,2,0),\"\")","v":"Beta Total"}]
[null,null,null,null,null,null,null,null,null,null,null,null,null,null,null,null,null,null,null,null,null,null,null,null,null,"HAP",null," Benzo[k]fluoranteno",null,null,null,null,null,null,null,null,null,null,null,null,null,null,null,null,null,null,null,null,null,null,null,null,null,null,null,null,null,{"$f":"IF(IFERROR(SEARCH($BG$1,BG39,1),0)>0,MAX(BF$2:BF38)+1,0)","v":37},"Bicarbonato",{"$f":"IFERROR(VLOOKUP(ROWS(BH$3:BH39),$BF$3:$BG$298,2,0),\"\")","v":"Bicarbonato"}]
[null,null,null,null,null,null,null,null,null,null,null,null,null,null,null,null,null,null,null,null,null,null,null,null,null," Benzo[b]fluoranteno",null,"Benzo[ghi]perileno",null,null,null,null,null,null,null,null,null,null,null,null,null,null,null,null,null,null,null,null,null,null,null,null,null,null,null,null,null,{"$f":"IF(IFERROR(SEARCH($BG$1,BG40,1),0)>0,MAX(BF$2:BF39)+1,0)","v":38},"Biovolume Fitoplantónico Total",{"$f":"IFERROR(VLOOKUP(ROWS(BH$3:BH40),$BF$3:$BG$298,2,0),\"\")","v":"Biovolume Fitoplantónico Total"}]
[null,null,null,null,null,null,null,null,null,null,null,null,null,null,null,null,null,null,null,null,null,null,null,null,null," Benzo[k]fluoranteno",null,"Indeno[1,2,3-cd]pireno",null,null,null,null,null,null,null,null,null,null,null,null,null,null,null,null,null,null,null,null,null,null,null,null,null,null,null,null,null,{"$f":"IF(IFERROR(SEARCH($BG$1,BG41,1),0)>0,MAX(BF$2:BF40)+1,0)","v":39},"Boro",{"$f":"IFERROR(VLOOKUP(ROWS(BH$3:BH41),$BF$3:$BG$298,2,0),\"\")","v":"Boro"}]
[null,null,null,null,null,null,null,null,null,null,null,null,null,null,null,null,null,null,null,null,null,null,null,null,null,"Benzo[ghi]perileno",null,"Fluoranteno",null,null,null,null,null,null,null,null,null,null,null,null,null,null,null,null,null,null,null,null,null,null,null,null,null,null,null,null,null,{"$f":"IF(IFERROR(SEARCH($BG$1,BG42,1),0)>0,MAX(BF$2:BF41)+1,0)","v":40},"Bromatos",{"$f":"IFERROR(VLOOKUP(ROWS(BH$3:BH42),$BF$3:$BG$298,2,0),\"\")","v":"Bromatos"}]
[null,null,null,null,null,null,null,null,null,null,null,null,null,null,null,null,null,null,null,null,null,null,null,null,null,"Indeno[1,2,3-cd]pireno",null,"Benzo(a)pireno",null,null,null,null,null,null,null,null,null,null,null,null,null,null,null,null,null,null,null,null,null,null,null,null,null,null,null,null,null,{"$f":"IF(IFERROR(SEARCH($BG$1,BG43,1),0)>0,MAX(BF$2:BF42)+1,0)","v":41},"Brometo",{"$f":"IFERROR(VLOOKUP(ROWS(BH$3:BH43),$BF$3:$BG$298,2,0),\"\")","v":"Brometo"}]
[null,null,null,null,null,null,null,null,null,null,null,null,null,null,null,null,null,null,null,null,null,null,null,null,null,"Manganês",null,"Pesticidas Totais","-->Especificar compostos individuais ",null,null,null,null,null,null,null,null,null,null,null,null,null,null,null,null,null,null,null,null,null,null,null,null,null,null,null,null,{"$f":"IF(IFERROR(SEARCH($BG$1,BG44,1),0)>0,MAX(BF$2:BF43)+1,0)","v":42},"Bromo",{"$f":"IFERROR(VLOOKUP(ROWS(BH$3:BH44),$BF$3:$BG$298,2,0),\"\")","v":"Bromo"}]
[null,null,null,null,null,null,null,null,null,null,null,null,null,null,null,null,null,null,null,null,null,null,null,null,null,"Nitratos",null,"Substâncias Extraíveis com clorofórmio",null,null,null,null,null,null,null,null,null,null,null,null,null,null,null,null,null,null,null,null,null,null,null,null,null,null,null,null,null,{"$f":"IF(IFERROR(SEARCH($BG$1,BG45,1),0)>0,MAX(BF$2:BF44)+1,0)","v":43},"Bromodiclorometano",{"$f":"IFERROR(VLOOKUP(ROWS(BH$3:BH45),$BF$3:$BG$298,2,0),\"\")","v":"Bromodiclorometano"}]
[null,null,null,null,null,null,null,null,null,null,null,null,null,null,null,null,null,null,null,null,null,null,null,null,null,"Nitritos",null,"Salmonella_1 Litro",null,null,null,null,null,null,null,null,null,null,null,null,null,null,null,null,null,null,null,null,null,null,null,null,null,null,null,null,null,{"$f":"IF(IFERROR(SEARCH($BG$1,BG46,1),0)>0,MAX(BF$2:BF45)+1,0)","v":44},"Bromofórmio",{"$f":"IFERROR(VLOOKUP(ROWS(BH$3:BH46),$BF$3:$BG$298,2,0),\"\")","v":"Bromofórmio"}]
[null,null,null,null,null,null,null,null,null,null,null,null,null,null,null,null,null,null,null,null,null,null,null,null,null,"Mercúrio",null,"Salmonella_5 Litro",null,null,null,null,null,null,null,null,null,null,null,null,null,null,null,null,null,null,null,null,null,null,null,null,null,null,null,null,null,{"$f":"IF(IFERROR(SEARCH($BG$1,BG47,1),0)>0,MAX(BF$2:BF46)+1,0)","v":45},"BTEX",{"$f":"IFERROR(VLOOKUP(ROWS(BH$3:BH47),$BF$3:$BG$298,2,0),\"\")","v":"BTEX"}]
[null,null,null,null,null,null,null,null,null,null,null,null,null,null,null,null,null,null,null,null,null,null,null,null,null,"Oxidabilidade",null,null,null,null,null,null,null,null,null,null,null,null,null,null,null,null,null,null,null,null,null,null,null,null,null,null,null,null,null,null,null,{"$f":"IF(IFERROR(SEARCH($BG$1,BG48,1),0)>0,MAX(BF$2:BF47)+1,0)","v":46},"Cádmio",{"$f":"IFERROR(VLOOKUP(ROWS(BH$3:BH48),$BF$3:$BG$298,2,0),\"\")","v":"Cádmio"}]
[null,null,null,null,null,null,null,null,null,null,null,null,null,null,null,null,null,null,null,null,null,null,null,null,null,"Pesticidas ( total)","-->Especificar compostos individuais correspondentes ao concelho.",null,null,null,null,null,null,null,null,null,null,null,null,null,null,null,null,null,null,null,null,null,null,null,null,null,null,null,null,null,null,{"$f":"IF(IFERROR(SEARCH($BG$1,BG49,1),0)>0,MAX(BF$2:BF48)+1,0)","v":47},"Cálcio",{"$f":"IFERROR(VLOOKUP(ROWS(BH$3:BH49),$BF$3:$BG$298,2,0),\"\")","v":"Cálcio"}]
[null,null,null,null,null,null,null,null,null,null,null,null,null,null,null,null,null,null,null,null,null,null,null,null,null,"Selénio",null,null,null,null,null,null,null,null,null,null,null,null,null,null,null,null,null,null,null,null,null,null,null,null,null,null,null,null,null,null,null,{"$f":"IF(IFERROR(SEARCH($BG$1,BG50,1),0)>0,MAX(BF$2:BF49)+1,0)","v":48},"Cálcio Total",{"$f":"IFERROR(VLOOKUP(ROWS(BH$3:BH50),$BF$3:$BG$298,2,0),\"\")","v":"Cálcio Total"}]
[null,null,null,null,null,null,null,null,null,null,null,null,null,null,null,null,null,null,null,null,null,null,null,null,null,"Sódio",null,null,null,null,null,null,null,null,null,null,null,null,null,null,null,null,null,null,null,null,null,null,null,null,null,null,null,null,null,null,null,{"$f":"IF(IFERROR(SEARCH($BG$1,BG51,1),0)>0,MAX(BF$2:BF50)+1,0)","v":49},"Cálculo da DI_Radionuclídeos",{"$f":"IFERROR(VLOOKUP(ROWS(BH$3:BH51),$BF$3:$BG$298,2,0),\"\")","v":"Cálculo da DI_Radionuclídeos"}]
[null,null,null,null,null,null,null,null,null,null,null,null,null,null,null,null,null,null,null,null,null,null,null,null,null,"Sulfatos",null,null,null,null,null,null,null,null,null,null,null,null,null,null,null,null,null,null,null,null,null,null,null,null,null,null,null,null,null,null,null,{"$f":"IF(IFERROR(SEARCH($BG$1,BG52,1),0)>0,MAX(BF$2:BF51)+1,0)","v":50},"Carbonato",{"$f":"IFERROR(VLOOKUP(ROWS(BH$3:BH52),$BF$3:$BG$298,2,0),\"\")","v":"Carbonato"}]
[null,null,null,null,null,null,null,null,null,null,null,null,null,null,null,null,null,null,null,null,null,null,null,null,null,"Soma do Tetracloroeteno e Tricloroeteno",null,null,null,null,null,null,null,null,null,null,null,null,null,null,null,null,null,null,null,null,null,null,null,null,null,null,null,null,null,null,null,{"$f":"IF(IFERROR(SEARCH($BG$1,BG53,1),0)>0,MAX(BF$2:BF52)+1,0)","v":51},"Carbono Orgânico Dissolvido",{"$f":"IFERROR(VLOOKUP(ROWS(BH$3:BH53),$BF$3:$BG$298,2,0),\"\")","v":"Carbono Orgânico Dissolvido"}]
[null,null,null,null,null,null,null,null,null,null,null,null,null,null,null,null,null,null,null,null,null,null,null,null,null,"Tetracloroeteno",null,null,null,null,null,null,null,null,null,null,null,null,null,null,null,null,null,null,null,null,null,null,null,null,null,null,null,null,null,null,null,{"$f":"IF(IFERROR(SEARCH($BG$1,BG54,1),0)>0,MAX(BF$2:BF53)+1,0)","v":52},"Carbono Orgânico Total",{"$f":"IFERROR(VLOOKUP(ROWS(BH$3:BH54),$BF$3:$BG$298,2,0),\"\")","v":"Carbono Orgânico Total"}]
[null,null,null,null,null,null,null,null,null,null,null,null,null,null,null,null,null,null,null,null,null,null,null,null,null,"Tricloroeteno",null,null,null,null,null,null,null,null,null,null,null,null,null,null,null,null,null,null,null,null,null,null,null,null,null,null,null,null,null,null,null,{"$f":"IF(IFERROR(SEARCH($BG$1,BG55,1),0)>0,MAX(BF$2:BF54)+1,0)","v":53},"Carência Bioquímica de Oxigénio",{"$f":"IFERROR(VLOOKUP(ROWS(BH$3:BH55),$BF$3:$BG$298,2,0),\"\")","v":"Carência Bioquímica de Oxigénio"}]
[null,null,null,null,null,null,null,null,null,null,null,null,null,null,null,null,null,null,null,null,null,null,null,null,null,"Soma Conc. Compostos Individuais THM [BAIXA]",null,null,null,null,null,null,null,null,null,null,null,null,null,null,null,null,null,null,null,null,null,null,null,null,null,null,null,null,null,null,null,{"$f":"IF(IFERROR(SEARCH($BG$1,BG56,1),0)>0,MAX(BF$2:BF55)+1,0)","v":54},"CBO Solúvel/dissolvido",{"$f":"IFERROR(VLOOKUP(ROWS(BH$3:BH56),$BF$3:$BG$298,2,0),\"\")","v":"CBO Solúvel/dissolvido"}]
[null,null,null,null,null,null,null,null,null,null,null,null,null,null,null,null,null,null,null,null,null,null,null,null,null,"clorofórmio",null,null,null,null,null,null,null,null,null,null,null,null,null,null,null,null,null,null,null,null,null,null,null,null,null,null,null,null,null,null,null,{"$f":"IF(IFERROR(SEARCH($BG$1,BG57,1),0)>0,MAX(BF$2:BF56)+1,0)","v":55},"Carência Quimica de Oxigénio",{"$f":"IFERROR(VLOOKUP(ROWS(BH$3:BH57),$BF$3:$BG$298,2,0),\"\")","v":"Carência Quimica de Oxigénio"}]
[null,null,null,null,null,null,null,null,null,null,null,null,null,null,null,null,null,null,null,null,null,null,null,null,null," bromofórmio",null,null,null,null,null,null,null,null,null,null,null,null,null,null,null,null,null,null,null,null,null,null,null,null,null,null,null,null,null,null,null,{"$f":"IF(IFERROR(SEARCH($BG$1,BG58,1),0)>0,MAX(BF$2:BF57)+1,0)","v":56},"CQO Solúvel/dissolvido",{"$f":"IFERROR(VLOOKUP(ROWS(BH$3:BH58),$BF$3:$BG$298,2,0),\"\")","v":"CQO Solúvel/dissolvido"}]
[null,null,null,null,null,null,null,null,null,null,null,null,null,null,null,null,null,null,null,null,null,null,null,null,null," dibromoclorometano",null,null,null,null,null,null,null,null,null,null,null,null,null,null,null,null,null,null,null,null,null,null,null,null,null,null,null,null,null,null,null,{"$f":"IF(IFERROR(SEARCH($BG$1,BG59,1),0)>0,MAX(BF$2:BF58)+1,0)","v":57},"CBO",{"$f":"IFERROR(VLOOKUP(ROWS(BH$3:BH59),$BF$3:$BG$298,2,0),\"\")","v":"CBO"}]
[null,null,null,null,null,null,null,null,null,null,null,null,null,null,null,null,null,null,null,null,null,null,null,null,null,"bromodiclorometano",null,null,null,null,null,null,null,null,null,null,null,null,null,null,null,null,null,null,null,null,null,null,null,null,null,null,null,null,null,null,null,{"$f":"IF(IFERROR(SEARCH($BG$1,BG60,1),0)>0,MAX(BF$2:BF59)+1,0)","v":58},"Césio 137",{"$f":"IFERROR(VLOOKUP(ROWS(BH$3:BH60),$BF$3:$BG$298,2,0),\"\")","v":"Césio 137"}]
[null,null,null,null,null,null,null,null,null,null,null,null,null,null,null,null,null,null,null,null,null,null,null,null,null,"Dose indicativa","--> Não pressupõe a análise dos radionuclídeos. Resultado inferido a partir do resultado da radiação alfa-total.",null,null,null,null,null,null,null,null,null,null,null,null,null,null,null,null,null,null,null,null,null,null,null,null,null,null,null,null,null,null,{"$f":"IF(IFERROR(SEARCH($BG$1,BG61,1),0)>0,MAX(BF$2:BF60)+1,0)","v":59},"Cheiro (diluição 1:20)-Água residual",{"$f":"IFERROR(VLOOKUP(ROWS(BH$3:BH61),$BF$3:$BG$298,2,0),\"\")","v":"Cheiro (diluição 1:20)-Água residual"}]
[null,null,null,null,null,null,null,null,null,null,null,null,null,null,null,null,null,null,null,null,null,null,null,null,null,"Alfa-total",null,null,null,null,null,null,null,null,null,null,null,null,null,null,null,null,null,null,null,null,null,null,null,null,null,null,null,null,null,null,null,{"$f":"IF(IFERROR(SEARCH($BG$1,BG62,1),0)>0,MAX(BF$2:BF61)+1,0)","v":60},"Cheiro, a 25ºC-Ág.não residual",{"$f":"IFERROR(VLOOKUP(ROWS(BH$3:BH62),$BF$3:$BG$298,2,0),\"\")","v":"Cheiro, a 25ºC-Ág.não residual"}]
[null,null,null,null,null,null,null,null,null,null,null,null,null,null,null,null,null,null,null,null,null,null,null,null,null,"Beta-total","--> A ERSAR concedeu automaticamente a dispensa da pesquisa deste parâmetro em todos os PE/ZA.",null,null,null,null,null,null,null,null,null,null,null,null,null,null,null,null,null,null,null,null,null,null,null,null,null,null,null,null,null,null,{"$f":"IF(IFERROR(SEARCH($BG$1,BG63,1),0)>0,MAX(BF$2:BF62)+1,0)","v":61},"Chumbo",{"$f":"IFERROR(VLOOKUP(ROWS(BH$3:BH63),$BF$3:$BG$298,2,0),\"\")","v":"Chumbo"}]
[null,null,null,null,null,null,null,null,null,null,null,null,null,null,null,null,null,null,null,null,null,null,null,null,null,"Radão",null,null,null,null,null,null,null,null,null,null,null,null,null,null,null,null,null,null,null,null,null,null,null,null,null,null,null,null,null,null,null,{"$f":"IF(IFERROR(SEARCH($BG$1,BG64,1),0)>0,MAX(BF$2:BF63)+1,0)","v":62},"Chumbo_PCQA_com Purga",{"$f":"IFERROR(VLOOKUP(ROWS(BH$3:BH64),$BF$3:$BG$298,2,0),\"\")","v":"Chumbo_PCQA_com Purga"}]
[null,null,null,null,null,null,null,null,null,null,null,null,null,null,null,null,null,null,null,null,null,null,null,null,null,"Acrilamida","--> Pode ser controlado(a) pelo cálculo da migração máxima do polímero, se usado, e em função das especificações fornecidas pelo fabricante.",null,null,null,null,null,null,null,null,null,null,null,null,null,null,null,null,null,null,null,null,null,null,null,null,null,null,null,null,null,null,{"$f":"IF(IFERROR(SEARCH($BG$1,BG65,1),0)>0,MAX(BF$2:BF64)+1,0)","v":63},"Chumbo_PCQA_sem Purga",{"$f":"IFERROR(VLOOKUP(ROWS(BH$3:BH65),$BF$3:$BG$298,2,0),\"\")","v":"Chumbo_PCQA_sem Purga"}]
[null,null,null,null,null,null,null,null,null,null,null,null,null,null,null,null,null,null,null,null,null,null,null,null,null,"Epicloridrina","--> Pode ser controlado(a) pelo cálculo da migração máxima do polímero, se usado, e em função das especificações fornecidas pelo fabricante.",null,null,null,null,null,null,null,null,null,null,null,null,null,null,null,null,null,null,null,null,null,null,null,null,null,null,null,null,null,null,{"$f":"IF(IFERROR(SEARCH($BG$1,BG66,1),0)>0,MAX(BF$2:BF65)+1,0)","v":64},"Cianeto",{"$f":"IFERROR(VLOOKUP(ROWS(BH$3:BH66),$BF$3:$BG$298,2,0),\"\")","v":"Cianeto"}]
[null,null,null,null,null,null,null,null,null,null,null,null,null,null,null,null,null,null,null,null,null,null,null,null,null,"Cloreto de vinilo","--> Pode ser controlado(a) pelo cálculo da migração máxima do polímero, se usado, e em função das especificações fornecidas pelo fabricante.",null,null,null,null,null,null,null,null,null,null,null,null,null,null,null,null,null,null,null,null,null,null,null,null,null,null,null,null,null,null,{"$f":"IF(IFERROR(SEARCH($BG$1,BG67,1),0)>0,MAX(BF$2:BF66)+1,0)","v":65},"Cianeto Livre",{"$f":"IFERROR(VLOOKUP(ROWS(BH$3:BH67),$BF$3:$BG$298,2,0),\"\")","v":"Cianeto Livre"}]
[null,null,null,null,null,null,null,null,null,null,null,null,null,null,null,null,null,null,null,null,null,null,null,null,null,"Trítio","--> A ERSAR concedeu automaticamente a dispensa da pesquisa do Trítio em todos os PE/ZA.",null,null,null,null,null,null,null,null,null,null,null,null,null,null,null,null,null,null,null,null,null,null,null,null,null,null,null,null,null,null,{"$f":"IF(IFERROR(SEARCH($BG$1,BG68,1),0)>0,MAX(BF$2:BF67)+1,0)","v":66},"Cianeto Total",{"$f":"IFERROR(VLOOKUP(ROWS(BH$3:BH68),$BF$3:$BG$298,2,0),\"\")","v":"Cianeto Total"}]
[null,null,null,null,null,null,null,null,null,null,null,null,null,null,null,null,null,null,null,null,null,null,null,null,null,null,null,null,null,null,null,null,null,null,null,null,null,null,null,null,null,null,null,null,null,null,null,null,null,null,null,null,null,null,null,null,null,{"$f":"IF(IFERROR(SEARCH($BG$1,BG69,1),0)>0,MAX(BF$2:BF68)+1,0)","v":67},"Cianobactérias",{"$f":"IFERROR(VLOOKUP(ROWS(BH$3:BH69),$BF$3:$BG$298,2,0),\"\")","v":"Cianobactérias"}]
[null,null,null,null,null,null,null,null,null,null,null,null,null,null,null,null,null,null,null,null,null,null,null,null,null,null,null,null,null,null,null,null,null,null,null,null,null,null,null,null,null,null,null,null,null,null,null,null,null,null,null,null,null,null,null,null,null,{"$f":"IF(IFERROR(SEARCH($BG$1,BG70,1),0)>0,MAX(BF$2:BF69)+1,0)","v":68},"Cimoxanil",{"$f":"IFERROR(VLOOKUP(ROWS(BH$3:BH70),$BF$3:$BG$298,2,0),\"\")","v":"Cimoxanil"}]
[null,null,null,null,null,null,null,null,null,null,null,null,null,null,null,null,null,null,null,null,null,null,null,null,null,null,null,null,null,null,null,null,null,null,null,null,null,null,null,null,null,null,null,null,null,null,null,null,null,null,null,null,null,null,null,null,null,{"$f":"IF(IFERROR(SEARCH($BG$1,BG71,1),0)>0,MAX(BF$2:BF70)+1,0)","v":69},"Clorato",{"$f":"IFERROR(VLOOKUP(ROWS(BH$3:BH71),$BF$3:$BG$298,2,0),\"\")","v":"Clorato"}]
[null,null,null,null,null,null,null,null,null,null,null,null,null,null,null,null,null,null,null,null,null,null,null,null,null,null,null,null,null,null,null,null,null,null,null,null,null,null,null,null,null,null,null,null,null,null,null,null,null,null,null,null,null,null,null,null,null,{"$f":"IF(IFERROR(SEARCH($BG$1,BG72,1),0)>0,MAX(BF$2:BF71)+1,0)","v":70},"Cloreto",{"$f":"IFERROR(VLOOKUP(ROWS(BH$3:BH72),$BF$3:$BG$298,2,0),\"\")","v":"Cloreto"}]
[null,null,null,null,null,null,null,null,null,null,null,null,null,null,null,null,null,null,null,null,null,null,null,null,null,null,null,null,null,null,null,null,null,null,null,null,null,null,null,null,null,null,null,null,null,null,null,null,null,null,null,null,null,null,null,null,null,{"$f":"IF(IFERROR(SEARCH($BG$1,BG73,1),0)>0,MAX(BF$2:BF72)+1,0)","v":71},"Cloreto de Vinilo",{"$f":"IFERROR(VLOOKUP(ROWS(BH$3:BH73),$BF$3:$BG$298,2,0),\"\")","v":"Cloreto de Vinilo"}]
[null,null,null,null,null,null,null,null,null,null,null,null,null,null,null,null,null,null,null,null,null,null,null,null,null,null,null,null,null,null,null,null,null,null,null,null,null,null,null,null,null,null,null,null,null,null,null,null,null,null,null,null,null,null,null,null,null,{"$f":"IF(IFERROR(SEARCH($BG$1,BG74,1),0)>0,MAX(BF$2:BF73)+1,0)","v":72},"Clorito",{"$f":"IFERROR(VLOOKUP(ROWS(BH$3:BH74),$BF$3:$BG$298,2,0),\"\")","v":"Clorito"}]
[null,null,null,null,null,null,null,null,null,null,null,null,null,null,null,null,null,null,null,null,null,null,null,null,null,null,null,null,null,null,null,null,null,null,null,null,null,null,null,null,null,null,null,null,null,null,null,null,null,null,null,null,null,null,null,null,null,{"$f":"IF(IFERROR(SEARCH($BG$1,BG75,1),0)>0,MAX(BF$2:BF74)+1,0)","v":73},"Cloro Combinado",{"$f":"IFERROR(VLOOKUP(ROWS(BH$3:BH75),$BF$3:$BG$298,2,0),\"\")","v":"Cloro Combinado"}]
[null,null,null,null,null,null,null,null,null,null,null,null,null,null,null,null,null,null,null,null,null,null,null,null,null,null,null,null,null,null,null,null,null,null,null,null,null,null,null,null,null,null,null,null,null,null,null,null,null,null,null,null,null,null,null,null,null,{"$f":"IF(IFERROR(SEARCH($BG$1,BG76,1),0)>0,MAX(BF$2:BF75)+1,0)","v":74},"Cloro Orgânico Total Extraível",{"$f":"IFERROR(VLOOKUP(ROWS(BH$3:BH76),$BF$3:$BG$298,2,0),\"\")","v":"Cloro Orgânico Total Extraível"}]
[null,null,null,null,null,null,null,null,null,null,null,null,null,null,null,null,null,null,null,null,null,null,null,null,null,null,null,null,null,null,null,null,null,null,null,null,null,null,null,null,null,null,null,null,null,null,null,null,null,null,null,null,null,null,null,null,null,{"$f":"IF(IFERROR(SEARCH($BG$1,BG77,1),0)>0,MAX(BF$2:BF76)+1,0)","v":75},"Cloro Residual Livre",{"$f":"IFERROR(VLOOKUP(ROWS(BH$3:BH77),$BF$3:$BG$298,2,0),\"\")","v":"Cloro Residual Livre"}]
[null,null,null,null,null,null,null,null,null,null,null,null,null,null,null,null,null,null,null,null,null,null,null,null,null,null,null,null,null,null,null,null,null,null,null,null,null,null,null,null,null,null,null,null,null,null,null,null,null,null,null,null,null,null,null,null,null,{"$f":"IF(IFERROR(SEARCH($BG$1,BG78,1),0)>0,MAX(BF$2:BF77)+1,0)","v":76},"Cloro Residual Total",{"$f":"IFERROR(VLOOKUP(ROWS(BH$3:BH78),$BF$3:$BG$298,2,0),\"\")","v":"Cloro Residual Total"}]
[null,null,null,null,null,null,null,null,null,null,null,null,null,null,null,null,null,null,null,null,null,null,null,null,null,null,null,null,null,null,null,null,null,null,null,null,null,null,null,null,null,null,null,null,null,null,null,null,null,null,null,null,null,null,null,null,null,{"$f":"IF(IFERROR(SEARCH($BG$1,BG79,1),0)>0,MAX(BF$2:BF78)+1,0)","v":77},"Clorofenóis",{"$f":"IFERROR(VLOOKUP(ROWS(BH$3:BH79),$BF$3:$BG$298,2,0),\"\")","v":"Clorofenóis"}]
[null,null,null,null,null,null,null,null,null,null,null,null,null,null,null,null,null,null,null,null,null,null,null,null,null,null,null,null,null,null,null,null,null,null,null,null,null,null,null,null,null,null,null,null,null,null,null,null,null,null,null,null,null,null,null,null,null,{"$f":"IF(IFERROR(SEARCH($BG$1,BG80,1),0)>0,MAX(BF$2:BF79)+1,0)","v":78},"Clorofila a",{"$f":"IFERROR(VLOOKUP(ROWS(BH$3:BH80),$BF$3:$BG$298,2,0),\"\")","v":"Clorofila a"}]
[null,null,null,null,null,null,null,null,null,null,null,null,null,null,null,null,null,null,null,null,null,null,null,null,null,null,null,null,null,null,null,null,null,null,null,null,null,null,null,null,null,null,null,null,null,null,null,null,null,null,null,null,null,null,null,null,null,{"$f":"IF(IFERROR(SEARCH($BG$1,BG81,1),0)>0,MAX(BF$2:BF80)+1,0)","v":79},"Clorofórmio",{"$f":"IFERROR(VLOOKUP(ROWS(BH$3:BH81),$BF$3:$BG$298,2,0),\"\")","v":"Clorofórmio"}]
[null,null,null,null,null,null,null,null,null,null,null,null,null,null,null,null,null,null,null,null,null,null,null,null,null,null,null,null,null,null,null,null,null,null,null,null,null,null,null,null,null,null,null,null,null,null,null,null,null,null,null,null,null,null,null,null,null,{"$f":"IF(IFERROR(SEARCH($BG$1,BG82,1),0)>0,MAX(BF$2:BF81)+1,0)","v":80},"Clorpirifos",{"$f":"IFERROR(VLOOKUP(ROWS(BH$3:BH82),$BF$3:$BG$298,2,0),\"\")","v":"Clorpirifos"}]
[null,null,null,null,null,null,null,null,null,null,null,null,null,null,null,null,null,null,null,null,null,null,null,null,null,null,null,null,null,null,null,null,null,null,null,null,null,null,null,null,null,null,null,null,null,null,null,null,null,null,null,null,null,null,null,null,null,{"$f":"IF(IFERROR(SEARCH($BG$1,BG83,1),0)>0,MAX(BF$2:BF82)+1,0)","v":81},"Clortalonil",{"$f":"IFERROR(VLOOKUP(ROWS(BH$3:BH83),$BF$3:$BG$298,2,0),\"\")","v":"Clortalonil"}]
[null,null,null,null,null,null,null,null,null,null,null,null,null,null,null,null,null,null,null,null,null,null,null,null,null,null,null,null,null,null,null,null,null,null,null,null,null,null,null,null,null,null,null,null,null,null,null,null,null,null,null,null,null,null,null,null,null,{"$f":"IF(IFERROR(SEARCH($BG$1,BG84,1),0)>0,MAX(BF$2:BF83)+1,0)","v":82},"Clortolurão",{"$f":"IFERROR(VLOOKUP(ROWS(BH$3:BH84),$BF$3:$BG$298,2,0),\"\")","v":"Clortolurão"}]
[null,null,null,null,null,null,null,null,null,null,null,null,null,null,null,null,null,null,null,null,null,null,null,null,null,null,null,null,null,null,null,null,null,null,null,null,null,null,null,null,null,null,null,null,null,null,null,null,null,null,null,null,null,null,null,null,null,{"$f":"IF(IFERROR(SEARCH($BG$1,BG85,1),0)>0,MAX(BF$2:BF84)+1,0)","v":83},"Clostrídium Perfringens (incluindo esporos)",{"$f":"IFERROR(VLOOKUP(ROWS(BH$3:BH85),$BF$3:$BG$298,2,0),\"\")","v":"Clostrídium Perfringens (incluindo esporos)"}]
[null,null,null,null,null,null,null,null,null,null,null,null,null,null,null,null,null,null,null,null,null,null,null,null,null,null,null,null,null,null,null,null,null,null,null,null,null,null,null,null,null,null,null,null,null,null,null,null,null,null,null,null,null,null,null,null,null,{"$f":"IF(IFERROR(SEARCH($BG$1,BG86,1),0)>0,MAX(BF$2:BF85)+1,0)","v":84},"Cobalto",{"$f":"IFERROR(VLOOKUP(ROWS(BH$3:BH86),$BF$3:$BG$298,2,0),\"\")","v":"Cobalto"}]
[null,null,null,null,null,null,null,null,null,null,null,null,null,null,null,null,null,null,null,null,null,null,null,null,null,null,null,null,null,null,null,null,null,null,null,null,null,null,null,null,null,null,null,null,null,null,null,null,null,null,null,null,null,null,null,null,null,{"$f":"IF(IFERROR(SEARCH($BG$1,BG87,1),0)>0,MAX(BF$2:BF86)+1,0)","v":85},"Cobre",{"$f":"IFERROR(VLOOKUP(ROWS(BH$3:BH87),$BF$3:$BG$298,2,0),\"\")","v":"Cobre"}]
[null,null,null,null,null,null,null,null,null,null,null,null,null,null,null,null,null,null,null,null,null,null,null,null,null,null,null,null,null,null,null,null,null,null,null,null,null,null,null,null,null,null,null,null,null,null,null,null,null,null,null,null,null,null,null,null,null,{"$f":"IF(IFERROR(SEARCH($BG$1,BG88,1),0)>0,MAX(BF$2:BF87)+1,0)","v":86},"Cobre Dissolvido",{"$f":"IFERROR(VLOOKUP(ROWS(BH$3:BH88),$BF$3:$BG$298,2,0),\"\")","v":"Cobre Dissolvido"}]
[null,null,null,null,null,null,null,null,null,null,null,null,null,null,null,null,null,null,null,null,null,null,null,null,null,null,null,null,null,null,null,null,null,null,null,null,null,null,null,null,null,null,null,null,null,null,null,null,null,null,null,null,null,null,null,null,null,{"$f":"IF(IFERROR(SEARCH($BG$1,BG89,1),0)>0,MAX(BF$2:BF88)+1,0)","v":87},"Cobre_PCQA_com Purga",{"$f":"IFERROR(VLOOKUP(ROWS(BH$3:BH89),$BF$3:$BG$298,2,0),\"\")","v":"Cobre_PCQA_com Purga"}]
[null,null,null,null,null,null,null,null,null,null,null,null,null,null,null,null,null,null,null,null,null,null,null,null,null,null,null,null,null,null,null,null,null,null,null,null,null,null,null,null,null,null,null,null,null,null,null,null,null,null,null,null,null,null,null,null,null,{"$f":"IF(IFERROR(SEARCH($BG$1,BG90,1),0)>0,MAX(BF$2:BF89)+1,0)","v":88},"Cobre_PCQA_sem Purga",{"$f":"IFERROR(VLOOKUP(ROWS(BH$3:BH90),$BF$3:$BG$298,2,0),\"\")","v":"Cobre_PCQA_sem Purga"}]
[null,null,null,null,null,null,null,null,null,null,null,null,null,null,null,null,null,null,null,null,null,null,null,null,null,null,null,null,null,null,null,null,null,null,null,null,null,null,null,null,null,null,null,null,null,null,null,null,null,null,null,null,null,null,null,null,null,{"$f":"IF(IFERROR(SEARCH($BG$1,BG91,1),0)>0,MAX(BF$2:BF90)+1,0)","v":89},"Colheita pelo CESAB_F.Q.",{"$f":"IFERROR(VLOOKUP(ROWS(BH$3:BH91),$BF$3:$BG$298,2,0),\"\")","v":"Colheita pelo CESAB_F.Q."}]
[null,null,null,null,null,null,null,null,null,null,null,null,null,null,null,null,null,null,null,null,null,null,null,null,null,null,null,null,null,null,null,null,null,null,null,null,null,null,null,null,null,null,null,null,null,null,null,null,null,null,null,null,null,null,null,null,null,{"$f":"IF(IFERROR(SEARCH($BG$1,BG92,1),0)>0,MAX(BF$2:BF91)+1,0)","v":90},"Colheita pelo CESAB_Microbiológica",{"$f":"IFERROR(VLOOKUP(ROWS(BH$3:BH92),$BF$3:$BG$298,2,0),\"\")","v":"Colheita pelo CESAB_Microbiológica"}]
[null,null,null,null,null,null,null,null,null,null,null,null,null,null,null,null,null,null,null,null,null,null,null,null,null,null,null,null,null,null,null,null,null,null,null,null,null,null,null,null,null,null,null,null,null,null,null,null,null,null,null,null,null,null,null,null,null,{"$f":"IF(IFERROR(SEARCH($BG$1,BG93,1),0)>0,MAX(BF$2:BF92)+1,0)","v":91},"Colheita residual composta_CESAB",{"$f":"IFERROR(VLOOKUP(ROWS(BH$3:BH93),$BF$3:$BG$298,2,0),\"\")","v":"Colheita residual composta_CESAB"}]
[null,null,null,null,null,null,null,null,null,null,null,null,null,null,null,null,null,null,null,null,null,null,null,null,null,null,null,null,null,null,null,null,null,null,null,null,null,null,null,null,null,null,null,null,null,null,null,null,null,null,null,null,null,null,null,null,null,{"$f":"IF(IFERROR(SEARCH($BG$1,BG94,1),0)>0,MAX(BF$2:BF93)+1,0)","v":92},"Colheita residual composta_Cliente",{"$f":"IFERROR(VLOOKUP(ROWS(BH$3:BH94),$BF$3:$BG$298,2,0),\"\")","v":"Colheita residual composta_Cliente"}]
[null,null,null,null,null,null,null,null,null,null,null,null,null,null,null,null,null,null,null,null,null,null,null,null,null,null,null,null,null,null,null,null,null,null,null,null,null,null,null,null,null,null,null,null,null,null,null,null,null,null,null,null,null,null,null,null,null,{"$f":"IF(IFERROR(SEARCH($BG$1,BG95,1),0)>0,MAX(BF$2:BF94)+1,0)","v":93},"Colheita residual simples_ CESAB",{"$f":"IFERROR(VLOOKUP(ROWS(BH$3:BH95),$BF$3:$BG$298,2,0),\"\")","v":"Colheita residual simples_ CESAB"}]
[null,null,null,null,null,null,null,null,null,null,null,null,null,null,null,null,null,null,null,null,null,null,null,null,null,null,null,null,null,null,null,null,null,null,null,null,null,null,null,null,null,null,null,null,null,null,null,null,null,null,null,null,null,null,null,null,null,{"$f":"IF(IFERROR(SEARCH($BG$1,BG96,1),0)>0,MAX(BF$2:BF95)+1,0)","v":94},"Colheita residual simples_ Cliente",{"$f":"IFERROR(VLOOKUP(ROWS(BH$3:BH96),$BF$3:$BG$298,2,0),\"\")","v":"Colheita residual simples_ Cliente"}]
[null,null,null,null,null,null,null,null,null,null,null,null,null,null,null,null,null,null,null,null,null,null,null,null,null,null,null,null,null,null,null,null,null,null,null,null,null,null,null,null,null,null,null,null,null,null,null,null,null,null,null,null,null,null,null,null,null,{"$f":"IF(IFERROR(SEARCH($BG$1,BG97,1),0)>0,MAX(BF$2:BF96)+1,0)","v":95},"Coliformes Fecais_Ág. Bruta/residual",{"$f":"IFERROR(VLOOKUP(ROWS(BH$3:BH97),$BF$3:$BG$298,2,0),\"\")","v":"Coliformes Fecais_Ág. Bruta/residual"}]
[null,null,null,null,null,null,null,null,null,null,null,null,null,null,null,null,null,null,null,null,null,null,null,null,null,null,null,null,null,null,null,null,null,null,null,null,null,null,null,null,null,null,null,null,null,null,null,null,null,null,null,null,null,null,null,null,null,{"$f":"IF(IFERROR(SEARCH($BG$1,BG98,1),0)>0,MAX(BF$2:BF97)+1,0)","v":96},"Coliformes Totais_Ág. Bruta/Residual",{"$f":"IFERROR(VLOOKUP(ROWS(BH$3:BH98),$BF$3:$BG$298,2,0),\"\")","v":"Coliformes Totais_Ág. Bruta/Residual"}]
[null,null,null,null,null,null,null,null,null,null,null,null,null,null,null,null,null,null,null,null,null,null,null,null,null,null,null,null,null,null,null,null,null,null,null,null,null,null,null,null,null,null,null,null,null,null,null,null,null,null,null,null,null,null,null,null,null,{"$f":"IF(IFERROR(SEARCH($BG$1,BG99,1),0)>0,MAX(BF$2:BF98)+1,0)","v":97},"Condutividade",{"$f":"IFERROR(VLOOKUP(ROWS(BH$3:BH99),$BF$3:$BG$298,2,0),\"\")","v":"Condutividade"}]
[null,null,null,null,null,null,null,null,null,null,null,null,null,null,null,null,null,null,null,null,null,null,null,null,null,null,null,null,null,null,null,null,null,null,null,null,null,null,null,null,null,null,null,null,null,null,null,null,null,null,null,null,null,null,null,null,null,{"$f":"IF(IFERROR(SEARCH($BG$1,BG100,1),0)>0,MAX(BF$2:BF99)+1,0)","v":98},"Cor",{"$f":"IFERROR(VLOOKUP(ROWS(BH$3:BH100),$BF$3:$BG$298,2,0),\"\")","v":"Cor"}]
[null,null,null,null,null,null,null,null,null,null,null,null,null,null,null,null,null,null,null,null,null,null,null,null,null,null,null,null,null,null,null,null,null,null,null,null,null,null,null,null,null,null,null,null,null,null,null,null,null,null,null,null,null,null,null,null,null,{"$f":"IF(IFERROR(SEARCH($BG$1,BG101,1),0)>0,MAX(BF$2:BF100)+1,0)","v":99},"Cor (diluição 1:20)-Ág. Residual_Qualitativo",{"$f":"IFERROR(VLOOKUP(ROWS(BH$3:BH101),$BF$3:$BG$298,2,0),\"\")","v":"Cor (diluição 1:20)-Ág. Residual_Qualitativo"}]
[null,null,null,null,null,null,null,null,null,null,null,null,null,null,null,null,null,null,null,null,null,null,null,null,null,null,null,null,null,null,null,null,null,null,null,null,null,null,null,null,null,null,null,null,null,null,null,null,null,null,null,null,null,null,null,null,null,{"$f":"IF(IFERROR(SEARCH($BG$1,BG102,1),0)>0,MAX(BF$2:BF101)+1,0)","v":100},"CQO",{"$f":"IFERROR(VLOOKUP(ROWS(BH$3:BH102),$BF$3:$BG$298,2,0),\"\")","v":"CQO"}]
[null,null,null,null,null,null,null,null,null,null,null,null,null,null,null,null,null,null,null,null,null,null,null,null,null,null,null,null,null,null,null,null,null,null,null,null,null,null,null,null,null,null,null,null,null,null,null,null,null,null,null,null,null,null,null,null,null,{"$f":"IF(IFERROR(SEARCH($BG$1,BG103,1),0)>0,MAX(BF$2:BF102)+1,0)","v":101},"Criseno",{"$f":"IFERROR(VLOOKUP(ROWS(BH$3:BH103),$BF$3:$BG$298,2,0),\"\")","v":"Criseno"}]
[null,null,null,null,null,null,null,null,null,null,null,null,null,null,null,null,null,null,null,null,null,null,null,null,null,null,null,null,null,null,null,null,null,null,null,null,null,null,null,null,null,null,null,null,null,null,null,null,null,null,null,null,null,null,null,null,null,{"$f":"IF(IFERROR(SEARCH($BG$1,BG104,1),0)>0,MAX(BF$2:BF103)+1,0)","v":102},"Crómio",{"$f":"IFERROR(VLOOKUP(ROWS(BH$3:BH104),$BF$3:$BG$298,2,0),\"\")","v":"Crómio"}]
[null,null,null,null,null,null,null,null,null,null,null,null,null,null,null,null,null,null,null,null,null,null,null,null,null,null,null,null,null,null,null,null,null,null,null,null,null,null,null,null,null,null,null,null,null,null,null,null,null,null,null,null,null,null,null,null,null,{"$f":"IF(IFERROR(SEARCH($BG$1,BG105,1),0)>0,MAX(BF$2:BF104)+1,0)","v":103},"Crómio Hexavalente",{"$f":"IFERROR(VLOOKUP(ROWS(BH$3:BH105),$BF$3:$BG$298,2,0),\"\")","v":"Crómio Hexavalente"}]
[null,null,null,null,null,null,null,null,null,null,null,null,null,null,null,null,null,null,null,null,null,null,null,null,null,null,null,null,null,null,null,null,null,null,null,null,null,null,null,null,null,null,null,null,null,null,null,null,null,null,null,null,null,null,null,null,null,{"$f":"IF(IFERROR(SEARCH($BG$1,BG106,1),0)>0,MAX(BF$2:BF105)+1,0)","v":104},"Crómio Trivalente",{"$f":"IFERROR(VLOOKUP(ROWS(BH$3:BH106),$BF$3:$BG$298,2,0),\"\")","v":"Crómio Trivalente"}]
[null,null,null,null,null,null,null,null,null,null,null,null,null,null,null,null,null,null,null,null,null,null,null,null,null,null,null,null,null,null,null,null,null,null,null,null,null,null,null,null,null,null,null,null,null,null,null,null,null,null,null,null,null,null,null,null,null,{"$f":"IF(IFERROR(SEARCH($BG$1,BG107,1),0)>0,MAX(BF$2:BF106)+1,0)","v":105},"Cryptosporidium spp",{"$f":"IFERROR(VLOOKUP(ROWS(BH$3:BH107),$BF$3:$BG$298,2,0),\"\")","v":"Cryptosporidium spp"}]
[null,null,null,null,null,null,null,null,null,null,null,null,null,null,null,null,null,null,null,null,null,null,null,null,null,null,null,null,null,null,null,null,null,null,null,null,null,null,null,null,null,null,null,null,null,null,null,null,null,null,null,null,null,null,null,null,null,{"$f":"IF(IFERROR(SEARCH($BG$1,BG108,1),0)>0,MAX(BF$2:BF107)+1,0)","v":106},"Desetilatrazina",{"$f":"IFERROR(VLOOKUP(ROWS(BH$3:BH108),$BF$3:$BG$298,2,0),\"\")","v":"Desetilatrazina"}]
[null,null,null,null,null,null,null,null,null,null,null,null,null,null,null,null,null,null,null,null,null,null,null,null,null,null,null,null,null,null,null,null,null,null,null,null,null,null,null,null,null,null,null,null,null,null,null,null,null,null,null,null,null,null,null,null,null,{"$f":"IF(IFERROR(SEARCH($BG$1,BG109,1),0)>0,MAX(BF$2:BF108)+1,0)","v":107},"Desetilterbutilazina",{"$f":"IFERROR(VLOOKUP(ROWS(BH$3:BH109),$BF$3:$BG$298,2,0),\"\")","v":"Desetilterbutilazina"}]
[null,null,null,null,null,null,null,null,null,null,null,null,null,null,null,null,null,null,null,null,null,null,null,null,null,null,null,null,null,null,null,null,null,null,null,null,null,null,null,null,null,null,null,null,null,null,null,null,null,null,null,null,null,null,null,null,null,{"$f":"IF(IFERROR(SEARCH($BG$1,BG110,1),0)>0,MAX(BF$2:BF109)+1,0)","v":108},"Desinfectante residual",{"$f":"IFERROR(VLOOKUP(ROWS(BH$3:BH110),$BF$3:$BG$298,2,0),\"\")","v":"Desinfectante residual"}]
[null,null,null,null,null,null,null,null,null,null,null,null,null,null,null,null,null,null,null,null,null,null,null,null,null,null,null,null,null,null,null,null,null,null,null,null,null,null,null,null,null,null,null,null,null,null,null,null,null,null,null,null,null,null,null,null,null,{"$f":"IF(IFERROR(SEARCH($BG$1,BG111,1),0)>0,MAX(BF$2:BF110)+1,0)","v":109},"Desinfetante Residual_Cliente",{"$f":"IFERROR(VLOOKUP(ROWS(BH$3:BH111),$BF$3:$BG$298,2,0),\"\")","v":"Desinfetante Residual_Cliente"}]
[null,null,null,null,null,null,null,null,null,null,null,null,null,null,null,null,null,null,null,null,null,null,null,null,null,null,null,null,null,null,null,null,null,null,null,null,null,null,null,null,null,null,null,null,null,null,null,null,null,null,null,null,null,null,null,null,null,{"$f":"IF(IFERROR(SEARCH($BG$1,BG112,1),0)>0,MAX(BF$2:BF111)+1,0)","v":110},"Detergentes",{"$f":"IFERROR(VLOOKUP(ROWS(BH$3:BH112),$BF$3:$BG$298,2,0),\"\")","v":"Detergentes"}]
[null,null,null,null,null,null,null,null,null,null,null,null,null,null,null,null,null,null,null,null,null,null,null,null,null,null,null,null,null,null,null,null,null,null,null,null,null,null,null,null,null,null,null,null,null,null,null,null,null,null,null,null,null,null,null,null,null,{"$f":"IF(IFERROR(SEARCH($BG$1,BG113,1),0)>0,MAX(BF$2:BF112)+1,0)","v":111},"Detergentes_[Amostragem Pontual]",{"$f":"IFERROR(VLOOKUP(ROWS(BH$3:BH113),$BF$3:$BG$298,2,0),\"\")","v":"Detergentes_[Amostragem Pontual]"}]
[null,null,null,null,null,null,null,null,null,null,null,null,null,null,null,null,null,null,null,null,null,null,null,null,null,null,null,null,null,null,null,null,null,null,null,null,null,null,null,null,null,null,null,null,null,null,null,null,null,null,null,null,null,null,null,null,null,{"$f":"IF(IFERROR(SEARCH($BG$1,BG114,1),0)>0,MAX(BF$2:BF113)+1,0)","v":112},"Diazinão",{"$f":"IFERROR(VLOOKUP(ROWS(BH$3:BH114),$BF$3:$BG$298,2,0),\"\")","v":"Diazinão"}]
[null,null,null,null,null,null,null,null,null,null,null,null,null,null,null,null,null,null,null,null,null,null,null,null,null,null,null,null,null,null,null,null,null,null,null,null,null,null,null,null,null,null,null,null,null,null,null,null,null,null,null,null,null,null,null,null,null,{"$f":"IF(IFERROR(SEARCH($BG$1,BG115,1),0)>0,MAX(BF$2:BF114)+1,0)","v":113},"Dibromoclorometano",{"$f":"IFERROR(VLOOKUP(ROWS(BH$3:BH115),$BF$3:$BG$298,2,0),\"\")","v":"Dibromoclorometano"}]
[null,null,null,null,null,null,null,null,null,null,null,null,null,null,null,null,null,null,null,null,null,null,null,null,null,null,null,null,null,null,null,null,null,null,null,null,null,null,null,null,null,null,null,null,null,null,null,null,null,null,null,null,null,null,null,null,null,{"$f":"IF(IFERROR(SEARCH($BG$1,BG116,1),0)>0,MAX(BF$2:BF115)+1,0)","v":114},"Diclorometano",{"$f":"IFERROR(VLOOKUP(ROWS(BH$3:BH116),$BF$3:$BG$298,2,0),\"\")","v":"Diclorometano"}]
[null,null,null,null,null,null,null,null,null,null,null,null,null,null,null,null,null,null,null,null,null,null,null,null,null,null,null,null,null,null,null,null,null,null,null,null,null,null,null,null,null,null,null,null,null,null,null,null,null,null,null,null,null,null,null,null,null,{"$f":"IF(IFERROR(SEARCH($BG$1,BG117,1),0)>0,MAX(BF$2:BF116)+1,0)","v":115},"Dieldrina",{"$f":"IFERROR(VLOOKUP(ROWS(BH$3:BH117),$BF$3:$BG$298,2,0),\"\")","v":"Dieldrina"}]
[null,null,null,null,null,null,null,null,null,null,null,null,null,null,null,null,null,null,null,null,null,null,null,null,null,null,null,null,null,null,null,null,null,null,null,null,null,null,null,null,null,null,null,null,null,null,null,null,null,null,null,null,null,null,null,null,null,{"$f":"IF(IFERROR(SEARCH($BG$1,BG118,1),0)>0,MAX(BF$2:BF117)+1,0)","v":116},"Dimetoato",{"$f":"IFERROR(VLOOKUP(ROWS(BH$3:BH118),$BF$3:$BG$298,2,0),\"\")","v":"Dimetoato"}]
[null,null,null,null,null,null,null,null,null,null,null,null,null,null,null,null,null,null,null,null,null,null,null,null,null,null,null,null,null,null,null,null,null,null,null,null,null,null,null,null,null,null,null,null,null,null,null,null,null,null,null,null,null,null,null,null,null,{"$f":"IF(IFERROR(SEARCH($BG$1,BG119,1),0)>0,MAX(BF$2:BF118)+1,0)","v":117},"Dióxido de Carbono",{"$f":"IFERROR(VLOOKUP(ROWS(BH$3:BH119),$BF$3:$BG$298,2,0),\"\")","v":"Dióxido de Carbono"}]
[null,null,null,null,null,null,null,null,null,null,null,null,null,null,null,null,null,null,null,null,null,null,null,null,null,null,null,null,null,null,null,null,null,null,null,null,null,null,null,null,null,null,null,null,null,null,null,null,null,null,null,null,null,null,null,null,null,{"$f":"IF(IFERROR(SEARCH($BG$1,BG120,1),0)>0,MAX(BF$2:BF119)+1,0)","v":118},"Dióxido de Cloro",{"$f":"IFERROR(VLOOKUP(ROWS(BH$3:BH120),$BF$3:$BG$298,2,0),\"\")","v":"Dióxido de Cloro"}]
[null,null,null,null,null,null,null,null,null,null,null,null,null,null,null,null,null,null,null,null,null,null,null,null,null,null,null,null,null,null,null,null,null,null,null,null,null,null,null,null,null,null,null,null,null,null,null,null,null,null,null,null,null,null,null,null,null,{"$f":"IF(IFERROR(SEARCH($BG$1,BG121,1),0)>0,MAX(BF$2:BF120)+1,0)","v":119},"Diurão",{"$f":"IFERROR(VLOOKUP(ROWS(BH$3:BH121),$BF$3:$BG$298,2,0),\"\")","v":"Diurão"}]
[null,null,null,null,null,null,null,null,null,null,null,null,null,null,null,null,null,null,null,null,null,null,null,null,null,null,null,null,null,null,null,null,null,null,null,null,null,null,null,null,null,null,null,null,null,null,null,null,null,null,null,null,null,null,null,null,null,{"$f":"IF(IFERROR(SEARCH($BG$1,BG122,1),0)>0,MAX(BF$2:BF121)+1,0)","v":120},"Dose Indicativa_Cálculo_Radionuclídeos",{"$f":"IFERROR(VLOOKUP(ROWS(BH$3:BH122),$BF$3:$BG$298,2,0),\"\")","v":"Dose Indicativa_Cálculo_Radionuclídeos"}]
[null,null,null,null,null,null,null,null,null,null,null,null,null,null,null,null,null,null,null,null,null,null,null,null,null,null,null,null,null,null,null,null,null,null,null,null,null,null,null,null,null,null,null,null,null,null,null,null,null,null,null,null,null,null,null,null,null,{"$f":"IF(IFERROR(SEARCH($BG$1,BG123,1),0)>0,MAX(BF$2:BF122)+1,0)","v":121},"Dose Indicativa_CI (mS/ano)",{"$f":"IFERROR(VLOOKUP(ROWS(BH$3:BH123),$BF$3:$BG$298,2,0),\"\")","v":"Dose Indicativa_CI (mS/ano)"}]
[null,null,null,null,null,null,null,null,null,null,null,null,null,null,null,null,null,null,null,null,null,null,null,null,null,null,null,null,null,null,null,null,null,null,null,null,null,null,null,null,null,null,null,null,null,null,null,null,null,null,null,null,null,null,null,null,null,{"$f":"IF(IFERROR(SEARCH($BG$1,BG124,1),0)>0,MAX(BF$2:BF123)+1,0)","v":122},"Dureza Total",{"$f":"IFERROR(VLOOKUP(ROWS(BH$3:BH124),$BF$3:$BG$298,2,0),\"\")","v":"Dureza Total"}]
[null,null,null,null,null,null,null,null,null,null,null,null,null,null,null,null,null,null,null,null,null,null,null,null,null,null,null,null,null,null,null,null,null,null,null,null,null,null,null,null,null,null,null,null,null,null,null,null,null,null,null,null,null,null,null,null,null,{"$f":"IF(IFERROR(SEARCH($BG$1,BG125,1),0)>0,MAX(BF$2:BF124)+1,0)","v":123},"Enterococos fecais",{"$f":"IFERROR(VLOOKUP(ROWS(BH$3:BH125),$BF$3:$BG$298,2,0),\"\")","v":"Enterococos fecais"}]
[null,null,null,null,null,null,null,null,null,null,null,null,null,null,null,null,null,null,null,null,null,null,null,null,null,null,null,null,null,null,null,null,null,null,null,null,null,null,null,null,null,null,null,null,null,null,null,null,null,null,null,null,null,null,null,null,null,{"$f":"IF(IFERROR(SEARCH($BG$1,BG126,1),0)>0,MAX(BF$2:BF125)+1,0)","v":124},"Enxofre",{"$f":"IFERROR(VLOOKUP(ROWS(BH$3:BH126),$BF$3:$BG$298,2,0),\"\")","v":"Enxofre"}]
[null,null,null,null,null,null,null,null,null,null,null,null,null,null,null,null,null,null,null,null,null,null,null,null,null,null,null,null,null,null,null,null,null,null,null,null,null,null,null,null,null,null,null,null,null,null,null,null,null,null,null,null,null,null,null,null,null,{"$f":"IF(IFERROR(SEARCH($BG$1,BG127,1),0)>0,MAX(BF$2:BF126)+1,0)","v":125},"Epicloridrina",{"$f":"IFERROR(VLOOKUP(ROWS(BH$3:BH127),$BF$3:$BG$298,2,0),\"\")","v":"Epicloridrina"}]
[null,null,null,null,null,null,null,null,null,null,null,null,null,null,null,null,null,null,null,null,null,null,null,null,null,null,null,null,null,null,null,null,null,null,null,null,null,null,null,null,null,null,null,null,null,null,null,null,null,null,null,null,null,null,null,null,null,{"$f":"IF(IFERROR(SEARCH($BG$1,BG128,1),0)>0,MAX(BF$2:BF127)+1,0)","v":126},"EPTC",{"$f":"IFERROR(VLOOKUP(ROWS(BH$3:BH128),$BF$3:$BG$298,2,0),\"\")","v":"EPTC"}]
[null,null,null,null,null,null,null,null,null,null,null,null,null,null,null,null,null,null,null,null,null,null,null,null,null,null,null,null,null,null,null,null,null,null,null,null,null,null,null,null,null,null,null,null,null,null,null,null,null,null,null,null,null,null,null,null,null,{"$f":"IF(IFERROR(SEARCH($BG$1,BG129,1),0)>0,MAX(BF$2:BF128)+1,0)","v":127},"Escherichia coli",{"$f":"IFERROR(VLOOKUP(ROWS(BH$3:BH129),$BF$3:$BG$298,2,0),\"\")","v":"Escherichia coli"}]
[null,null,null,null,null,null,null,null,null,null,null,null,null,null,null,null,null,null,null,null,null,null,null,null,null,null,null,null,null,null,null,null,null,null,null,null,null,null,null,null,null,null,null,null,null,null,null,null,null,null,null,null,null,null,null,null,null,{"$f":"IF(IFERROR(SEARCH($BG$1,BG130,1),0)>0,MAX(BF$2:BF129)+1,0)","v":128},"Estafilococos Produtores de Coagulase",{"$f":"IFERROR(VLOOKUP(ROWS(BH$3:BH130),$BF$3:$BG$298,2,0),\"\")","v":"Estafilococos Produtores de Coagulase"}]
[null,null,null,null,null,null,null,null,null,null,null,null,null,null,null,null,null,null,null,null,null,null,null,null,null,null,null,null,null,null,null,null,null,null,null,null,null,null,null,null,null,null,null,null,null,null,null,null,null,null,null,null,null,null,null,null,null,{"$f":"IF(IFERROR(SEARCH($BG$1,BG131,1),0)>0,MAX(BF$2:BF130)+1,0)","v":129},"Estafilococos Totais",{"$f":"IFERROR(VLOOKUP(ROWS(BH$3:BH131),$BF$3:$BG$298,2,0),\"\")","v":"Estafilococos Totais"}]
[null,null,null,null,null,null,null,null,null,null,null,null,null,null,null,null,null,null,null,null,null,null,null,null,null,null,null,null,null,null,null,null,null,null,null,null,null,null,null,null,null,null,null,null,null,null,null,null,null,null,null,null,null,null,null,null,null,{"$f":"IF(IFERROR(SEARCH($BG$1,BG132,1),0)>0,MAX(BF$2:BF131)+1,0)","v":130},"Estanho",{"$f":"IFERROR(VLOOKUP(ROWS(BH$3:BH132),$BF$3:$BG$298,2,0),\"\")","v":"Estanho"}]
[null,null,null,null,null,null,null,null,null,null,null,null,null,null,null,null,null,null,null,null,null,null,null,null,null,null,null,null,null,null,null,null,null,null,null,null,null,null,null,null,null,null,null,null,null,null,null,null,null,null,null,null,null,null,null,null,null,{"$f":"IF(IFERROR(SEARCH($BG$1,BG133,1),0)>0,MAX(BF$2:BF132)+1,0)","v":131},"Estreptococos Fecais (Enterococos)",{"$f":"IFERROR(VLOOKUP(ROWS(BH$3:BH133),$BF$3:$BG$298,2,0),\"\")","v":"Estreptococos Fecais (Enterococos)"}]
[null,null,null,null,null,null,null,null,null,null,null,null,null,null,null,null,null,null,null,null,null,null,null,null,null,null,null,null,null,null,null,null,null,null,null,null,null,null,null,null,null,null,null,null,null,null,null,null,null,null,null,null,null,null,null,null,null,{"$f":"IF(IFERROR(SEARCH($BG$1,BG134,1),0)>0,MAX(BF$2:BF133)+1,0)","v":132},"Estrôncio",{"$f":"IFERROR(VLOOKUP(ROWS(BH$3:BH134),$BF$3:$BG$298,2,0),\"\")","v":"Estrôncio"}]
[null,null,null,null,null,null,null,null,null,null,null,null,null,null,null,null,null,null,null,null,null,null,null,null,null,null,null,null,null,null,null,null,null,null,null,null,null,null,null,null,null,null,null,null,null,null,null,null,null,null,null,null,null,null,null,null,null,{"$f":"IF(IFERROR(SEARCH($BG$1,BG135,1),0)>0,MAX(BF$2:BF134)+1,0)","v":133},"Estrôncio 90",{"$f":"IFERROR(VLOOKUP(ROWS(BH$3:BH135),$BF$3:$BG$298,2,0),\"\")","v":"Estrôncio 90"}]
[null,null,null,null,null,null,null,null,null,null,null,null,null,null,null,null,null,null,null,null,null,null,null,null,null,null,null,null,null,null,null,null,null,null,null,null,null,null,null,null,null,null,null,null,null,null,null,null,null,null,null,null,null,null,null,null,null,{"$f":"IF(IFERROR(SEARCH($BG$1,BG136,1),0)>0,MAX(BF$2:BF135)+1,0)","v":134},"Etião",{"$f":"IFERROR(VLOOKUP(ROWS(BH$3:BH136),$BF$3:$BG$298,2,0),\"\")","v":"Etião"}]
[null,null,null,null,null,null,null,null,null,null,null,null,null,null,null,null,null,null,null,null,null,null,null,null,null,null,null,null,null,null,null,null,null,null,null,null,null,null,null,null,null,null,null,null,null,null,null,null,null,null,null,null,null,null,null,null,null,{"$f":"IF(IFERROR(SEARCH($BG$1,BG137,1),0)>0,MAX(BF$2:BF136)+1,0)","v":135},"Etilbenzeno",{"$f":"IFERROR(VLOOKUP(ROWS(BH$3:BH137),$BF$3:$BG$298,2,0),\"\")","v":"Etilbenzeno"}]
[null,null,null,null,null,null,null,null,null,null,null,null,null,null,null,null,null,null,null,null,null,null,null,null,null,null,null,null,null,null,null,null,null,null,null,null,null,null,null,null,null,null,null,null,null,null,null,null,null,null,null,null,null,null,null,null,null,{"$f":"IF(IFERROR(SEARCH($BG$1,BG138,1),0)>0,MAX(BF$2:BF137)+1,0)","v":136},"Fenantreno",{"$f":"IFERROR(VLOOKUP(ROWS(BH$3:BH138),$BF$3:$BG$298,2,0),\"\")","v":"Fenantreno"}]
[null,null,null,null,null,null,null,null,null,null,null,null,null,null,null,null,null,null,null,null,null,null,null,null,null,null,null,null,null,null,null,null,null,null,null,null,null,null,null,null,null,null,null,null,null,null,null,null,null,null,null,null,null,null,null,null,null,{"$f":"IF(IFERROR(SEARCH($BG$1,BG139,1),0)>0,MAX(BF$2:BF138)+1,0)","v":137},"Fenóis",{"$f":"IFERROR(VLOOKUP(ROWS(BH$3:BH139),$BF$3:$BG$298,2,0),\"\")","v":"Fenóis"}]
[null,null,null,null,null,null,null,null,null,null,null,null,null,null,null,null,null,null,null,null,null,null,null,null,null,null,null,null,null,null,null,null,null,null,null,null,null,null,null,null,null,null,null,null,null,null,null,null,null,null,null,null,null,null,null,null,null,{"$f":"IF(IFERROR(SEARCH($BG$1,BG140,1),0)>0,MAX(BF$2:BF139)+1,0)","v":138},"Ferro",{"$f":"IFERROR(VLOOKUP(ROWS(BH$3:BH140),$BF$3:$BG$298,2,0),\"\")","v":"Ferro"}]
[null,null,null,null,null,null,null,null,null,null,null,null,null,null,null,null,null,null,null,null,null,null,null,null,null,null,null,null,null,null,null,null,null,null,null,null,null,null,null,null,null,null,null,null,null,null,null,null,null,null,null,null,null,null,null,null,null,{"$f":"IF(IFERROR(SEARCH($BG$1,BG141,1),0)>0,MAX(BF$2:BF140)+1,0)","v":139},"Ferro (III)",{"$f":"IFERROR(VLOOKUP(ROWS(BH$3:BH141),$BF$3:$BG$298,2,0),\"\")","v":"Ferro (III)"}]
[null,null,null,null,null,null,null,null,null,null,null,null,null,null,null,null,null,null,null,null,null,null,null,null,null,null,null,null,null,null,null,null,null,null,null,null,null,null,null,null,null,null,null,null,null,null,null,null,null,null,null,null,null,null,null,null,null,{"$f":"IF(IFERROR(SEARCH($BG$1,BG142,1),0)>0,MAX(BF$2:BF141)+1,0)","v":140},"Ferro dissolvido",{"$f":"IFERROR(VLOOKUP(ROWS(BH$3:BH142),$BF$3:$BG$298,2,0),\"\")","v":"Ferro dissolvido"}]
[null,null,null,null,null,null,null,null,null,null,null,null,null,null,null,null,null,null,null,null,null,null,null,null,null,null,null,null,null,null,null,null,null,null,null,null,null,null,null,null,null,null,null,null,null,null,null,null,null,null,null,null,null,null,null,null,null,{"$f":"IF(IFERROR(SEARCH($BG$1,BG143,1),0)>0,MAX(BF$2:BF142)+1,0)","v":141},"Fitoplancton total",{"$f":"IFERROR(VLOOKUP(ROWS(BH$3:BH143),$BF$3:$BG$298,2,0),\"\")","v":"Fitoplancton total"}]
[null,null,null,null,null,null,null,null,null,null,null,null,null,null,null,null,null,null,null,null,null,null,null,null,null,null,null,null,null,null,null,null,null,null,null,null,null,null,null,null,null,null,null,null,null,null,null,null,null,null,null,null,null,null,null,null,null,{"$f":"IF(IFERROR(SEARCH($BG$1,BG144,1),0)>0,MAX(BF$2:BF143)+1,0)","v":142},"Fluoranteno",{"$f":"IFERROR(VLOOKUP(ROWS(BH$3:BH144),$BF$3:$BG$298,2,0),\"\")","v":"Fluoranteno"}]
[null,null,null,null,null,null,null,null,null,null,null,null,null,null,null,null,null,null,null,null,null,null,null,null,null,null,null,null,null,null,null,null,null,null,null,null,null,null,null,null,null,null,null,null,null,null,null,null,null,null,null,null,null,null,null,null,null,{"$f":"IF(IFERROR(SEARCH($BG$1,BG145,1),0)>0,MAX(BF$2:BF144)+1,0)","v":143},"Fluoretos",{"$f":"IFERROR(VLOOKUP(ROWS(BH$3:BH145),$BF$3:$BG$298,2,0),\"\")","v":"Fluoretos"}]
[null,null,null,null,null,null,null,null,null,null,null,null,null,null,null,null,null,null,null,null,null,null,null,null,null,null,null,null,null,null,null,null,null,null,null,null,null,null,null,null,null,null,null,null,null,null,null,null,null,null,null,null,null,null,null,null,null,{"$f":"IF(IFERROR(SEARCH($BG$1,BG146,1),0)>0,MAX(BF$2:BF145)+1,0)","v":144},"Fosfato",{"$f":"IFERROR(VLOOKUP(ROWS(BH$3:BH146),$BF$3:$BG$298,2,0),\"\")","v":"Fosfato"}]
[null,null,null,null,null,null,null,null,null,null,null,null,null,null,null,null,null,null,null,null,null,null,null,null,null,null,null,null,null,null,null,null,null,null,null,null,null,null,null,null,null,null,null,null,null,null,null,null,null,null,null,null,null,null,null,null,null,{"$f":"IF(IFERROR(SEARCH($BG$1,BG147,1),0)>0,MAX(BF$2:BF146)+1,0)","v":145},"Fósforo Total",{"$f":"IFERROR(VLOOKUP(ROWS(BH$3:BH147),$BF$3:$BG$298,2,0),\"\")","v":"Fósforo Total"}]
[null,null,null,null,null,null,null,null,null,null,null,null,null,null,null,null,null,null,null,null,null,null,null,null,null,null,null,null,null,null,null,null,null,null,null,null,null,null,null,null,null,null,null,null,null,null,null,null,null,null,null,null,null,null,null,null,null,{"$f":"IF(IFERROR(SEARCH($BG$1,BG148,1),0)>0,MAX(BF$2:BF147)+1,0)","v":146},"Fósforo Total_[Amostragem Pontual]",{"$f":"IFERROR(VLOOKUP(ROWS(BH$3:BH148),$BF$3:$BG$298,2,0),\"\")","v":"Fósforo Total_[Amostragem Pontual]"}]
[null,null,null,null,null,null,null,null,null,null,null,null,null,null,null,null,null,null,null,null,null,null,null,null,null,null,null,null,null,null,null,null,null,null,null,null,null,null,null,null,null,null,null,null,null,null,null,null,null,null,null,null,null,null,null,null,null,{"$f":"IF(IFERROR(SEARCH($BG$1,BG149,1),0)>0,MAX(BF$2:BF148)+1,0)","v":147},"Fosmete",{"$f":"IFERROR(VLOOKUP(ROWS(BH$3:BH149),$BF$3:$BG$298,2,0),\"\")","v":"Fosmete"}]
[null,null,null,null,null,null,null,null,null,null,null,null,null,null,null,null,null,null,null,null,null,null,null,null,null,null,null,null,null,null,null,null,null,null,null,null,null,null,null,null,null,null,null,null,null,null,null,null,null,null,null,null,null,null,null,null,null,{"$f":"IF(IFERROR(SEARCH($BG$1,BG150,1),0)>0,MAX(BF$2:BF149)+1,0)","v":148},"Glifosato",{"$f":"IFERROR(VLOOKUP(ROWS(BH$3:BH150),$BF$3:$BG$298,2,0),\"\")","v":"Glifosato"}]
[null,null,null,null,null,null,null,null,null,null,null,null,null,null,null,null,null,null,null,null,null,null,null,null,null,null,null,null,null,null,null,null,null,null,null,null,null,null,null,null,null,null,null,null,null,null,null,null,null,null,null,null,null,null,null,null,null,{"$f":"IF(IFERROR(SEARCH($BG$1,BG151,1),0)>0,MAX(BF$2:BF150)+1,0)","v":149},"Heptacloro",{"$f":"IFERROR(VLOOKUP(ROWS(BH$3:BH151),$BF$3:$BG$298,2,0),\"\")","v":"Heptacloro"}]
[null,null,null,null,null,null,null,null,null,null,null,null,null,null,null,null,null,null,null,null,null,null,null,null,null,null,null,null,null,null,null,null,null,null,null,null,null,null,null,null,null,null,null,null,null,null,null,null,null,null,null,null,null,null,null,null,null,{"$f":"IF(IFERROR(SEARCH($BG$1,BG152,1),0)>0,MAX(BF$2:BF151)+1,0)","v":150},"Heptacloro epóxido",{"$f":"IFERROR(VLOOKUP(ROWS(BH$3:BH152),$BF$3:$BG$298,2,0),\"\")","v":"Heptacloro epóxido"}]
[null,null,null,null,null,null,null,null,null,null,null,null,null,null,null,null,null,null,null,null,null,null,null,null,null,null,null,null,null,null,null,null,null,null,null,null,null,null,null,null,null,null,null,null,null,null,null,null,null,null,null,null,null,null,null,null,null,{"$f":"IF(IFERROR(SEARCH($BG$1,BG153,1),0)>0,MAX(BF$2:BF152)+1,0)","v":151},"Hexaclorobenzeno (HCB)",{"$f":"IFERROR(VLOOKUP(ROWS(BH$3:BH153),$BF$3:$BG$298,2,0),\"\")","v":"Hexaclorobenzeno (HCB)"}]
[null,null,null,null,null,null,null,null,null,null,null,null,null,null,null,null,null,null,null,null,null,null,null,null,null,null,null,null,null,null,null,null,null,null,null,null,null,null,null,null,null,null,null,null,null,null,null,null,null,null,null,null,null,null,null,null,null,{"$f":"IF(IFERROR(SEARCH($BG$1,BG154,1),0)>0,MAX(BF$2:BF153)+1,0)","v":152},"Hexaclorobutadieno(HCBD)",{"$f":"IFERROR(VLOOKUP(ROWS(BH$3:BH154),$BF$3:$BG$298,2,0),\"\")","v":"Hexaclorobutadieno(HCBD)"}]
[null,null,null,null,null,null,null,null,null,null,null,null,null,null,null,null,null,null,null,null,null,null,null,null,null,null,null,null,null,null,null,null,null,null,null,null,null,null,null,null,null,null,null,null,null,null,null,null,null,null,null,null,null,null,null,null,null,{"$f":"IF(IFERROR(SEARCH($BG$1,BG155,1),0)>0,MAX(BF$2:BF154)+1,0)","v":153},"Hexaclorociclohexano",{"$f":"IFERROR(VLOOKUP(ROWS(BH$3:BH155),$BF$3:$BG$298,2,0),\"\")","v":"Hexaclorociclohexano"}]
[null,null,null,null,null,null,null,null,null,null,null,null,null,null,null,null,null,null,null,null,null,null,null,null,null,null,null,null,null,null,null,null,null,null,null,null,null,null,null,null,null,null,null,null,null,null,null,null,null,null,null,null,null,null,null,null,null,{"$f":"IF(IFERROR(SEARCH($BG$1,BG156,1),0)>0,MAX(BF$2:BF155)+1,0)","v":154},"Hidrocarbonetos (C10 a C40)",{"$f":"IFERROR(VLOOKUP(ROWS(BH$3:BH156),$BF$3:$BG$298,2,0),\"\")","v":"Hidrocarbonetos (C10 a C40)"}]
[null,null,null,null,null,null,null,null,null,null,null,null,null,null,null,null,null,null,null,null,null,null,null,null,null,null,null,null,null,null,null,null,null,null,null,null,null,null,null,null,null,null,null,null,null,null,null,null,null,null,null,null,null,null,null,null,null,{"$f":"IF(IFERROR(SEARCH($BG$1,BG157,1),0)>0,MAX(BF$2:BF156)+1,0)","v":155},"Hidrocarbonetos Aromáticos Policíclicos (HAP)",{"$f":"IFERROR(VLOOKUP(ROWS(BH$3:BH157),$BF$3:$BG$298,2,0),\"\")","v":"Hidrocarbonetos Aromáticos Policíclicos (HAP)"}]
[null,null,null,null,null,null,null,null,null,null,null,null,null,null,null,null,null,null,null,null,null,null,null,null,null,null,null,null,null,null,null,null,null,null,null,null,null,null,null,null,null,null,null,null,null,null,null,null,null,null,null,null,null,null,null,null,null,{"$f":"IF(IFERROR(SEARCH($BG$1,BG158,1),0)>0,MAX(BF$2:BF157)+1,0)","v":156},"Hidrocarbonetos Dissolvidos e Emulsionados",{"$f":"IFERROR(VLOOKUP(ROWS(BH$3:BH158),$BF$3:$BG$298,2,0),\"\")","v":"Hidrocarbonetos Dissolvidos e Emulsionados"}]
[null,null,null,null,null,null,null,null,null,null,null,null,null,null,null,null,null,null,null,null,null,null,null,null,null,null,null,null,null,null,null,null,null,null,null,null,null,null,null,null,null,null,null,null,null,null,null,null,null,null,null,null,null,null,null,null,null,{"$f":"IF(IFERROR(SEARCH($BG$1,BG159,1),0)>0,MAX(BF$2:BF158)+1,0)","v":157},"Hidrocarbonetos Totais",{"$f":"IFERROR(VLOOKUP(ROWS(BH$3:BH159),$BF$3:$BG$298,2,0),\"\")","v":"Hidrocarbonetos Totais"}]
[null,null,null,null,null,null,null,null,null,null,null,null,null,null,null,null,null,null,null,null,null,null,null,null,null,null,null,null,null,null,null,null,null,null,null,null,null,null,null,null,null,null,null,null,null,null,null,null,null,null,null,null,null,null,null,null,null,{"$f":"IF(IFERROR(SEARCH($BG$1,BG160,1),0)>0,MAX(BF$2:BF159)+1,0)","v":158},"Humidade",{"$f":"IFERROR(VLOOKUP(ROWS(BH$3:BH160),$BF$3:$BG$298,2,0),\"\")","v":"Humidade"}]
[null,null,null,null,null,null,null,null,null,null,null,null,null,null,null,null,null,null,null,null,null,null,null,null,null,null,null,null,null,null,null,null,null,null,null,null,null,null,null,null,null,null,null,null,null,null,null,null,null,null,null,null,null,null,null,null,null,{"$f":"IF(IFERROR(SEARCH($BG$1,BG161,1),0)>0,MAX(BF$2:BF160)+1,0)","v":159},"Imidaclopride",{"$f":"IFERROR(VLOOKUP(ROWS(BH$3:BH161),$BF$3:$BG$298,2,0),\"\")","v":"Imidaclopride"}]
[null,null,null,null,null,null,null,null,null,null,null,null,null,null,null,null,null,null,null,null,null,null,null,null,null,null,null,null,null,null,null,null,null,null,null,null,null,null,null,null,null,null,null,null,null,null,null,null,null,null,null,null,null,null,null,null,null,{"$f":"IF(IFERROR(SEARCH($BG$1,BG162,1),0)>0,MAX(BF$2:BF161)+1,0)","v":160},"Indeno(1,2,3cd)pireno",{"$f":"IFERROR(VLOOKUP(ROWS(BH$3:BH162),$BF$3:$BG$298,2,0),\"\")","v":"Indeno(1,2,3cd)pireno"}]
[null,null,null,null,null,null,null,null,null,null,null,null,null,null,null,null,null,null,null,null,null,null,null,null,null,null,null,null,null,null,null,null,null,null,null,null,null,null,null,null,null,null,null,null,null,null,null,null,null,null,null,null,null,null,null,null,null,{"$f":"IF(IFERROR(SEARCH($BG$1,BG163,1),0)>0,MAX(BF$2:BF162)+1,0)","v":161},"Langelier (IL)",{"$f":"IFERROR(VLOOKUP(ROWS(BH$3:BH163),$BF$3:$BG$298,2,0),\"\")","v":"Langelier (IL)"}]
[null,null,null,null,null,null,null,null,null,null,null,null,null,null,null,null,null,null,null,null,null,null,null,null,null,null,null,null,null,null,null,null,null,null,null,null,null,null,null,null,null,null,null,null,null,null,null,null,null,null,null,null,null,null,null,null,null,{"$f":"IF(IFERROR(SEARCH($BG$1,BG164,1),0)>0,MAX(BF$2:BF163)+1,0)","v":162},"LAS",{"$f":"IFERROR(VLOOKUP(ROWS(BH$3:BH164),$BF$3:$BG$298,2,0),\"\")","v":"LAS"}]
[null,null,null,null,null,null,null,null,null,null,null,null,null,null,null,null,null,null,null,null,null,null,null,null,null,null,null,null,null,null,null,null,null,null,null,null,null,null,null,null,null,null,null,null,null,null,null,null,null,null,null,null,null,null,null,null,null,{"$f":"IF(IFERROR(SEARCH($BG$1,BG165,1),0)>0,MAX(BF$2:BF164)+1,0)","v":163},"Legionella pneumophila",{"$f":"IFERROR(VLOOKUP(ROWS(BH$3:BH165),$BF$3:$BG$298,2,0),\"\")","v":"Legionella pneumophila"}]
[null,null,null,null,null,null,null,null,null,null,null,null,null,null,null,null,null,null,null,null,null,null,null,null,null,null,null,null,null,null,null,null,null,null,null,null,null,null,null,null,null,null,null,null,null,null,null,null,null,null,null,null,null,null,null,null,null,{"$f":"IF(IFERROR(SEARCH($BG$1,BG166,1),0)>0,MAX(BF$2:BF165)+1,0)","v":164},"Legionella spp.",{"$f":"IFERROR(VLOOKUP(ROWS(BH$3:BH166),$BF$3:$BG$298,2,0),\"\")","v":"Legionella spp."}]
[null,null,null,null,null,null,null,null,null,null,null,null,null,null,null,null,null,null,null,null,null,null,null,null,null,null,null,null,null,null,null,null,null,null,null,null,null,null,null,null,null,null,null,null,null,null,null,null,null,null,null,null,null,null,null,null,null,{"$f":"IF(IFERROR(SEARCH($BG$1,BG167,1),0)>0,MAX(BF$2:BF166)+1,0)","v":165},"Lindano",{"$f":"IFERROR(VLOOKUP(ROWS(BH$3:BH167),$BF$3:$BG$298,2,0),\"\")","v":"Lindano"}]
[null,null,null,null,null,null,null,null,null,null,null,null,null,null,null,null,null,null,null,null,null,null,null,null,null,null,null,null,null,null,null,null,null,null,null,null,null,null,null,null,null,null,null,null,null,null,null,null,null,null,null,null,null,null,null,null,null,{"$f":"IF(IFERROR(SEARCH($BG$1,BG168,1),0)>0,MAX(BF$2:BF167)+1,0)","v":166},"Linurão",{"$f":"IFERROR(VLOOKUP(ROWS(BH$3:BH168),$BF$3:$BG$298,2,0),\"\")","v":"Linurão"}]
[null,null,null,null,null,null,null,null,null,null,null,null,null,null,null,null,null,null,null,null,null,null,null,null,null,null,null,null,null,null,null,null,null,null,null,null,null,null,null,null,null,null,null,null,null,null,null,null,null,null,null,null,null,null,null,null,null,{"$f":"IF(IFERROR(SEARCH($BG$1,BG169,1),0)>0,MAX(BF$2:BF168)+1,0)","v":167},"Lítio",{"$f":"IFERROR(VLOOKUP(ROWS(BH$3:BH169),$BF$3:$BG$298,2,0),\"\")","v":"Lítio"}]
[null,null,null,null,null,null,null,null,null,null,null,null,null,null,null,null,null,null,null,null,null,null,null,null,null,null,null,null,null,null,null,null,null,null,null,null,null,null,null,null,null,null,null,null,null,null,null,null,null,null,null,null,null,null,null,null,null,{"$f":"IF(IFERROR(SEARCH($BG$1,BG170,1),0)>0,MAX(BF$2:BF169)+1,0)","v":168},"m,p -xileno",{"$f":"IFERROR(VLOOKUP(ROWS(BH$3:BH170),$BF$3:$BG$298,2,0),\"\")","v":"m,p -xileno"}]
[null,null,null,null,null,null,null,null,null,null,null,null,null,null,null,null,null,null,null,null,null,null,null,null,null,null,null,null,null,null,null,null,null,null,null,null,null,null,null,null,null,null,null,null,null,null,null,null,null,null,null,null,null,null,null,null,null,{"$f":"IF(IFERROR(SEARCH($BG$1,BG171,1),0)>0,MAX(BF$2:BF170)+1,0)","v":169},"Magnésio",{"$f":"IFERROR(VLOOKUP(ROWS(BH$3:BH171),$BF$3:$BG$298,2,0),\"\")","v":"Magnésio"}]
[null,null,null,null,null,null,null,null,null,null,null,null,null,null,null,null,null,null,null,null,null,null,null,null,null,null,null,null,null,null,null,null,null,null,null,null,null,null,null,null,null,null,null,null,null,null,null,null,null,null,null,null,null,null,null,null,null,{"$f":"IF(IFERROR(SEARCH($BG$1,BG172,1),0)>0,MAX(BF$2:BF171)+1,0)","v":170},"Malatião",{"$f":"IFERROR(VLOOKUP(ROWS(BH$3:BH172),$BF$3:$BG$298,2,0),\"\")","v":"Malatião"}]
[null,null,null,null,null,null,null,null,null,null,null,null,null,null,null,null,null,null,null,null,null,null,null,null,null,null,null,null,null,null,null,null,null,null,null,null,null,null,null,null,null,null,null,null,null,null,null,null,null,null,null,null,null,null,null,null,null,{"$f":"IF(IFERROR(SEARCH($BG$1,BG173,1),0)>0,MAX(BF$2:BF172)+1,0)","v":171},"Mancozebe",{"$f":"IFERROR(VLOOKUP(ROWS(BH$3:BH173),$BF$3:$BG$298,2,0),\"\")","v":"Mancozebe"}]
[null,null,null,null,null,null,null,null,null,null,null,null,null,null,null,null,null,null,null,null,null,null,null,null,null,null,null,null,null,null,null,null,null,null,null,null,null,null,null,null,null,null,null,null,null,null,null,null,null,null,null,null,null,null,null,null,null,{"$f":"IF(IFERROR(SEARCH($BG$1,BG174,1),0)>0,MAX(BF$2:BF173)+1,0)","v":172},"Manganês",{"$f":"IFERROR(VLOOKUP(ROWS(BH$3:BH174),$BF$3:$BG$298,2,0),\"\")","v":"Manganês"}]
[null,null,null,null,null,null,null,null,null,null,null,null,null,null,null,null,null,null,null,null,null,null,null,null,null,null,null,null,null,null,null,null,null,null,null,null,null,null,null,null,null,null,null,null,null,null,null,null,null,null,null,null,null,null,null,null,null,{"$f":"IF(IFERROR(SEARCH($BG$1,BG175,1),0)>0,MAX(BF$2:BF174)+1,0)","v":173},"Matéria Orgânica",{"$f":"IFERROR(VLOOKUP(ROWS(BH$3:BH175),$BF$3:$BG$298,2,0),\"\")","v":"Matéria Orgânica"}]
[null,null,null,null,null,null,null,null,null,null,null,null,null,null,null,null,null,null,null,null,null,null,null,null,null,null,null,null,null,null,null,null,null,null,null,null,null,null,null,null,null,null,null,null,null,null,null,null,null,null,null,null,null,null,null,null,null,{"$f":"IF(IFERROR(SEARCH($BG$1,BG176,1),0)>0,MAX(BF$2:BF175)+1,0)","v":174},"Matéria Seca",{"$f":"IFERROR(VLOOKUP(ROWS(BH$3:BH176),$BF$3:$BG$298,2,0),\"\")","v":"Matéria Seca"}]
[null,null,null,null,null,null,null,null,null,null,null,null,null,null,null,null,null,null,null,null,null,null,null,null,null,null,null,null,null,null,null,null,null,null,null,null,null,null,null,null,null,null,null,null,null,null,null,null,null,null,null,null,null,null,null,null,null,{"$f":"IF(IFERROR(SEARCH($BG$1,BG177,1),0)>0,MAX(BF$2:BF176)+1,0)","v":175},"MCPA",{"$f":"IFERROR(VLOOKUP(ROWS(BH$3:BH177),$BF$3:$BG$298,2,0),\"\")","v":"MCPA"}]
[null,null,null,null,null,null,null,null,null,null,null,null,null,null,null,null,null,null,null,null,null,null,null,null,null,null,null,null,null,null,null,null,null,null,null,null,null,null,null,null,null,null,null,null,null,null,null,null,null,null,null,null,null,null,null,null,null,{"$f":"IF(IFERROR(SEARCH($BG$1,BG178,1),0)>0,MAX(BF$2:BF177)+1,0)","v":176},"MCPP",{"$f":"IFERROR(VLOOKUP(ROWS(BH$3:BH178),$BF$3:$BG$298,2,0),\"\")","v":"MCPP"}]
[null,null,null,null,null,null,null,null,null,null,null,null,null,null,null,null,null,null,null,null,null,null,null,null,null,null,null,null,null,null,null,null,null,null,null,null,null,null,null,null,null,null,null,null,null,null,null,null,null,null,null,null,null,null,null,null,null,{"$f":"IF(IFERROR(SEARCH($BG$1,BG179,1),0)>0,MAX(BF$2:BF178)+1,0)","v":177},"Mercúrio",{"$f":"IFERROR(VLOOKUP(ROWS(BH$3:BH179),$BF$3:$BG$298,2,0),\"\")","v":"Mercúrio"}]
[null,null,null,null,null,null,null,null,null,null,null,null,null,null,null,null,null,null,null,null,null,null,null,null,null,null,null,null,null,null,null,null,null,null,null,null,null,null,null,null,null,null,null,null,null,null,null,null,null,null,null,null,null,null,null,null,null,{"$f":"IF(IFERROR(SEARCH($BG$1,BG180,1),0)>0,MAX(BF$2:BF179)+1,0)","v":178},"Microcistina-LR total",{"$f":"IFERROR(VLOOKUP(ROWS(BH$3:BH180),$BF$3:$BG$298,2,0),\"\")","v":"Microcistina-LR total"}]
[null,null,null,null,null,null,null,null,null,null,null,null,null,null,null,null,null,null,null,null,null,null,null,null,null,null,null,null,null,null,null,null,null,null,null,null,null,null,null,null,null,null,null,null,null,null,null,null,null,null,null,null,null,null,null,null,null,{"$f":"IF(IFERROR(SEARCH($BG$1,BG181,1),0)>0,MAX(BF$2:BF180)+1,0)","v":179},"Microcistinas LR",{"$f":"IFERROR(VLOOKUP(ROWS(BH$3:BH181),$BF$3:$BG$298,2,0),\"\")","v":"Microcistinas LR"}]
[null,null,null,null,null,null,null,null,null,null,null,null,null,null,null,null,null,null,null,null,null,null,null,null,null,null,null,null,null,null,null,null,null,null,null,null,null,null,null,null,null,null,null,null,null,null,null,null,null,null,null,null,null,null,null,null,null,{"$f":"IF(IFERROR(SEARCH($BG$1,BG182,1),0)>0,MAX(BF$2:BF181)+1,0)","v":180},"Microcistinas RR",{"$f":"IFERROR(VLOOKUP(ROWS(BH$3:BH182),$BF$3:$BG$298,2,0),\"\")","v":"Microcistinas RR"}]
[null,null,null,null,null,null,null,null,null,null,null,null,null,null,null,null,null,null,null,null,null,null,null,null,null,null,null,null,null,null,null,null,null,null,null,null,null,null,null,null,null,null,null,null,null,null,null,null,null,null,null,null,null,null,null,null,null,{"$f":"IF(IFERROR(SEARCH($BG$1,BG183,1),0)>0,MAX(BF$2:BF182)+1,0)","v":181},"Microcistinas Totais",{"$f":"IFERROR(VLOOKUP(ROWS(BH$3:BH183),$BF$3:$BG$298,2,0),\"\")","v":"Microcistinas Totais"}]
[null,null,null,null,null,null,null,null,null,null,null,null,null,null,null,null,null,null,null,null,null,null,null,null,null,null,null,null,null,null,null,null,null,null,null,null,null,null,null,null,null,null,null,null,null,null,null,null,null,null,null,null,null,null,null,null,null,{"$f":"IF(IFERROR(SEARCH($BG$1,BG184,1),0)>0,MAX(BF$2:BF183)+1,0)","v":182},"Microcistinas YR",{"$f":"IFERROR(VLOOKUP(ROWS(BH$3:BH184),$BF$3:$BG$298,2,0),\"\")","v":"Microcistinas YR"}]
[null,null,null,null,null,null,null,null,null,null,null,null,null,null,null,null,null,null,null,null,null,null,null,null,null,null,null,null,null,null,null,null,null,null,null,null,null,null,null,null,null,null,null,null,null,null,null,null,null,null,null,null,null,null,null,null,null,{"$f":"IF(IFERROR(SEARCH($BG$1,BG185,1),0)>0,MAX(BF$2:BF184)+1,0)","v":183},"Mineralização Total",{"$f":"IFERROR(VLOOKUP(ROWS(BH$3:BH185),$BF$3:$BG$298,2,0),\"\")","v":"Mineralização Total"}]
[null,null,null,null,null,null,null,null,null,null,null,null,null,null,null,null,null,null,null,null,null,null,null,null,null,null,null,null,null,null,null,null,null,null,null,null,null,null,null,null,null,null,null,null,null,null,null,null,null,null,null,null,null,null,null,null,null,{"$f":"IF(IFERROR(SEARCH($BG$1,BG186,1),0)>0,MAX(BF$2:BF185)+1,0)","v":184},"Molibdénio",{"$f":"IFERROR(VLOOKUP(ROWS(BH$3:BH186),$BF$3:$BG$298,2,0),\"\")","v":"Molibdénio"}]
[null,null,null,null,null,null,null,null,null,null,null,null,null,null,null,null,null,null,null,null,null,null,null,null,null,null,null,null,null,null,null,null,null,null,null,null,null,null,null,null,null,null,null,null,null,null,null,null,null,null,null,null,null,null,null,null,null,{"$f":"IF(IFERROR(SEARCH($BG$1,BG187,1),0)>0,MAX(BF$2:BF186)+1,0)","v":185},"Naftaleno",{"$f":"IFERROR(VLOOKUP(ROWS(BH$3:BH187),$BF$3:$BG$298,2,0),\"\")","v":"Naftaleno"}]
[null,null,null,null,null,null,null,null,null,null,null,null,null,null,null,null,null,null,null,null,null,null,null,null,null,null,null,null,null,null,null,null,null,null,null,null,null,null,null,null,null,null,null,null,null,null,null,null,null,null,null,null,null,null,null,null,null,{"$f":"IF(IFERROR(SEARCH($BG$1,BG188,1),0)>0,MAX(BF$2:BF187)+1,0)","v":186},"Níquel",{"$f":"IFERROR(VLOOKUP(ROWS(BH$3:BH188),$BF$3:$BG$298,2,0),\"\")","v":"Níquel"}]
[null,null,null,null,null,null,null,null,null,null,null,null,null,null,null,null,null,null,null,null,null,null,null,null,null,null,null,null,null,null,null,null,null,null,null,null,null,null,null,null,null,null,null,null,null,null,null,null,null,null,null,null,null,null,null,null,null,{"$f":"IF(IFERROR(SEARCH($BG$1,BG189,1),0)>0,MAX(BF$2:BF188)+1,0)","v":187},"Níquel_PCQA_com Purga",{"$f":"IFERROR(VLOOKUP(ROWS(BH$3:BH189),$BF$3:$BG$298,2,0),\"\")","v":"Níquel_PCQA_com Purga"}]
[null,null,null,null,null,null,null,null,null,null,null,null,null,null,null,null,null,null,null,null,null,null,null,null,null,null,null,null,null,null,null,null,null,null,null,null,null,null,null,null,null,null,null,null,null,null,null,null,null,null,null,null,null,null,null,null,null,{"$f":"IF(IFERROR(SEARCH($BG$1,BG190,1),0)>0,MAX(BF$2:BF189)+1,0)","v":188},"Níquel_PCQA_sem Purga",{"$f":"IFERROR(VLOOKUP(ROWS(BH$3:BH190),$BF$3:$BG$298,2,0),\"\")","v":"Níquel_PCQA_sem Purga"}]
[null,null,null,null,null,null,null,null,null,null,null,null,null,null,null,null,null,null,null,null,null,null,null,null,null,null,null,null,null,null,null,null,null,null,null,null,null,null,null,null,null,null,null,null,null,null,null,null,null,null,null,null,null,null,null,null,null,{"$f":"IF(IFERROR(SEARCH($BG$1,BG191,1),0)>0,MAX(BF$2:BF190)+1,0)","v":189},"Nitratos",{"$f":"IFERROR(VLOOKUP(ROWS(BH$3:BH191),$BF$3:$BG$298,2,0),\"\")","v":"Nitratos"}]
[null,null,null,null,null,null,null,null,null,null,null,null,null,null,null,null,null,null,null,null,null,null,null,null,null,null,null,null,null,null,null,null,null,null,null,null,null,null,null,null,null,null,null,null,null,null,null,null,null,null,null,null,null,null,null,null,null,{"$f":"IF(IFERROR(SEARCH($BG$1,BG192,1),0)>0,MAX(BF$2:BF191)+1,0)","v":190},"Nitrito",{"$f":"IFERROR(VLOOKUP(ROWS(BH$3:BH192),$BF$3:$BG$298,2,0),\"\")","v":"Nitrito"}]
[null,null,null,null,null,null,null,null,null,null,null,null,null,null,null,null,null,null,null,null,null,null,null,null,null,null,null,null,null,null,null,null,null,null,null,null,null,null,null,null,null,null,null,null,null,null,null,null,null,null,null,null,null,null,null,null,null,{"$f":"IF(IFERROR(SEARCH($BG$1,BG193,1),0)>0,MAX(BF$2:BF192)+1,0)","v":191},"Nível Piezométrico",{"$f":"IFERROR(VLOOKUP(ROWS(BH$3:BH193),$BF$3:$BG$298,2,0),\"\")","v":"Nível Piezométrico"}]
[null,null,null,null,null,null,null,null,null,null,null,null,null,null,null,null,null,null,null,null,null,null,null,null,null,null,null,null,null,null,null,null,null,null,null,null,null,null,null,null,null,null,null,null,null,null,null,null,null,null,null,null,null,null,null,null,null,{"$f":"IF(IFERROR(SEARCH($BG$1,BG194,1),0)>0,MAX(BF$2:BF193)+1,0)","v":192},"Número de Colónias a 22 ºC",{"$f":"IFERROR(VLOOKUP(ROWS(BH$3:BH194),$BF$3:$BG$298,2,0),\"\")","v":"Número de Colónias a 22 ºC"}]
[null,null,null,null,null,null,null,null,null,null,null,null,null,null,null,null,null,null,null,null,null,null,null,null,null,null,null,null,null,null,null,null,null,null,null,null,null,null,null,null,null,null,null,null,null,null,null,null,null,null,null,null,null,null,null,null,null,{"$f":"IF(IFERROR(SEARCH($BG$1,BG195,1),0)>0,MAX(BF$2:BF194)+1,0)","v":193},"Número de Colónias a 36 ºC",{"$f":"IFERROR(VLOOKUP(ROWS(BH$3:BH195),$BF$3:$BG$298,2,0),\"\")","v":"Número de Colónias a 36 ºC"}]
[null,null,null,null,null,null,null,null,null,null,null,null,null,null,null,null,null,null,null,null,null,null,null,null,null,null,null,null,null,null,null,null,null,null,null,null,null,null,null,null,null,null,null,null,null,null,null,null,null,null,null,null,null,null,null,null,null,{"$f":"IF(IFERROR(SEARCH($BG$1,BG196,1),0)>0,MAX(BF$2:BF195)+1,0)","v":194},"Óleos e Gorduras",{"$f":"IFERROR(VLOOKUP(ROWS(BH$3:BH196),$BF$3:$BG$298,2,0),\"\")","v":"Óleos e Gorduras"}]
[null,null,null,null,null,null,null,null,null,null,null,null,null,null,null,null,null,null,null,null,null,null,null,null,null,null,null,null,null,null,null,null,null,null,null,null,null,null,null,null,null,null,null,null,null,null,null,null,null,null,null,null,null,null,null,null,null,{"$f":"IF(IFERROR(SEARCH($BG$1,BG197,1),0)>0,MAX(BF$2:BF196)+1,0)","v":195},"Óleos e Gorduras [Amostragem Pontual]",{"$f":"IFERROR(VLOOKUP(ROWS(BH$3:BH197),$BF$3:$BG$298,2,0),\"\")","v":"Óleos e Gorduras [Amostragem Pontual]"}]
[null,null,null,null,null,null,null,null,null,null,null,null,null,null,null,null,null,null,null,null,null,null,null,null,null,null,null,null,null,null,null,null,null,null,null,null,null,null,null,null,null,null,null,null,null,null,null,null,null,null,null,null,null,null,null,null,null,{"$f":"IF(IFERROR(SEARCH($BG$1,BG198,1),0)>0,MAX(BF$2:BF197)+1,0)","v":196},"Óleos Minerais",{"$f":"IFERROR(VLOOKUP(ROWS(BH$3:BH198),$BF$3:$BG$298,2,0),\"\")","v":"Óleos Minerais"}]
[null,null,null,null,null,null,null,null,null,null,null,null,null,null,null,null,null,null,null,null,null,null,null,null,null,null,null,null,null,null,null,null,null,null,null,null,null,null,null,null,null,null,null,null,null,null,null,null,null,null,null,null,null,null,null,null,null,{"$f":"IF(IFERROR(SEARCH($BG$1,BG199,1),0)>0,MAX(BF$2:BF198)+1,0)","v":197},"Ometoato",{"$f":"IFERROR(VLOOKUP(ROWS(BH$3:BH199),$BF$3:$BG$298,2,0),\"\")","v":"Ometoato"}]
[null,null,null,null,null,null,null,null,null,null,null,null,null,null,null,null,null,null,null,null,null,null,null,null,null,null,null,null,null,null,null,null,null,null,null,null,null,null,null,null,null,null,null,null,null,null,null,null,null,null,null,null,null,null,null,null,null,{"$f":"IF(IFERROR(SEARCH($BG$1,BG200,1),0)>0,MAX(BF$2:BF199)+1,0)","v":198},"Ovos de Parasitas Intestinais",{"$f":"IFERROR(VLOOKUP(ROWS(BH$3:BH200),$BF$3:$BG$298,2,0),\"\")","v":"Ovos de Parasitas Intestinais"}]
[null,null,null,null,null,null,null,null,null,null,null,null,null,null,null,null,null,null,null,null,null,null,null,null,null,null,null,null,null,null,null,null,null,null,null,null,null,null,null,null,null,null,null,null,null,null,null,null,null,null,null,null,null,null,null,null,null,{"$f":"IF(IFERROR(SEARCH($BG$1,BG201,1),0)>0,MAX(BF$2:BF200)+1,0)","v":199},"Oxamil",{"$f":"IFERROR(VLOOKUP(ROWS(BH$3:BH201),$BF$3:$BG$298,2,0),\"\")","v":"Oxamil"}]
[null,null,null,null,null,null,null,null,null,null,null,null,null,null,null,null,null,null,null,null,null,null,null,null,null,null,null,null,null,null,null,null,null,null,null,null,null,null,null,null,null,null,null,null,null,null,null,null,null,null,null,null,null,null,null,null,null,{"$f":"IF(IFERROR(SEARCH($BG$1,BG202,1),0)>0,MAX(BF$2:BF201)+1,0)","v":200},"Oxidabilidade",{"$f":"IFERROR(VLOOKUP(ROWS(BH$3:BH202),$BF$3:$BG$298,2,0),\"\")","v":"Oxidabilidade"}]
[null,null,null,null,null,null,null,null,null,null,null,null,null,null,null,null,null,null,null,null,null,null,null,null,null,null,null,null,null,null,null,null,null,null,null,null,null,null,null,null,null,null,null,null,null,null,null,null,null,null,null,null,null,null,null,null,null,{"$f":"IF(IFERROR(SEARCH($BG$1,BG203,1),0)>0,MAX(BF$2:BF202)+1,0)","v":201},"Oxigénio dissolvido (%)",{"$f":"IFERROR(VLOOKUP(ROWS(BH$3:BH203),$BF$3:$BG$298,2,0),\"\")","v":"Oxigénio dissolvido (%)"}]
[null,null,null,null,null,null,null,null,null,null,null,null,null,null,null,null,null,null,null,null,null,null,null,null,null,null,null,null,null,null,null,null,null,null,null,null,null,null,null,null,null,null,null,null,null,null,null,null,null,null,null,null,null,null,null,null,null,{"$f":"IF(IFERROR(SEARCH($BG$1,BG204,1),0)>0,MAX(BF$2:BF203)+1,0)","v":202},"Oxigénio dissolvido (%) [Amostra pontual]",{"$f":"IFERROR(VLOOKUP(ROWS(BH$3:BH204),$BF$3:$BG$298,2,0),\"\")","v":"Oxigénio dissolvido (%) [Amostra pontual]"}]
[null,null,null,null,null,null,null,null,null,null,null,null,null,null,null,null,null,null,null,null,null,null,null,null,null,null,null,null,null,null,null,null,null,null,null,null,null,null,null,null,null,null,null,null,null,null,null,null,null,null,null,null,null,null,null,null,null,{"$f":"IF(IFERROR(SEARCH($BG$1,BG205,1),0)>0,MAX(BF$2:BF204)+1,0)","v":203},"Oxigénio dissolvido (mg/L)",{"$f":"IFERROR(VLOOKUP(ROWS(BH$3:BH205),$BF$3:$BG$298,2,0),\"\")","v":"Oxigénio dissolvido (mg/L)"}]
[null,null,null,null,null,null,null,null,null,null,null,null,null,null,null,null,null,null,null,null,null,null,null,null,null,null,null,null,null,null,null,null,null,null,null,null,null,null,null,null,null,null,null,null,null,null,null,null,null,null,null,null,null,null,null,null,null,{"$f":"IF(IFERROR(SEARCH($BG$1,BG206,1),0)>0,MAX(BF$2:BF205)+1,0)","v":204},"Oxigénio dissolvido (mg/L) [Amostra pontual]",{"$f":"IFERROR(VLOOKUP(ROWS(BH$3:BH206),$BF$3:$BG$298,2,0),\"\")","v":"Oxigénio dissolvido (mg/L) [Amostra pontual]"}]
[null,null,null,null,null,null,null,null,null,null,null,null,null,null,null,null,null,null,null,null,null,null,null,null,null,null,null,null,null,null,null,null,null,null,null,null,null,null,null,null,null,null,null,null,null,null,null,null,null,null,null,null,null,null,null,null,null,{"$f":"IF(IFERROR(SEARCH($BG$1,BG207,1),0)>0,MAX(BF$2:BF206)+1,0)","v":205},"o-xileno",{"$f":"IFERROR(VLOOKUP(ROWS(BH$3:BH207),$BF$3:$BG$298,2,0),\"\")","v":"o-xileno"}]
[null,null,null,null,null,null,null,null,null,null,null,null,null,null,null,null,null,null,null,null,null,null,null,null,null,null,null,null,null,null,null,null,null,null,null,null,null,null,null,null,null,null,null,null,null,null,null,null,null,null,null,null,null,null,null,null,null,{"$f":"IF(IFERROR(SEARCH($BG$1,BG208,1),0)>0,MAX(BF$2:BF207)+1,0)","v":206},"p+m-Xileno",{"$f":"IFERROR(VLOOKUP(ROWS(BH$3:BH208),$BF$3:$BG$298,2,0),\"\")","v":"p+m-Xileno"}]
[null,null,null,null,null,null,null,null,null,null,null,null,null,null,null,null,null,null,null,null,null,null,null,null,null,null,null,null,null,null,null,null,null,null,null,null,null,null,null,null,null,null,null,null,null,null,null,null,null,null,null,null,null,null,null,null,null,{"$f":"IF(IFERROR(SEARCH($BG$1,BG209,1),0)>0,MAX(BF$2:BF208)+1,0)","v":207},"Paraquato",{"$f":"IFERROR(VLOOKUP(ROWS(BH$3:BH209),$BF$3:$BG$298,2,0),\"\")","v":"Paraquato"}]
[null,null,null,null,null,null,null,null,null,null,null,null,null,null,null,null,null,null,null,null,null,null,null,null,null,null,null,null,null,null,null,null,null,null,null,null,null,null,null,null,null,null,null,null,null,null,null,null,null,null,null,null,null,null,null,null,null,{"$f":"IF(IFERROR(SEARCH($BG$1,BG210,1),0)>0,MAX(BF$2:BF209)+1,0)","v":208},"Paratião-etil",{"$f":"IFERROR(VLOOKUP(ROWS(BH$3:BH210),$BF$3:$BG$298,2,0),\"\")","v":"Paratião-etil"}]
[null,null,null,null,null,null,null,null,null,null,null,null,null,null,null,null,null,null,null,null,null,null,null,null,null,null,null,null,null,null,null,null,null,null,null,null,null,null,null,null,null,null,null,null,null,null,null,null,null,null,null,null,null,null,null,null,null,{"$f":"IF(IFERROR(SEARCH($BG$1,BG211,1),0)>0,MAX(BF$2:BF210)+1,0)","v":209},"Paratião-metil",{"$f":"IFERROR(VLOOKUP(ROWS(BH$3:BH211),$BF$3:$BG$298,2,0),\"\")","v":"Paratião-metil"}]
[null,null,null,null,null,null,null,null,null,null,null,null,null,null,null,null,null,null,null,null,null,null,null,null,null,null,null,null,null,null,null,null,null,null,null,null,null,null,null,null,null,null,null,null,null,null,null,null,null,null,null,null,null,null,null,null,null,{"$f":"IF(IFERROR(SEARCH($BG$1,BG212,1),0)>0,MAX(BF$2:BF211)+1,0)","v":210},"PCB 101",{"$f":"IFERROR(VLOOKUP(ROWS(BH$3:BH212),$BF$3:$BG$298,2,0),\"\")","v":"PCB 101"}]
[null,null,null,null,null,null,null,null,null,null,null,null,null,null,null,null,null,null,null,null,null,null,null,null,null,null,null,null,null,null,null,null,null,null,null,null,null,null,null,null,null,null,null,null,null,null,null,null,null,null,null,null,null,null,null,null,null,{"$f":"IF(IFERROR(SEARCH($BG$1,BG213,1),0)>0,MAX(BF$2:BF212)+1,0)","v":211},"PCB 118",{"$f":"IFERROR(VLOOKUP(ROWS(BH$3:BH213),$BF$3:$BG$298,2,0),\"\")","v":"PCB 118"}]
[null,null,null,null,null,null,null,null,null,null,null,null,null,null,null,null,null,null,null,null,null,null,null,null,null,null,null,null,null,null,null,null,null,null,null,null,null,null,null,null,null,null,null,null,null,null,null,null,null,null,null,null,null,null,null,null,null,{"$f":"IF(IFERROR(SEARCH($BG$1,BG214,1),0)>0,MAX(BF$2:BF213)+1,0)","v":212},"PCB 138",{"$f":"IFERROR(VLOOKUP(ROWS(BH$3:BH214),$BF$3:$BG$298,2,0),\"\")","v":"PCB 138"}]
[null,null,null,null,null,null,null,null,null,null,null,null,null,null,null,null,null,null,null,null,null,null,null,null,null,null,null,null,null,null,null,null,null,null,null,null,null,null,null,null,null,null,null,null,null,null,null,null,null,null,null,null,null,null,null,null,null,{"$f":"IF(IFERROR(SEARCH($BG$1,BG215,1),0)>0,MAX(BF$2:BF214)+1,0)","v":213},"PCB 153",{"$f":"IFERROR(VLOOKUP(ROWS(BH$3:BH215),$BF$3:$BG$298,2,0),\"\")","v":"PCB 153"}]
[null,null,null,null,null,null,null,null,null,null,null,null,null,null,null,null,null,null,null,null,null,null,null,null,null,null,null,null,null,null,null,null,null,null,null,null,null,null,null,null,null,null,null,null,null,null,null,null,null,null,null,null,null,null,null,null,null,{"$f":"IF(IFERROR(SEARCH($BG$1,BG216,1),0)>0,MAX(BF$2:BF215)+1,0)","v":214},"PCB 180",{"$f":"IFERROR(VLOOKUP(ROWS(BH$3:BH216),$BF$3:$BG$298,2,0),\"\")","v":"PCB 180"}]
[null,null,null,null,null,null,null,null,null,null,null,null,null,null,null,null,null,null,null,null,null,null,null,null,null,null,null,null,null,null,null,null,null,null,null,null,null,null,null,null,null,null,null,null,null,null,null,null,null,null,null,null,null,null,null,null,null,{"$f":"IF(IFERROR(SEARCH($BG$1,BG217,1),0)>0,MAX(BF$2:BF216)+1,0)","v":215},"PCB 28",{"$f":"IFERROR(VLOOKUP(ROWS(BH$3:BH217),$BF$3:$BG$298,2,0),\"\")","v":"PCB 28"}]
[null,null,null,null,null,null,null,null,null,null,null,null,null,null,null,null,null,null,null,null,null,null,null,null,null,null,null,null,null,null,null,null,null,null,null,null,null,null,null,null,null,null,null,null,null,null,null,null,null,null,null,null,null,null,null,null,null,{"$f":"IF(IFERROR(SEARCH($BG$1,BG218,1),0)>0,MAX(BF$2:BF217)+1,0)","v":216},"PCB 52",{"$f":"IFERROR(VLOOKUP(ROWS(BH$3:BH218),$BF$3:$BG$298,2,0),\"\")","v":"PCB 52"}]
[null,null,null,null,null,null,null,null,null,null,null,null,null,null,null,null,null,null,null,null,null,null,null,null,null,null,null,null,null,null,null,null,null,null,null,null,null,null,null,null,null,null,null,null,null,null,null,null,null,null,null,null,null,null,null,null,null,{"$f":"IF(IFERROR(SEARCH($BG$1,BG219,1),0)>0,MAX(BF$2:BF218)+1,0)","v":217},"Pesquisa de Ovos de Parasitas Intestinais",{"$f":"IFERROR(VLOOKUP(ROWS(BH$3:BH219),$BF$3:$BG$298,2,0),\"\")","v":"Pesquisa de Ovos de Parasitas Intestinais"}]
[null,null,null,null,null,null,null,null,null,null,null,null,null,null,null,null,null,null,null,null,null,null,null,null,null,null,null,null,null,null,null,null,null,null,null,null,null,null,null,null,null,null,null,null,null,null,null,null,null,null,null,null,null,null,null,null,null,{"$f":"IF(IFERROR(SEARCH($BG$1,BG220,1),0)>0,MAX(BF$2:BF219)+1,0)","v":218},"Pesticidas Totais",{"$f":"IFERROR(VLOOKUP(ROWS(BH$3:BH220),$BF$3:$BG$298,2,0),\"\")","v":"Pesticidas Totais"}]
[null,null,null,null,null,null,null,null,null,null,null,null,null,null,null,null,null,null,null,null,null,null,null,null,null,null,null,null,null,null,null,null,null,null,null,null,null,null,null,null,null,null,null,null,null,null,null,null,null,null,null,null,null,null,null,null,null,{"$f":"IF(IFERROR(SEARCH($BG$1,BG221,1),0)>0,MAX(BF$2:BF220)+1,0)","v":219},"pH",{"$f":"IFERROR(VLOOKUP(ROWS(BH$3:BH221),$BF$3:$BG$298,2,0),\"\")","v":"pH"}]
[null,null,null,null,null,null,null,null,null,null,null,null,null,null,null,null,null,null,null,null,null,null,null,null,null,null,null,null,null,null,null,null,null,null,null,null,null,null,null,null,null,null,null,null,null,null,null,null,null,null,null,null,null,null,null,null,null,{"$f":"IF(IFERROR(SEARCH($BG$1,BG222,1),0)>0,MAX(BF$2:BF221)+1,0)","v":220},"pH [Amostragem Pontual]",{"$f":"IFERROR(VLOOKUP(ROWS(BH$3:BH222),$BF$3:$BG$298,2,0),\"\")","v":"pH [Amostragem Pontual]"}]
[null,null,null,null,null,null,null,null,null,null,null,null,null,null,null,null,null,null,null,null,null,null,null,null,null,null,null,null,null,null,null,null,null,null,null,null,null,null,null,null,null,null,null,null,null,null,null,null,null,null,null,null,null,null,null,null,null,{"$f":"IF(IFERROR(SEARCH($BG$1,BG223,1),0)>0,MAX(BF$2:BF222)+1,0)","v":221},"Pireno",{"$f":"IFERROR(VLOOKUP(ROWS(BH$3:BH223),$BF$3:$BG$298,2,0),\"\")","v":"Pireno"}]
[null,null,null,null,null,null,null,null,null,null,null,null,null,null,null,null,null,null,null,null,null,null,null,null,null,null,null,null,null,null,null,null,null,null,null,null,null,null,null,null,null,null,null,null,null,null,null,null,null,null,null,null,null,null,null,null,null,{"$f":"IF(IFERROR(SEARCH($BG$1,BG224,1),0)>0,MAX(BF$2:BF223)+1,0)","v":222},"Pirimetanil",{"$f":"IFERROR(VLOOKUP(ROWS(BH$3:BH224),$BF$3:$BG$298,2,0),\"\")","v":"Pirimetanil"}]
[null,null,null,null,null,null,null,null,null,null,null,null,null,null,null,null,null,null,null,null,null,null,null,null,null,null,null,null,null,null,null,null,null,null,null,null,null,null,null,null,null,null,null,null,null,null,null,null,null,null,null,null,null,null,null,null,null,{"$f":"IF(IFERROR(SEARCH($BG$1,BG225,1),0)>0,MAX(BF$2:BF224)+1,0)","v":223},"Poder Calorífico Inferior (PCI)",{"$f":"IFERROR(VLOOKUP(ROWS(BH$3:BH225),$BF$3:$BG$298,2,0),\"\")","v":"Poder Calorífico Inferior (PCI)"}]
[null,null,null,null,null,null,null,null,null,null,null,null,null,null,null,null,null,null,null,null,null,null,null,null,null,null,null,null,null,null,null,null,null,null,null,null,null,null,null,null,null,null,null,null,null,null,null,null,null,null,null,null,null,null,null,null,null,{"$f":"IF(IFERROR(SEARCH($BG$1,BG226,1),0)>0,MAX(BF$2:BF225)+1,0)","v":224},"Polifenóis",{"$f":"IFERROR(VLOOKUP(ROWS(BH$3:BH226),$BF$3:$BG$298,2,0),\"\")","v":"Polifenóis"}]
[null,null,null,null,null,null,null,null,null,null,null,null,null,null,null,null,null,null,null,null,null,null,null,null,null,null,null,null,null,null,null,null,null,null,null,null,null,null,null,null,null,null,null,null,null,null,null,null,null,null,null,null,null,null,null,null,null,{"$f":"IF(IFERROR(SEARCH($BG$1,BG227,1),0)>0,MAX(BF$2:BF226)+1,0)","v":225},"Polónio 210",{"$f":"IFERROR(VLOOKUP(ROWS(BH$3:BH227),$BF$3:$BG$298,2,0),\"\")","v":"Polónio 210"}]
[null,null,null,null,null,null,null,null,null,null,null,null,null,null,null,null,null,null,null,null,null,null,null,null,null,null,null,null,null,null,null,null,null,null,null,null,null,null,null,null,null,null,null,null,null,null,null,null,null,null,null,null,null,null,null,null,null,{"$f":"IF(IFERROR(SEARCH($BG$1,BG228,1),0)>0,MAX(BF$2:BF227)+1,0)","v":226},"Potássio",{"$f":"IFERROR(VLOOKUP(ROWS(BH$3:BH228),$BF$3:$BG$298,2,0),\"\")","v":"Potássio"}]
[null,null,null,null,null,null,null,null,null,null,null,null,null,null,null,null,null,null,null,null,null,null,null,null,null,null,null,null,null,null,null,null,null,null,null,null,null,null,null,null,null,null,null,null,null,null,null,null,null,null,null,null,null,null,null,null,null,{"$f":"IF(IFERROR(SEARCH($BG$1,BG229,1),0)>0,MAX(BF$2:BF228)+1,0)","v":227},"Potencial Redox",{"$f":"IFERROR(VLOOKUP(ROWS(BH$3:BH229),$BF$3:$BG$298,2,0),\"\")","v":"Potencial Redox"}]
[null,null,null,null,null,null,null,null,null,null,null,null,null,null,null,null,null,null,null,null,null,null,null,null,null,null,null,null,null,null,null,null,null,null,null,null,null,null,null,null,null,null,null,null,null,null,null,null,null,null,null,null,null,null,null,null,null,{"$f":"IF(IFERROR(SEARCH($BG$1,BG230,1),0)>0,MAX(BF$2:BF229)+1,0)","v":228},"Prata",{"$f":"IFERROR(VLOOKUP(ROWS(BH$3:BH230),$BF$3:$BG$298,2,0),\"\")","v":"Prata"}]
[null,null,null,null,null,null,null,null,null,null,null,null,null,null,null,null,null,null,null,null,null,null,null,null,null,null,null,null,null,null,null,null,null,null,null,null,null,null,null,null,null,null,null,null,null,null,null,null,null,null,null,null,null,null,null,null,null,{"$f":"IF(IFERROR(SEARCH($BG$1,BG231,1),0)>0,MAX(BF$2:BF230)+1,0)","v":229},"Profundidade da Captação",{"$f":"IFERROR(VLOOKUP(ROWS(BH$3:BH231),$BF$3:$BG$298,2,0),\"\")","v":"Profundidade da Captação"}]
[null,null,null,null,null,null,null,null,null,null,null,null,null,null,null,null,null,null,null,null,null,null,null,null,null,null,null,null,null,null,null,null,null,null,null,null,null,null,null,null,null,null,null,null,null,null,null,null,null,null,null,null,null,null,null,null,null,{"$f":"IF(IFERROR(SEARCH($BG$1,BG232,1),0)>0,MAX(BF$2:BF231)+1,0)","v":230},"Profundidade de Secchi",{"$f":"IFERROR(VLOOKUP(ROWS(BH$3:BH232),$BF$3:$BG$298,2,0),\"\")","v":"Profundidade de Secchi"}]
[null,null,null,null,null,null,null,null,null,null,null,null,null,null,null,null,null,null,null,null,null,null,null,null,null,null,null,null,null,null,null,null,null,null,null,null,null,null,null,null,null,null,null,null,null,null,null,null,null,null,null,null,null,null,null,null,null,{"$f":"IF(IFERROR(SEARCH($BG$1,BG233,1),0)>0,MAX(BF$2:BF232)+1,0)","v":231},"Propilenotiureia",{"$f":"IFERROR(VLOOKUP(ROWS(BH$3:BH233),$BF$3:$BG$298,2,0),\"\")","v":"Propilenotiureia"}]
[null,null,null,null,null,null,null,null,null,null,null,null,null,null,null,null,null,null,null,null,null,null,null,null,null,null,null,null,null,null,null,null,null,null,null,null,null,null,null,null,null,null,null,null,null,null,null,null,null,null,null,null,null,null,null,null,null,{"$f":"IF(IFERROR(SEARCH($BG$1,BG234,1),0)>0,MAX(BF$2:BF233)+1,0)","v":232},"Pseudomonas aeruginosa",{"$f":"IFERROR(VLOOKUP(ROWS(BH$3:BH234),$BF$3:$BG$298,2,0),\"\")","v":"Pseudomonas aeruginosa"}]
[null,null,null,null,null,null,null,null,null,null,null,null,null,null,null,null,null,null,null,null,null,null,null,null,null,null,null,null,null,null,null,null,null,null,null,null,null,null,null,null,null,null,null,null,null,null,null,null,null,null,null,null,null,null,null,null,null,{"$f":"IF(IFERROR(SEARCH($BG$1,BG235,1),0)>0,MAX(BF$2:BF234)+1,0)","v":233},"p-xileno",{"$f":"IFERROR(VLOOKUP(ROWS(BH$3:BH235),$BF$3:$BG$298,2,0),\"\")","v":"p-xileno"}]
[null,null,null,null,null,null,null,null,null,null,null,null,null,null,null,null,null,null,null,null,null,null,null,null,null,null,null,null,null,null,null,null,null,null,null,null,null,null,null,null,null,null,null,null,null,null,null,null,null,null,null,null,null,null,null,null,null,{"$f":"IF(IFERROR(SEARCH($BG$1,BG236,1),0)>0,MAX(BF$2:BF235)+1,0)","v":234},"Radão",{"$f":"IFERROR(VLOOKUP(ROWS(BH$3:BH236),$BF$3:$BG$298,2,0),\"\")","v":"Radão"}]
[null,null,null,null,null,null,null,null,null,null,null,null,null,null,null,null,null,null,null,null,null,null,null,null,null,null,null,null,null,null,null,null,null,null,null,null,null,null,null,null,null,null,null,null,null,null,null,null,null,null,null,null,null,null,null,null,null,{"$f":"IF(IFERROR(SEARCH($BG$1,BG237,1),0)>0,MAX(BF$2:BF236)+1,0)","v":235},"Rádio 226",{"$f":"IFERROR(VLOOKUP(ROWS(BH$3:BH237),$BF$3:$BG$298,2,0),\"\")","v":"Rádio 226"}]
[null,null,null,null,null,null,null,null,null,null,null,null,null,null,null,null,null,null,null,null,null,null,null,null,null,null,null,null,null,null,null,null,null,null,null,null,null,null,null,null,null,null,null,null,null,null,null,null,null,null,null,null,null,null,null,null,null,{"$f":"IF(IFERROR(SEARCH($BG$1,BG238,1),0)>0,MAX(BF$2:BF237)+1,0)","v":236},"Rádio 228",{"$f":"IFERROR(VLOOKUP(ROWS(BH$3:BH238),$BF$3:$BG$298,2,0),\"\")","v":"Rádio 228"}]
[null,null,null,null,null,null,null,null,null,null,null,null,null,null,null,null,null,null,null,null,null,null,null,null,null,null,null,null,null,null,null,null,null,null,null,null,null,null,null,null,null,null,null,null,null,null,null,null,null,null,null,null,null,null,null,null,null,{"$f":"IF(IFERROR(SEARCH($BG$1,BG239,1),0)>0,MAX(BF$2:BF238)+1,0)","v":237},"Resistividade",{"$f":"IFERROR(VLOOKUP(ROWS(BH$3:BH239),$BF$3:$BG$298,2,0),\"\")","v":"Resistividade"}]
[null,null,null,null,null,null,null,null,null,null,null,null,null,null,null,null,null,null,null,null,null,null,null,null,null,null,null,null,null,null,null,null,null,null,null,null,null,null,null,null,null,null,null,null,null,null,null,null,null,null,null,null,null,null,null,null,null,{"$f":"IF(IFERROR(SEARCH($BG$1,BG240,1),0)>0,MAX(BF$2:BF239)+1,0)","v":238},"S.A.R Ajustado",{"$f":"IFERROR(VLOOKUP(ROWS(BH$3:BH240),$BF$3:$BG$298,2,0),\"\")","v":"S.A.R Ajustado"}]
[null,null,null,null,null,null,null,null,null,null,null,null,null,null,null,null,null,null,null,null,null,null,null,null,null,null,null,null,null,null,null,null,null,null,null,null,null,null,null,null,null,null,null,null,null,null,null,null,null,null,null,null,null,null,null,null,null,{"$f":"IF(IFERROR(SEARCH($BG$1,BG241,1),0)>0,MAX(BF$2:BF240)+1,0)","v":239},"S.A.R.",{"$f":"IFERROR(VLOOKUP(ROWS(BH$3:BH241),$BF$3:$BG$298,2,0),\"\")","v":"S.A.R."}]
[null,null,null,null,null,null,null,null,null,null,null,null,null,null,null,null,null,null,null,null,null,null,null,null,null,null,null,null,null,null,null,null,null,null,null,null,null,null,null,null,null,null,null,null,null,null,null,null,null,null,null,null,null,null,null,null,null,{"$f":"IF(IFERROR(SEARCH($BG$1,BG242,1),0)>0,MAX(BF$2:BF241)+1,0)","v":240},"Sabor, a 25ºC",{"$f":"IFERROR(VLOOKUP(ROWS(BH$3:BH242),$BF$3:$BG$298,2,0),\"\")","v":"Sabor, a 25ºC"}]
[null,null,null,null,null,null,null,null,null,null,null,null,null,null,null,null,null,null,null,null,null,null,null,null,null,null,null,null,null,null,null,null,null,null,null,null,null,null,null,null,null,null,null,null,null,null,null,null,null,null,null,null,null,null,null,null,null,{"$f":"IF(IFERROR(SEARCH($BG$1,BG243,1),0)>0,MAX(BF$2:BF242)+1,0)","v":241},"Salinidade",{"$f":"IFERROR(VLOOKUP(ROWS(BH$3:BH243),$BF$3:$BG$298,2,0),\"\")","v":"Salinidade"}]
[null,null,null,null,null,null,null,null,null,null,null,null,null,null,null,null,null,null,null,null,null,null,null,null,null,null,null,null,null,null,null,null,null,null,null,null,null,null,null,null,null,null,null,null,null,null,null,null,null,null,null,null,null,null,null,null,null,{"$f":"IF(IFERROR(SEARCH($BG$1,BG244,1),0)>0,MAX(BF$2:BF243)+1,0)","v":242},"Salinidade (CE)",{"$f":"IFERROR(VLOOKUP(ROWS(BH$3:BH244),$BF$3:$BG$298,2,0),\"\")","v":"Salinidade (CE)"}]
[null,null,null,null,null,null,null,null,null,null,null,null,null,null,null,null,null,null,null,null,null,null,null,null,null,null,null,null,null,null,null,null,null,null,null,null,null,null,null,null,null,null,null,null,null,null,null,null,null,null,null,null,null,null,null,null,null,{"$f":"IF(IFERROR(SEARCH($BG$1,BG245,1),0)>0,MAX(BF$2:BF244)+1,0)","v":243},"Salmonela (5000 mL)",{"$f":"IFERROR(VLOOKUP(ROWS(BH$3:BH245),$BF$3:$BG$298,2,0),\"\")","v":"Salmonela (5000 mL)"}]
[null,null,null,null,null,null,null,null,null,null,null,null,null,null,null,null,null,null,null,null,null,null,null,null,null,null,null,null,null,null,null,null,null,null,null,null,null,null,null,null,null,null,null,null,null,null,null,null,null,null,null,null,null,null,null,null,null,{"$f":"IF(IFERROR(SEARCH($BG$1,BG246,1),0)>0,MAX(BF$2:BF245)+1,0)","v":244},"Salmonella (1000 mL)",{"$f":"IFERROR(VLOOKUP(ROWS(BH$3:BH246),$BF$3:$BG$298,2,0),\"\")","v":"Salmonella (1000 mL)"}]
[null,null,null,null,null,null,null,null,null,null,null,null,null,null,null,null,null,null,null,null,null,null,null,null,null,null,null,null,null,null,null,null,null,null,null,null,null,null,null,null,null,null,null,null,null,null,null,null,null,null,null,null,null,null,null,null,null,{"$f":"IF(IFERROR(SEARCH($BG$1,BG247,1),0)>0,MAX(BF$2:BF246)+1,0)","v":245},"Salmonella_Lamas",{"$f":"IFERROR(VLOOKUP(ROWS(BH$3:BH247),$BF$3:$BG$298,2,0),\"\")","v":"Salmonella_Lamas"}]
[null,null,null,null,null,null,null,null,null,null,null,null,null,null,null,null,null,null,null,null,null,null,null,null,null,null,null,null,null,null,null,null,null,null,null,null,null,null,null,null,null,null,null,null,null,null,null,null,null,null,null,null,null,null,null,null,null,{"$f":"IF(IFERROR(SEARCH($BG$1,BG248,1),0)>0,MAX(BF$2:BF247)+1,0)","v":246},"Selénio",{"$f":"IFERROR(VLOOKUP(ROWS(BH$3:BH248),$BF$3:$BG$298,2,0),\"\")","v":"Selénio"}]
[null,null,null,null,null,null,null,null,null,null,null,null,null,null,null,null,null,null,null,null,null,null,null,null,null,null,null,null,null,null,null,null,null,null,null,null,null,null,null,null,null,null,null,null,null,null,null,null,null,null,null,null,null,null,null,null,null,{"$f":"IF(IFERROR(SEARCH($BG$1,BG249,1),0)>0,MAX(BF$2:BF248)+1,0)","v":247},"Sílica",{"$f":"IFERROR(VLOOKUP(ROWS(BH$3:BH249),$BF$3:$BG$298,2,0),\"\")","v":"Sílica"}]
[null,null,null,null,null,null,null,null,null,null,null,null,null,null,null,null,null,null,null,null,null,null,null,null,null,null,null,null,null,null,null,null,null,null,null,null,null,null,null,null,null,null,null,null,null,null,null,null,null,null,null,null,null,null,null,null,null,{"$f":"IF(IFERROR(SEARCH($BG$1,BG250,1),0)>0,MAX(BF$2:BF249)+1,0)","v":248},"Simazina",{"$f":"IFERROR(VLOOKUP(ROWS(BH$3:BH250),$BF$3:$BG$298,2,0),\"\")","v":"Simazina"}]
[null,null,null,null,null,null,null,null,null,null,null,null,null,null,null,null,null,null,null,null,null,null,null,null,null,null,null,null,null,null,null,null,null,null,null,null,null,null,null,null,null,null,null,null,null,null,null,null,null,null,null,null,null,null,null,null,null,{"$f":"IF(IFERROR(SEARCH($BG$1,BG251,1),0)>0,MAX(BF$2:BF250)+1,0)","v":249},"S-Metolacloro",{"$f":"IFERROR(VLOOKUP(ROWS(BH$3:BH251),$BF$3:$BG$298,2,0),\"\")","v":"S-Metolacloro"}]
[null,null,null,null,null,null,null,null,null,null,null,null,null,null,null,null,null,null,null,null,null,null,null,null,null,null,null,null,null,null,null,null,null,null,null,null,null,null,null,null,null,null,null,null,null,null,null,null,null,null,null,null,null,null,null,null,null,{"$f":"IF(IFERROR(SEARCH($BG$1,BG252,1),0)>0,MAX(BF$2:BF251)+1,0)","v":250},"Sódio",{"$f":"IFERROR(VLOOKUP(ROWS(BH$3:BH252),$BF$3:$BG$298,2,0),\"\")","v":"Sódio"}]
[null,null,null,null,null,null,null,null,null,null,null,null,null,null,null,null,null,null,null,null,null,null,null,null,null,null,null,null,null,null,null,null,null,null,null,null,null,null,null,null,null,null,null,null,null,null,null,null,null,null,null,null,null,null,null,null,null,{"$f":"IF(IFERROR(SEARCH($BG$1,BG253,1),0)>0,MAX(BF$2:BF252)+1,0)","v":251},"Sólidos Dissolvidos Totais",{"$f":"IFERROR(VLOOKUP(ROWS(BH$3:BH253),$BF$3:$BG$298,2,0),\"\")","v":"Sólidos Dissolvidos Totais"}]
[null,null,null,null,null,null,null,null,null,null,null,null,null,null,null,null,null,null,null,null,null,null,null,null,null,null,null,null,null,null,null,null,null,null,null,null,null,null,null,null,null,null,null,null,null,null,null,null,null,null,null,null,null,null,null,null,null,{"$f":"IF(IFERROR(SEARCH($BG$1,BG254,1),0)>0,MAX(BF$2:BF253)+1,0)","v":252},"Sólidos Suspensos Totais",{"$f":"IFERROR(VLOOKUP(ROWS(BH$3:BH254),$BF$3:$BG$298,2,0),\"\")","v":"Sólidos Suspensos Totais"}]
[null,null,null,null,null,null,null,null,null,null,null,null,null,null,null,null,null,null,null,null,null,null,null,null,null,null,null,null,null,null,null,null,null,null,null,null,null,null,null,null,null,null,null,null,null,null,null,null,null,null,null,null,null,null,null,null,null,{"$f":"IF(IFERROR(SEARCH($BG$1,BG255,1),0)>0,MAX(BF$2:BF254)+1,0)","v":253},"Sólidos Suspensos Voláteis",{"$f":"IFERROR(VLOOKUP(ROWS(BH$3:BH255),$BF$3:$BG$298,2,0),\"\")","v":"Sólidos Suspensos Voláteis"}]
[null,null,null,null,null,null,null,null,null,null,null,null,null,null,null,null,null,null,null,null,null,null,null,null,null,null,null,null,null,null,null,null,null,null,null,null,null,null,null,null,null,null,null,null,null,null,null,null,null,null,null,null,null,null,null,null,null,{"$f":"IF(IFERROR(SEARCH($BG$1,BG256,1),0)>0,MAX(BF$2:BF255)+1,0)","v":254},"Sólidos Totais",{"$f":"IFERROR(VLOOKUP(ROWS(BH$3:BH256),$BF$3:$BG$298,2,0),\"\")","v":"Sólidos Totais"}]
[null,null,null,null,null,null,null,null,null,null,null,null,null,null,null,null,null,null,null,null,null,null,null,null,null,null,null,null,null,null,null,null,null,null,null,null,null,null,null,null,null,null,null,null,null,null,null,null,null,null,null,null,null,null,null,null,null,{"$f":"IF(IFERROR(SEARCH($BG$1,BG257,1),0)>0,MAX(BF$2:BF256)+1,0)","v":255},"SST",{"$f":"IFERROR(VLOOKUP(ROWS(BH$3:BH257),$BF$3:$BG$298,2,0),\"\")","v":"SST"}]
[null,null,null,null,null,null,null,null,null,null,null,null,null,null,null,null,null,null,null,null,null,null,null,null,null,null,null,null,null,null,null,null,null,null,null,null,null,null,null,null,null,null,null,null,null,null,null,null,null,null,null,null,null,null,null,null,null,{"$f":"IF(IFERROR(SEARCH($BG$1,BG258,1),0)>0,MAX(BF$2:BF257)+1,0)","v":256},"ß-Total",{"$f":"IFERROR(VLOOKUP(ROWS(BH$3:BH258),$BF$3:$BG$298,2,0),\"\")","v":"ß-Total"}]
[null,null,null,null,null,null,null,null,null,null,null,null,null,null,null,null,null,null,null,null,null,null,null,null,null,null,null,null,null,null,null,null,null,null,null,null,null,null,null,null,null,null,null,null,null,null,null,null,null,null,null,null,null,null,null,null,null,{"$f":"IF(IFERROR(SEARCH($BG$1,BG259,1),0)>0,MAX(BF$2:BF258)+1,0)","v":257},"ß-Total-40K",{"$f":"IFERROR(VLOOKUP(ROWS(BH$3:BH259),$BF$3:$BG$298,2,0),\"\")","v":"ß-Total-40K"}]
[null,null,null,null,null,null,null,null,null,null,null,null,null,null,null,null,null,null,null,null,null,null,null,null,null,null,null,null,null,null,null,null,null,null,null,null,null,null,null,null,null,null,null,null,null,null,null,null,null,null,null,null,null,null,null,null,null,{"$f":"IF(IFERROR(SEARCH($BG$1,BG260,1),0)>0,MAX(BF$2:BF259)+1,0)","v":258},"Subst. Extraíveis por Clorofórmio",{"$f":"IFERROR(VLOOKUP(ROWS(BH$3:BH260),$BF$3:$BG$298,2,0),\"\")","v":"Subst. Extraíveis por Clorofórmio"}]
[null,null,null,null,null,null,null,null,null,null,null,null,null,null,null,null,null,null,null,null,null,null,null,null,null,null,null,null,null,null,null,null,null,null,null,null,null,null,null,null,null,null,null,null,null,null,null,null,null,null,null,null,null,null,null,null,null,{"$f":"IF(IFERROR(SEARCH($BG$1,BG261,1),0)>0,MAX(BF$2:BF260)+1,0)","v":259},"Substâncias Tensioactivas",{"$f":"IFERROR(VLOOKUP(ROWS(BH$3:BH261),$BF$3:$BG$298,2,0),\"\")","v":"Substâncias Tensioactivas"}]
[null,null,null,null,null,null,null,null,null,null,null,null,null,null,null,null,null,null,null,null,null,null,null,null,null,null,null,null,null,null,null,null,null,null,null,null,null,null,null,null,null,null,null,null,null,null,null,null,null,null,null,null,null,null,null,null,null,{"$f":"IF(IFERROR(SEARCH($BG$1,BG262,1),0)>0,MAX(BF$2:BF261)+1,0)","v":260},"Sulfatos",{"$f":"IFERROR(VLOOKUP(ROWS(BH$3:BH262),$BF$3:$BG$298,2,0),\"\")","v":"Sulfatos"}]
[null,null,null,null,null,null,null,null,null,null,null,null,null,null,null,null,null,null,null,null,null,null,null,null,null,null,null,null,null,null,null,null,null,null,null,null,null,null,null,null,null,null,null,null,null,null,null,null,null,null,null,null,null,null,null,null,null,{"$f":"IF(IFERROR(SEARCH($BG$1,BG263,1),0)>0,MAX(BF$2:BF262)+1,0)","v":261},"Sulfito",{"$f":"IFERROR(VLOOKUP(ROWS(BH$3:BH263),$BF$3:$BG$298,2,0),\"\")","v":"Sulfito"}]
[null,null,null,null,null,null,null,null,null,null,null,null,null,null,null,null,null,null,null,null,null,null,null,null,null,null,null,null,null,null,null,null,null,null,null,null,null,null,null,null,null,null,null,null,null,null,null,null,null,null,null,null,null,null,null,null,null,{"$f":"IF(IFERROR(SEARCH($BG$1,BG264,1),0)>0,MAX(BF$2:BF263)+1,0)","v":262},"Sulfureto",{"$f":"IFERROR(VLOOKUP(ROWS(BH$3:BH264),$BF$3:$BG$298,2,0),\"\")","v":"Sulfureto"}]
[null,null,null,null,null,null,null,null,null,null,null,null,null,null,null,null,null,null,null,null,null,null,null,null,null,null,null,null,null,null,null,null,null,null,null,null,null,null,null,null,null,null,null,null,null,null,null,null,null,null,null,null,null,null,null,null,null,{"$f":"IF(IFERROR(SEARCH($BG$1,BG265,1),0)>0,MAX(BF$2:BF264)+1,0)","v":263},"Tebuconazol",{"$f":"IFERROR(VLOOKUP(ROWS(BH$3:BH265),$BF$3:$BG$298,2,0),\"\")","v":"Tebuconazol"}]
[null,null,null,null,null,null,null,null,null,null,null,null,null,null,null,null,null,null,null,null,null,null,null,null,null,null,null,null,null,null,null,null,null,null,null,null,null,null,null,null,null,null,null,null,null,null,null,null,null,null,null,null,null,null,null,null,null,{"$f":"IF(IFERROR(SEARCH($BG$1,BG266,1),0)>0,MAX(BF$2:BF265)+1,0)","v":264},"Temperatura",{"$f":"IFERROR(VLOOKUP(ROWS(BH$3:BH266),$BF$3:$BG$298,2,0),\"\")","v":"Temperatura"}]
[null,null,null,null,null,null,null,null,null,null,null,null,null,null,null,null,null,null,null,null,null,null,null,null,null,null,null,null,null,null,null,null,null,null,null,null,null,null,null,null,null,null,null,null,null,null,null,null,null,null,null,null,null,null,null,null,null,{"$f":"IF(IFERROR(SEARCH($BG$1,BG267,1),0)>0,MAX(BF$2:BF266)+1,0)","v":265},"Temperatura [Amostra pontual]",{"$f":"IFERROR(VLOOKUP(ROWS(BH$3:BH267),$BF$3:$BG$298,2,0),\"\")","v":"Temperatura [Amostra pontual]"}]
[null,null,null,null,null,null,null,null,null,null,null,null,null,null,null,null,null,null,null,null,null,null,null,null,null,null,null,null,null,null,null,null,null,null,null,null,null,null,null,null,null,null,null,null,null,null,null,null,null,null,null,null,null,null,null,null,null,{"$f":"IF(IFERROR(SEARCH($BG$1,BG268,1),0)>0,MAX(BF$2:BF267)+1,0)","v":266},"Terbutilazina",{"$f":"IFERROR(VLOOKUP(ROWS(BH$3:BH268),$BF$3:$BG$298,2,0),\"\")","v":"Terbutilazina"}]
[null,null,null,null,null,null,null,null,null,null,null,null,null,null,null,null,null,null,null,null,null,null,null,null,null,null,null,null,null,null,null,null,null,null,null,null,null,null,null,null,null,null,null,null,null,null,null,null,null,null,null,null,null,null,null,null,null,{"$f":"IF(IFERROR(SEARCH($BG$1,BG269,1),0)>0,MAX(BF$2:BF268)+1,0)","v":267},"Tetracloreto de Carbono",{"$f":"IFERROR(VLOOKUP(ROWS(BH$3:BH269),$BF$3:$BG$298,2,0),\"\")","v":"Tetracloreto de Carbono"}]
[null,null,null,null,null,null,null,null,null,null,null,null,null,null,null,null,null,null,null,null,null,null,null,null,null,null,null,null,null,null,null,null,null,null,null,null,null,null,null,null,null,null,null,null,null,null,null,null,null,null,null,null,null,null,null,null,null,{"$f":"IF(IFERROR(SEARCH($BG$1,BG270,1),0)>0,MAX(BF$2:BF269)+1,0)","v":268},"Tetracloroeteno",{"$f":"IFERROR(VLOOKUP(ROWS(BH$3:BH270),$BF$3:$BG$298,2,0),\"\")","v":"Tetracloroeteno"}]
[null,null,null,null,null,null,null,null,null,null,null,null,null,null,null,null,null,null,null,null,null,null,null,null,null,null,null,null,null,null,null,null,null,null,null,null,null,null,null,null,null,null,null,null,null,null,null,null,null,null,null,null,null,null,null,null,null,{"$f":"IF(IFERROR(SEARCH($BG$1,BG271,1),0)>0,MAX(BF$2:BF270)+1,0)","v":269},"Tetracloroetileno",{"$f":"IFERROR(VLOOKUP(ROWS(BH$3:BH271),$BF$3:$BG$298,2,0),\"\")","v":"Tetracloroetileno"}]
[null,null,null,null,null,null,null,null,null,null,null,null,null,null,null,null,null,null,null,null,null,null,null,null,null,null,null,null,null,null,null,null,null,null,null,null,null,null,null,null,null,null,null,null,null,null,null,null,null,null,null,null,null,null,null,null,null,{"$f":"IF(IFERROR(SEARCH($BG$1,BG272,1),0)>0,MAX(BF$2:BF271)+1,0)","v":270},"Tirame",{"$f":"IFERROR(VLOOKUP(ROWS(BH$3:BH272),$BF$3:$BG$298,2,0),\"\")","v":"Tirame"}]
[null,null,null,null,null,null,null,null,null,null,null,null,null,null,null,null,null,null,null,null,null,null,null,null,null,null,null,null,null,null,null,null,null,null,null,null,null,null,null,null,null,null,null,null,null,null,null,null,null,null,null,null,null,null,null,null,null,{"$f":"IF(IFERROR(SEARCH($BG$1,BG273,1),0)>0,MAX(BF$2:BF272)+1,0)","v":271},"Titânio",{"$f":"IFERROR(VLOOKUP(ROWS(BH$3:BH273),$BF$3:$BG$298,2,0),\"\")","v":"Titânio"}]
[null,null,null,null,null,null,null,null,null,null,null,null,null,null,null,null,null,null,null,null,null,null,null,null,null,null,null,null,null,null,null,null,null,null,null,null,null,null,null,null,null,null,null,null,null,null,null,null,null,null,null,null,null,null,null,null,null,{"$f":"IF(IFERROR(SEARCH($BG$1,BG274,1),0)>0,MAX(BF$2:BF273)+1,0)","v":272},"TOC",{"$f":"IFERROR(VLOOKUP(ROWS(BH$3:BH274),$BF$3:$BG$298,2,0),\"\")","v":"TOC"}]
[null,null,null,null,null,null,null,null,null,null,null,null,null,null,null,null,null,null,null,null,null,null,null,null,null,null,null,null,null,null,null,null,null,null,null,null,null,null,null,null,null,null,null,null,null,null,null,null,null,null,null,null,null,null,null,null,null,{"$f":"IF(IFERROR(SEARCH($BG$1,BG275,1),0)>0,MAX(BF$2:BF274)+1,0)","v":273},"Tolueno",{"$f":"IFERROR(VLOOKUP(ROWS(BH$3:BH275),$BF$3:$BG$298,2,0),\"\")","v":"Tolueno"}]
[null,null,null,null,null,null,null,null,null,null,null,null,null,null,null,null,null,null,null,null,null,null,null,null,null,null,null,null,null,null,null,null,null,null,null,null,null,null,null,null,null,null,null,null,null,null,null,null,null,null,null,null,null,null,null,null,null,{"$f":"IF(IFERROR(SEARCH($BG$1,BG276,1),0)>0,MAX(BF$2:BF275)+1,0)","v":274},"Tório 228",{"$f":"IFERROR(VLOOKUP(ROWS(BH$3:BH276),$BF$3:$BG$298,2,0),\"\")","v":"Tório 228"}]
[null,null,null,null,null,null,null,null,null,null,null,null,null,null,null,null,null,null,null,null,null,null,null,null,null,null,null,null,null,null,null,null,null,null,null,null,null,null,null,null,null,null,null,null,null,null,null,null,null,null,null,null,null,null,null,null,null,{"$f":"IF(IFERROR(SEARCH($BG$1,BG277,1),0)>0,MAX(BF$2:BF276)+1,0)","v":275},"Tório 230",{"$f":"IFERROR(VLOOKUP(ROWS(BH$3:BH277),$BF$3:$BG$298,2,0),\"\")","v":"Tório 230"}]
[null,null,null,null,null,null,null,null,null,null,null,null,null,null,null,null,null,null,null,null,null,null,null,null,null,null,null,null,null,null,null,null,null,null,null,null,null,null,null,null,null,null,null,null,null,null,null,null,null,null,null,null,null,null,null,null,null,{"$f":"IF(IFERROR(SEARCH($BG$1,BG278,1),0)>0,MAX(BF$2:BF277)+1,0)","v":276},"Tório 232",{"$f":"IFERROR(VLOOKUP(ROWS(BH$3:BH278),$BF$3:$BG$298,2,0),\"\")","v":"Tório 232"}]
[null,null,null,null,null,null,null,null,null,null,null,null,null,null,null,null,null,null,null,null,null,null,null,null,null,null,null,null,null,null,null,null,null,null,null,null,null,null,null,null,null,null,null,null,null,null,null,null,null,null,null,null,null,null,null,null,null,{"$f":"IF(IFERROR(SEARCH($BG$1,BG279,1),0)>0,MAX(BF$2:BF278)+1,0)","v":277},"Triclopir",{"$f":"IFERROR(VLOOKUP(ROWS(BH$3:BH279),$BF$3:$BG$298,2,0),\"\")","v":"Triclopir"}]
[null,null,null,null,null,null,null,null,null,null,null,null,null,null,null,null,null,null,null,null,null,null,null,null,null,null,null,null,null,null,null,null,null,null,null,null,null,null,null,null,null,null,null,null,null,null,null,null,null,null,null,null,null,null,null,null,null,{"$f":"IF(IFERROR(SEARCH($BG$1,BG280,1),0)>0,MAX(BF$2:BF279)+1,0)","v":278},"Triclorobenzenos",{"$f":"IFERROR(VLOOKUP(ROWS(BH$3:BH280),$BF$3:$BG$298,2,0),\"\")","v":"Triclorobenzenos"}]
[null,null,null,null,null,null,null,null,null,null,null,null,null,null,null,null,null,null,null,null,null,null,null,null,null,null,null,null,null,null,null,null,null,null,null,null,null,null,null,null,null,null,null,null,null,null,null,null,null,null,null,null,null,null,null,null,null,{"$f":"IF(IFERROR(SEARCH($BG$1,BG281,1),0)>0,MAX(BF$2:BF280)+1,0)","v":279},"Tricloroeteno",{"$f":"IFERROR(VLOOKUP(ROWS(BH$3:BH281),$BF$3:$BG$298,2,0),\"\")","v":"Tricloroeteno"}]
[null,null,null,null,null,null,null,null,null,null,null,null,null,null,null,null,null,null,null,null,null,null,null,null,null,null,null,null,null,null,null,null,null,null,null,null,null,null,null,null,null,null,null,null,null,null,null,null,null,null,null,null,null,null,null,null,null,{"$f":"IF(IFERROR(SEARCH($BG$1,BG282,1),0)>0,MAX(BF$2:BF281)+1,0)","v":280},"Tricloroeteno e Tetracloroeteno",{"$f":"IFERROR(VLOOKUP(ROWS(BH$3:BH282),$BF$3:$BG$298,2,0),\"\")","v":"Tricloroeteno e Tetracloroeteno"}]
[null,null,null,null,null,null,null,null,null,null,null,null,null,null,null,null,null,null,null,null,null,null,null,null,null,null,null,null,null,null,null,null,null,null,null,null,null,null,null,null,null,null,null,null,null,null,null,null,null,null,null,null,null,null,null,null,null,{"$f":"IF(IFERROR(SEARCH($BG$1,BG283,1),0)>0,MAX(BF$2:BF282)+1,0)","v":281},"Tricloroetileno",{"$f":"IFERROR(VLOOKUP(ROWS(BH$3:BH283),$BF$3:$BG$298,2,0),\"\")","v":"Tricloroetileno"}]
[null,null,null,null,null,null,null,null,null,null,null,null,null,null,null,null,null,null,null,null,null,null,null,null,null,null,null,null,null,null,null,null,null,null,null,null,null,null,null,null,null,null,null,null,null,null,null,null,null,null,null,null,null,null,null,null,null,{"$f":"IF(IFERROR(SEARCH($BG$1,BG284,1),0)>0,MAX(BF$2:BF283)+1,0)","v":282},"Trihalometanos",{"$f":"IFERROR(VLOOKUP(ROWS(BH$3:BH284),$BF$3:$BG$298,2,0),\"\")","v":"Trihalometanos"}]
[null,null,null,null,null,null,null,null,null,null,null,null,null,null,null,null,null,null,null,null,null,null,null,null,null,null,null,null,null,null,null,null,null,null,null,null,null,null,null,null,null,null,null,null,null,null,null,null,null,null,null,null,null,null,null,null,null,{"$f":"IF(IFERROR(SEARCH($BG$1,BG285,1),0)>0,MAX(BF$2:BF284)+1,0)","v":283},"Trítio",{"$f":"IFERROR(VLOOKUP(ROWS(BH$3:BH285),$BF$3:$BG$298,2,0),\"\")","v":"Trítio"}]
[null,null,null,null,null,null,null,null,null,null,null,null,null,null,null,null,null,null,null,null,null,null,null,null,null,null,null,null,null,null,null,null,null,null,null,null,null,null,null,null,null,null,null,null,null,null,null,null,null,null,null,null,null,null,null,null,null,{"$f":"IF(IFERROR(SEARCH($BG$1,BG286,1),0)>0,MAX(BF$2:BF285)+1,0)","v":284},"Turvação",{"$f":"IFERROR(VLOOKUP(ROWS(BH$3:BH286),$BF$3:$BG$298,2,0),\"\")","v":"Turvação"}]
[null,null,null,null,null,null,null,null,null,null,null,null,null,null,null,null,null,null,null,null,null,null,null,null,null,null,null,null,null,null,null,null,null,null,null,null,null,null,null,null,null,null,null,null,null,null,null,null,null,null,null,null,null,null,null,null,null,{"$f":"IF(IFERROR(SEARCH($BG$1,BG287,1),0)>0,MAX(BF$2:BF286)+1,0)","v":285},"Urânio 234",{"$f":"IFERROR(VLOOKUP(ROWS(BH$3:BH287),$BF$3:$BG$298,2,0),\"\")","v":"Urânio 234"}]
[null,null,null,null,null,null,null,null,null,null,null,null,null,null,null,null,null,null,null,null,null,null,null,null,null,null,null,null,null,null,null,null,null,null,null,null,null,null,null,null,null,null,null,null,null,null,null,null,null,null,null,null,null,null,null,null,null,{"$f":"IF(IFERROR(SEARCH($BG$1,BG288,1),0)>0,MAX(BF$2:BF287)+1,0)","v":286},"Urânio 235",{"$f":"IFERROR(VLOOKUP(ROWS(BH$3:BH288),$BF$3:$BG$298,2,0),\"\")","v":"Urânio 235"}]
[null,null,null,null,null,null,null,null,null,null,null,null,null,null,null,null,null,null,null,null,null,null,null,null,null,null,null,null,null,null,null,null,null,null,null,null,null,null,null,null,null,null,null,null,null,null,null,null,null,null,null,null,null,null,null,null,null,{"$f":"IF(IFERROR(SEARCH($BG$1,BG289,1),0)>0,MAX(BF$2:BF288)+1,0)","v":287},"Urânio 238",{"$f":"IFERROR(VLOOKUP(ROWS(BH$3:BH289),$BF$3:$BG$298,2,0),\"\")","v":"Urânio 238"}]
[null,null,null,null,null,null,null,null,null,null,null,null,null,null,null,null,null,null,null,null,null,null,null,null,null,null,null,null,null,null,null,null,null,null,null,null,null,null,null,null,null,null,null,null,null,null,null,null,null,null,null,null,null,null,null,null,null,{"$f":"IF(IFERROR(SEARCH($BG$1,BG290,1),0)>0,MAX(BF$2:BF289)+1,0)","v":288},"Vanádio",{"$f":"IFERROR(VLOOKUP(ROWS(BH$3:BH290),$BF$3:$BG$298,2,0),\"\")","v":"Vanádio"}]
[null,null,null,null,null,null,null,null,null,null,null,null,null,null,null,null,null,null,null,null,null,null,null,null,null,null,null,null,null,null,null,null,null,null,null,null,null,null,null,null,null,null,null,null,null,null,null,null,null,null,null,null,null,null,null,null,null,{"$f":"IF(IFERROR(SEARCH($BG$1,BG291,1),0)>0,MAX(BF$2:BF290)+1,0)","v":289},"Zinco",{"$f":"IFERROR(VLOOKUP(ROWS(BH$3:BH291),$BF$3:$BG$298,2,0),\"\")","v":"Zinco"}]
[null,null,null,null,null,null,null,null,null,null,null,null,null,null,null,null,null,null,null,null,null,null,null,null,null,null,null,null,null,null,null,null,null,null,null,null,null,null,null,null,null,null,null,null,null,null,null,null,null,null,null,null,null,null,null,null,null,{"$f":"IF(IFERROR(SEARCH($BG$1,BG292,1),0)>0,MAX(BF$2:BF291)+1,0)","v":290},"Aplicação de Amostrador Automático",{"$f":"IFERROR(VLOOKUP(ROWS(BH$3:BH292),$BF$3:$BG$298,2,0),\"\")","v":"Aplicação de Amostrador Automático"}]
[null,null,null,null,null,null,null,null,null,null,null,null,null,null,null,null,null,null,null,null,null,null,null,null,null,null,null,null,null,null,null,null,null,null,null,null,null,null,null,null,null,null,null,null,null,null,null,null,null,null,null,null,null,null,null,null,null,{"$f":"IF(IFERROR(SEARCH($BG$1,BG293,1),0)>0,MAX(BF$2:BF292)+1,0)","v":291},"Trihalometanos [EM ALTA]",{"$f":"IFERROR(VLOOKUP(ROWS(BH$3:BH293),$BF$3:$BG$298,2,0),\"\")","v":"Trihalometanos [EM ALTA]"}]
[null,null,null,null,null,null,null,null,null,null,null,null,null,null,null,null,null,null,null,null,null,null,null,null,null,null,null,null,null,null,null,null,null,null,null,null,null,null,null,null,null,null,null,null,null,null,null,null,null,null,null,null,null,null,null,null,null,{"$f":"IF(IFERROR(SEARCH($BG$1,BG294,1),0)>0,MAX(BF$2:BF293)+1,0)","v":292},"Fosfato (ortofosfato)",{"$f":"IFERROR(VLOOKUP(ROWS(BH$3:BH294),$BF$3:$BG$298,2,0),\"\")","v":"Fosfato (ortofosfato)"}]
[null,null,null,null,null,null,null,null,null,null,null,null,null,null,null,null,null,null,null,null,null,null,null,null,null,null,null,null,null,null,null,null,null,null,null,null,null,null,null,null,null,null,null,null,null,null,null,null,null,null,null,null,null,null,null,null,null,{"$f":"IF(IFERROR(SEARCH($BG$1,BG295,1),0)>0,MAX(BF$2:BF294)+1,0)","v":293},"Sólidos Totais Voláteis",{"$f":"IFERROR(VLOOKUP(ROWS(BH$3:BH295),$BF$3:$BG$298,2,0),\"\")","v":"Sólidos Totais Voláteis"}]
[null,null,null,null,null,null,null,null,null,null,null,null,null,null,null,null,null,null,null,null,null,null,null,null,null,null,null,null,null,null,null,null,null,null,null,null,null,null,null,null,null,null,null,null,null,null,null,null,null,null,null,null,null,null,null,null,null,{"$f":"IF(IFERROR(SEARCH($BG$1,BG296,1),0)>0,MAX(BF$2:BF295)+1,0)","v":294},"Oxadiazão",{"$f":"IFERROR(VLOOKUP(ROWS(BH$3:BH296),$BF$3:$BG$298,2,0),\"\")","v":"Oxadiazão"}]
[null,null,null,null,null,null,null,null,null,null,null,null,null,null,null,null,null,null,null,null,null,null,null,null,null,null,null,null,null,null,null,null,null,null,null,null,null,null,null,null,null,null,null,null,null,null,null,null,null,null,null,null,null,null,null,null,null,{"$f":"IF(IFERROR(SEARCH($BG$1,BG297,1),0)>0,MAX(BF$2:BF296)+1,0)","v":295},"Cor (diluição 1:20)-Ág. Residual_Quantitativo",{"$f":"IFERROR(VLOOKUP(ROWS(BH$3:BH297),$BF$3:$BG$298,2,0),\"\")","v":"Cor (diluição 1:20)-Ág. Residual_Quantitativo"}]
[null,null,null,null,null,null,null,null,null,null,null,null,null,null,null,null,null,null,null,null,null,null,null,null,null,null,null,null,null,null,null,null,null,null,null,null,null,null,null,null,null,null,null,null,null,null,null,null,null,null,null,null,null,null,null,null,null,{"$f":"IF(IFERROR(SEARCH($BG$1,BG298,1),0)>0,MAX(BF$2:BF297)+1,0)","v":296},"Legionella spp. com Zaragatoa",{"$f":"IFERROR(VLOOKUP(ROWS(BH$3:BH298),$BF$3:$BG$298,2,0),\"\")","v":"Legionella spp. com Zaragatoa"}]